{"text_format":"1","workbook":"xlsx","n_sheets":11,"sheets":["Cover","Instructions","Hazard Glossary","Risk Matrix","Information","Assumptions","Hazard Data Entry","Data Scores","Risk Summary","Vulnerability Report","Contacts"],"not_rendered":{"charts":6,"images":9,"macros":1,"external_links":0,"defined_names":17,"comments":0,"pivot_tables":0},"unopened":[],"bounds":{"document_bytes":16777216,"sheet_cells":100000,"rows_first":2000,"rows_last":500,"rows_between":2000,"halvings":0,"cell_chars":16384,"cell_head_chars":4096},"cells_cut":0,"cells_raw":0,"read":"whole","date_system":"1900"}

{"sheet":"Cover","index":0,"n_rows":28,"n_cols":13,"rows_kept":28,"cut":false,"hidden":false,"merged":[[27,12,27,16]]}
[]
[]
[]
[]
[]
[]
[null,null,"Herramienta Rápida de Estimación del Riesgo"]
[]
[]
[]
[]
[]
[]
[]
[]
[]
[]
[]
[]
[]
[]
[]
[]
[]
[]
[]
[]
[null,null,null,null,null,null,null,null,null,null,null,null,"Nota: La compatibilidad y funcionalidad de la herramienta puede verse impactada por el uso de versiones de excel anteriores al 2010, en casos únicos, y ciertas versiones (p.e. estudiante) de Excel 2010."]

{"sheet":"Instructions","index":1,"n_rows":198,"n_cols":2,"rows_kept":198,"cut":false,"hidden":false,"merged":[]}
[{"$f":"MdlTle","v":"Herramienta Rápida de Estimación del Riesgo"}]
[{"$f":"MID(CELL(\"filename\",A1),FIND(\"]\",CELL(\"filename\",A1))+1,255)","v":"Instructions"}]
[]
[]
[null,"Una ciudad resiliente es aquella capaz de resistir, absorber, adaptarse y recuperarse de los impactos de amenazas de manera oportuna y eficiente, lo que incluye la preservación y restauración de sus estructuras y funciones básicas."]
[]
[null,"Propósito del Marco de Toma de Decisiones "]
[]
[null,"La herramienta rápida de estimación del riesgo ha sido diseñada con el propósito de identificar y entender los riesgos/presión/impactos y exposición actuales y futuros  de los activos físicos y humanos. La herramienta rápida de estimación del riesgo no es una evaluación completa del riesgo, sino un proceso de compromiso de los actores clave para establecer una base de entendimiento común. Tomando en cuenta las acciones y las medidas correctivas realizadas, la herramienta generará una evaluación de riesgo en forma de panel de control, asesorando los riesgos y amenazas a activos físicos y humanos, impacto de los principales riesgos identificados y peligros asociados a un lugar o activo específicos. "]
[null,"La herramienta rápida de estimación del riesgo utiliza la clasificación de peligros definidos por la Oficina de las Naciones Unidas para la Reducción del Riesgo de Desastres (UNISDR). Los indicadores incluidos en la herramienta se encuentran alineados con los 10 Aspectos Esenciales de la Campaña Mundial Desarrollando Ciudades Resilientes, en el contexto del Marco de Sendai para la Reducción del Riesgo de Desastres 2015-2030 y en los Objetivos de Desarrollo sostenible."]
[null,"Subyacente a la herramienta rápida de estimación del riesgo, un marco para la toma de decisiones (Decision Making Framework, DMF) ha sido desarrollado con el propósito de proveer al usuario con las guías necesarias para evaluar y calificar la exposición  y vulnerabilidad de los peligros relevantes, así como el nivel actual de respuestas y acciones realizadas con respecto a estos peligros. El DMF, el cuál se encuentra incluido en la herramienta rápida de estimación del riesgo, incluye un conjunto de instrucciones, definiciones (i.e. Diccionario) y un Matriz de Riesgo subyacente que guía al usuario para la captura de información en la herramienta rápida de estimación del riesgo, proveyendo al usuario criterios de calificación indicativos y escalas de medida descritas en la sección de \"Assumptions\" (Supuestos). "]
[]
[null,"Quién puede utilizarla"]
[]
[null,"La herramienta rápida de estimación del riesgo se encuentra disponible para su implementación por parte de las ciudades participando en la Campaña Mundial Desarrollando Ciudades Resilientes (2010-2020) y Desarrollando Ciudades Resilientes 2030 (MCR2030)"]
[null,"Los usuarios potenciales incluyen: "]
[null,"    - autoridades civiles, incluyendo planificadores urbanos, oficiales de riesgo, gestores municipales, y oficiales de respuesta a emergencias"]
[null,"    - Grupos de actores relevantes en la Campaña "]
[null,"La herramienta rápida de estimación del riesgo de ser utilizada exclusivamente en un entorno de taller con múltiples actores, no debe ser llenada por una sola persona."]
[]
[null,"Instructiones para el Usuario"]
[]
[null,"Un conjunto de instrucciones en cómo utilizar la herramienta rápida de estimación del riesgo se muestra a continuación, en conjunto con un caso de estudio, paso a paso."]
[]
[null,"Paso 1. Proporcionar información de ubicación, región y / o activo"]
[null,"Para comenzar a usar la herramienta, use la pestaña 'Information” (Información) para ingresar la información específica de la ubicación, región y / o activo que identifica y define el alcance de esta evaluación de riesgo."]
[]
[null,"Paso 2. Identificar las familias y subfamilias de peligros"]
[null,"Consulte la columna B en la pestaña “Hazard Data Entry” (Entrada de amenaza)."]
[null,"> Identifica las familias de riesgo y subfamilias relevantes para el lugar que se está evaluando."]
[]
[null,"Tenga en cuenta que las familias y subfamilias de peligros se basan en la clasificación de peligros adoptada por el UNISDR para el Marco de Sendai. Un glosario completo que contiene definiciones de peligros ha sido incluido en la pestaña “Hazard Glossary” (Glosario de Amenaza). Además, en la pestaña “Assumptions” (Supuestos) se puede encontrar un resumen de las familias de amenaza, subfamilias, peligros principales y eventos peligrosos del Marco de Sendai. Este resumen, junto con el glosario de peligros, guiarán la entrada de datos a través de los pasos 2, 3 y 4. Tenga en cuenta que la asociación de peligros con familias y subfamilias es únicamente una sugerencia, y sólo tiene fines de claridad; algunos peligros pueden cambiar su asociación de la familia basada en acontecimientos actuales y el disparador de la pérdida."]
[]
[null,"Caso de Estudio:"]
[null,"La ubicación que se evalúa en este estudio de caso es la ciudad de Mackay, Queensland, Australia en relación con el ciclón tropical severo Debbie (marzo de 2017). "]
[null,"Mackay está situado en el norte de Queensland en la costa este de Australia. La ciudad de Mackay se sitúa en el río de Pioneer y Clarke Range situado al oeste de la ciudad. Mackay, una gran región agrícola, es conocida como una de las regiones de cultivo de caña más grandes de Australia. La población de Mackay supera los 120,000 habitantes y los residentes se extienden a través de una variedad de oportunidades de residencia, desde costales hasta pequeñas áreas rurales y rurales residenciales."]
[null,"Basado en el clima subtropical de Mackay y la historia de desastres, la ciudad es propensa a los siguientes eventos: inundaciones, deslizamientos de tierra, fuertes tormentas con granizo y vientos dañinos, incendios forestales, olas de calor, ciclones, terremotos y olas."]
[null,"Para efecto de este caso de estudio, la evaluación se centrará en la comprensión del nivel de riesgo de los siguientes peligros para permitir la priorización de la acción: inundación, deslizamiento de tierra, acción de las olas y ciclón tropical."]
[null,"Todos los peligros arriba mencionados pertenecen a la familia de  “Amenazas naturales” según la clasificación UNISDR para el Marco de Sendai."]
[null,"La identificación de las subfamilias de riesgo pertinentes se basa en estas clasificaciones y en la pestaña “Hazard glossary” (Glosario de amenazas), que da lugar a la siguiente selección:"]
[null," - Riesgos geofísicos"]
[null," - Riesgos hidrológicos"]
[null," - Riesgos meteorológicos"]
[null," - Riesgos climatológicos"]
[null," - Riesgos biológicos"]
[null," - Riesgos antropogénicos"]
[null,"Como resultado, nos posicionaremos en las áreas seleccionadas arriba en la pestaña “Hazard Data Entry” (Entrada de datos de peligro)."]
[]
[null,"Paso 3. Identificar los principales peligros"]
[null,"Consulte las columnas B y C en la pestaña “Hazard Data Entry” (Entrada de datos de amenazas)."]
[null,"> Dentro de cada familia / subfamilia de amenazas identificada en el Paso 2, seleccione los principales peligros relacionados al lugar que se está evaluando."]
[null,"> Un identificador se adjunta automáticamente a cada peligro principal seleccionado."]
[]
[null,"Caso de Estudio:"]
[null,"En base a las áreas seleccionadas para el estudio e informadas por la pestaña “Data Fields” (Campos de datos) y la pestaña “Hazard Glossary” (Glosario de Peligros), se seleccionan los siguientes peligros principales para cada subfamilia de riesgo utilizando el menú desplegable de Columna A:"]
[null," - Riesgos hidrológicos: Inundaciones; Deslizamiento de tierra; Acción de las olas. Tenga en cuenta que se debe usar una fila por cada peligro seleccionado."]
[null," - Peligros meteorológicos: Ciclón tropical. Tenga en cuenta que se debe usar una fila por cada peligro seleccionado."]
[]
[null,"Paso 4. Seleccionar los eventos de peligro"]
[null,"Consulte la columna C en la pestaña “Hazard Data Entry” (Entrada de datos de peligro)."]
[null,"> Para cada riesgo principal identificado, seleccione el evento asociado relevante para la locación. Utilice una fila por evento de peligro."]
[]
[null,"Tenga en cuenta que la herramienta rápida de estimación del riesgo contiene 5 filas por subfamilia de riesgo para ayudar al usuario a limitar el alcance de la evaluación. Un bloque adicional de 5 filas se proporciona en la parte inferior de la pestaña “Hazard Data Entry” (Entrada de datos de peligro) para que el usuario complete si es necesario."]
[]
[null,"Caso de Estudio:"]
[null,"La selección de eventos de riesgo se basa en la comprensión actual de la Ciudad de Mackay, datos históricos sobre los principales riesgos como resultado de eventos pasados, investigaciones especializadas y consultas con actores clave. Mediante el menú desplegable de Columna C se seleccionan los siguientes eventos de riesgo, según la pestaña “Hazard Glossary” (Glosario de Peligros) y la pestaña “Assumptions” (Supuestos):"]
[null," - Inundación: Desbordamiento de ríos; Inundación repentina. Tenga en cuenta que se debe usar una fila por cada peligro seleccionado."]
[null," - Landslide: Landslide following event"]
[null," - Acción de las olas: Inundación Costal"]
[null," - Ciclón Tropical: Viento; Oleada de tormenta. Tenga en cuenta que se debe usar una fila por cada evento de peligro seleccionado."]
[null," - Tormenta convectiva: Granizo; Viento. Tenga en cuenta que se debe usar una fila por cada evento de peligro seleccionado."]
[null," - Fuego descontrolado: Incendio de tierras agrícolas/pastizales"]
[null," - Terremoto: Movimiento del suelo; Deslizamiento después del evento. Tenga en cuenta que se debe usar una fila por cada evento de peligro seleccionado"]
[]
[null,"Paso 5. Evaluar la exposición"]
[null,"Consulte la columna D en la pestaña “Hazard Data Entry” (Entrada de datos de peligro)."]
[null,"> Para cada evento de riesgo seleccionado, evalúe y anote la exposición de la ubicación que se está evaluando utilizando valores de \"Descartable a Inevitable\" (consulte la pestaña “Assumptions” (Supuestos) para una lista a escala completa)."]
[null,"> Registre su justificación para cada puntaje de evaluación en la columna N ('Comentarios'). Esto permitirá la validación, así como futuras revisiones y seguimiento del progreso."]
[]
[null,"La exposición se refiere a personas, propiedades, bienes, sistemas u otros elementos presentes en zonas peligrosas que, por lo tanto, están sujetas a pérdidas potenciales (UNISDR Terminology, 2009). Esto incluye población, edificaciones, instalaciones esenciales e infraestructura crítica. La infrestructura crítica se refiere a las principales estructuras físicas, instalaciones técnicas y sistemas que son social, económica u operacionalmente esenciales para el funcionamiento de una sociedad o comunidad, tanto en circunstancias de rutina como en circunstancias extremas de una emergencia (UNISDR Terminology, 2009)."]
[]
[null,"Caso de Estudio:"]
[null,"Basado en la comprensión actual de la Ciudad de Mackay (incluyendo la población, las edificaciones, las instalaciones esenciales y la infraestructura crítica), los aprendizajes de eventos pasados, investigaciones específicas y consultas con actores clave, la exposición de la ciudad de Mackay a cada uno de los eventos de peligro identificados se evalúa y se puntúa en la columna D como sigue:"]
[null," -  Inundación: Desbordamiento de ríos; Inundación repentina: Se considera que la exposición es Extremadamente Probable. "]
[null," - Deslizamiento de tierra: Deslizamiento después del evento: Se considera que la exposición es Probable."]
[null," - Acción de las olas: Inundación Costal: Se considera que la exposición es Extremadamente Probable."]
[null," - Ciclón Tropical: Viento: Se considera que la exposición es Inevitable. Oleada de Tormenta: Se considera que la exposición es Extremadamente Probable. Tenga en cuenta que se debe usar una fila por cada evento de peligro seleccionado."]
[null,"El razonamiento detrás de cada puntaje dado debe ser registrado en la Columna K (es decir, Comentarios y Justificaciones)."]
[]
[null,"Paso 6. Evaluar la vulnerabilidad"]
[null,"Consulte la columna E - H en la pestaña “Hazard Data Entry” (Entrada de datos de peligro)."]
[null,"> Para cada evento de riesgo seleccionado, evalúe y anote la vulnerabilidad en cada una de las cuatro categorías usando valores de \"Descartable\" a \"Inevitable\" (consulte la pestaña \"Assumptions” (Supuestos) para una lista a escala completa).\n> Las cuatro categorías de vulnerabilidad a evaluar incluyen:\na. Infraestructuras (todo tipo - carreteras, transportes, barandas, puertos, puentes, viviendas, etc.)\nb. Sectores productivos (específicamente subsistencia / mercado laboral indirectamente)\nc. Servicios esenciales o básicos (salud, telecomunicaciones, agua, energía, etc.)\nd. Aspectos humanos y sociales (desplazamiento, seguridad, etc.)"]
[null,"> Registre su justificación para cada puntaje de evaluación en la Columna N. Esto permitirá la validación así como las revisiones futuras y el seguimiento del progreso"]
[]
[null,"Vulnerabilidad se refiere a las características y circunstancias de una comunidad, sistema o activo que lo hacen susceptible a los efectos dañinos de un peligro (UNISDR Terminology, 2009). Hay muchos aspectos de la vulnerabilidad, que surgen de diversos factores físicos, sociales, económicos y ambientales. Algunos ejemplos pueden ser el diseño deficiente y la construcción de edificios, la protección inadecuada de los activos, la falta de información y concienciación pública, el reconocimiento oficial limitado de los riesgos y las medidas de preparación y el desconocimiento de una gestión ambiental prudente. La vulnerabilidad varía significativamente dentro de una comunidad y con el tiempo. Esta definición identifica la vulnerabilidad como una característica del elemento de interés (comunidad, sistema o activo) que es independiente de su exposición."]
[]
[null,"Caso de Estudio:"]
[null,"Después de evaluar la vulnerabilidad física, social, económica y ambiental de la ciudad de Mackay a cada uno de los eventos de riesgo seleccionados, la puntuación relevante se ingresa en la Columna E - H como sigue:"]
[null," - Indundación: Desbordamiento de ríos: se considera que la vulnerabilidad en cada una de las cuatro categorías es: Infraestructura: Muy Probable; Sectores Productivos: Muy Probable; Servicios básicos o esenciales: Muy Probable; Aspectos sociales y humanos: Muy Probable."]
[null," - Indundación: Indundación Repentina: se considera que la vulnerabilidad en cada una de las cuatro categorías es: Infraestructura: Extremadamente Probable; Sectores Productivos: Extremadamente Probable; Servicios básicos o esenciales: Muy Probable; Aspectos sociales y humanos: Extremadamente Probable."]
[null," - Deslizamiento de tierra: Deslizamiento después del evento: se considera que la vulnerabilidad en cada una de las cuatro categorías es: Infraestructura: Probable; Sectores Productivos: Muy Posible; Servicios básicos o esenciales: Posible; Aspectos sociales y humanos: Posible."]
[null," - Acción de las olas: Inundación Costal: se considera que la vulnerabilidad en cada una de las cuatro categorías es: Infraestructura: Muy Probable; Sectores Productivos: Muy Posible; Servicios básicos o esenciales: Posible; Aspectos sociales y humanos: Posible."]
[null," - Ciclón Tropical: Viento: se considera que la vulnerabilidad en cada una de las cuatro categorías es: Infraestructura: Muy Probable; Sectores Productivos: Muy Probable; Servicios básicos o esenciales: Muy Probable; Aspectos sociales y humanos: Muy Probable."]
[null," - Ciclón Tropical: Oleada de Tormenta: se considera que la vulnerabilidad en cada una de las cuatro categorías es: Infraestructura: Muy Probable; Sectores Productivos: Muy Probable; Servicios básicos o esenciales: Inevitable; Aspectos sociales y humanos: Muy Probable."]
[null,"El razonamiento detrás de cada puntaje dado debe ser registrado en la Columna N"]
[]
[null,"Paso 7. Evaluar el nivel de acciones o medidas actuales emprendidas"]
[null,"Consulte la columna J en la pestaña “Hazard Data Entry” (Entrada de datos de peligro)."]
[null,"> Para cada evento de peligro seleccionado, evalúe y anote el nivel de las acciones y medidas vigentes para tratar y mitigar el evento de peligro en el lugar que se está evaluando usando valores de \"No hay medidas en vigor\" a \"Control completo del desastre\" (Consulte la pestaña \"Assumptions” (Supuestos) para una lista a escala completa)."]
[null,"\n> Registre su justificación para cada puntaje de evaluación en la Columna N. Esto permitirá la validación así como las revisiones futuras y el seguimiento del progreso."]
[]
[null," Actuaciones o medidas actuales emprendidas: actividades y medidas para evitar y / o hacer frente a los riesgos de desastres existentes y nuevos (UNISDR Terminology, 2009). Indica el nivel actual de resiliencia ante desastres de la locación especificada."]
[]
[null,"Caso de Estudio:"]
[null,"En Mackay, el Ayuntamiento tiene una serie de planes de manejo de desastres y estrategias de recuperación de desastres para manejar los impactos de desastres potenciales específicos dentro de sus fronteras. También tienen programas locales, iniciativas específicas y herramientas para aumentar la conciencia y educar a la población y las empresas en la respuesta a esos escenarios de desastres. Al revisar esta información, evaluar su efectividad actual, consultar a las partes interesadas pertinentes y comprender las acciones y medidas que aún deben emprenderse para mejorar la preparación de la ciudad, se introdujo el puntaje relevante en la columna H como sigue:"]
[null," - Indundación: Desbordamiento de ríos: Se considera que el nivel de las acciones y medidas actuales es \"Algunas medidas en vigor\"."]
[null," - Indundación: Indundación Repentina: Se considera que el nivel de las acciones y medidas actuales es \"Algunas medidas en vigor\"."]
[null," - Deslizamiento de tierra: Deslizamiento después del evento: Se considera que el nivel de las acciones y medidas actuales es \"Pocas medidas en vigor\"."]
[null," - Acción de las olas: Inundación Costal: Se considera que el nivel de las acciones y medidas actuales es \"Extremadamente pocas medidas en vigor\"."]
[null," - Ciclón Tropical: Viento: Se considera que el nivel de las acciones y medidas actuales es \"Medidas razonables en vigor\"."]
[null,"Level of current actions and measures undertaken is deemed to be \"Reasonable measures in place\"."]
[null," - Ciclón Tropical: Oleada de Tormenta: Se considera que el nivel de las acciones y medidas actuales es \"Muy pocas medidas en vigor\"."]
[null,"El razonamiento detrás de cada puntaje dado debe ser registrado en la Columna N."]
[]
[null,"\nPaso 8. Analizar los resultados"]
[null,"Consulte la columna K, L y M en la pestaña “Hazard Data Entry” (Entrada de datos de peligro)."]
[null,"> Basándose en su evaluación a través de los pasos 5 a 7, la herramienta rellenará automáticamente dos valores numéricos finales: Puntuación de probabilidad y puntuación de gravedad; e identificar la Clasificación de Riesgo para el Peligro basada en las clasificaciones identificadas en la pestaña \"Risk Matrix” (Matriz de Riesgo)."]
[null,"a)    Evaluación de la probabilidad: se refiere a la probabilidad de que ocurra el evento en comparación con los otros eventos evaluados en la locación especificada, en base a la exposición de la ubicación y la vulnerabilidad a ese evento, y las acciones y medidas actuales emprendidas. Cuanto menor sea el puntaje, menor será el requisito potencial para la acción. Cuanto mayor sea el puntaje, mayor el requisito de mayor potencial para la acción. Tenga en cuenta que este puntaje no es una medida estadística de probabilidad, sino una puntuación de clasificación para permitir la priorización de peligros / eventos de peligro en todos los riesgos evaluados / eventos de riesgo."]
[null,"b)    Evaluación de la gravedad: se refiere al nivel de impacto y de consecuencia que un peligro tendría en el lugar de estudio y su comunidad, que van de 1 a 100, siendo 1 la menor gravedad y 100 la más alta."]
[null,"c)    Evaluación del riesgo: se refiere a la asignación de una clasificación de riesgo que varía de muy baja a catastrófica alineada con la \"matriz de riesgos\", que depende de la clasificación de probabilidad y la clasificación de gravedad calculada."]
[]
[null,"Notas:"]
[null," - Una calificación de gravedad (negativa) indica que está fuera del umbral para invertir en una respuesta a un riesgo material."]
[null," - La obtención de una clasificación de gravedad de cero o (negativa) puede indicar una puntuación poco realista del nivel de acciones y medidas vigentes para responder al peligro específico."]
[null," - Debe completar todas las columnas de entrada de datos para un evento de peligro asociado en una familia de amenazas para que la clasificación de gravedad, probabilidad y riesgo se llenen."]
[null," "]
[null,"Informes"]
[null,"> Un resumen de los datos por cada subfamilia de riesgo se rellenará automáticamente en la pestaña \"Data Scores” (Resultados de datos) para permitir un análisis individualizado de los resultados. Esta pestaña incluye un resumen de las puntuaciones obtenidas como resultado de la evaluación que se desbloqueará para que el usuario lo use según sea necesario."]
[null,"> La herramienta también proporciona dos Informes combinados en dos fichas consecutivas: \"Risk Summary” (Resumen de Riesgos) y “Vulnerability Report” (Informe de Vulnerabilidad)."]
[null,"a) El “Risk Summary” mapea la probabilidad de desastre y la gravedad en la primera tabla en comparación con todos los peligros / eventos de peligro evaluados. La segunda tabla muestra la Exposición y Vulnerabilidad de Desastre en comparación con todos los peligros / eventos de peligro evaluados."]
[null,"b) El “Vulnerability Report” mapea las cuatro categorías de vulnerabilidad y las puntuaciones de vulnerabilidad individualmente."]
[null,"Estos Informes proporcionan una representación visual o \"Dashboard\" de los resultados de la evaluación, ayudándole a analizar los resultados de su ejercicio y al desarrollar potenciales escenarios de riesgo actuales y futuros."]
[null,"Nota: El tamaño de los puntos en las tablas dentro de cada informe corresponde al valor numérico del Ranking de Probabilidad (Resumen de Riesgos) y Clasificación de Severidad (Resumen de Riesgos e Informes de Vulnerabilidad)."]
[]
[null,"- Deslizamiento de tierra: Deslizamiento después del evento: Clasificación de vulnerabilidad total: 58 out of 100; Evaluación de la probabilidad: 5 out of 100; Evaluación de la gravedad: 20 out of 100; Evaluación del riesgo: L4"]
[null," - Indundación: Indundación Repentina: Clasificación de vulnerabilidad total: 88 out of 100; Evaluación de la probabilidad: 8 out of 100; Evaluación de la gravedad: 70 out of 100 ; Evaluación del riesgo: H7"]
[null," - Ciclón Tropical: Viento: Clasificación de vulnerabilidad total: 90 out of 100; Evaluación de la probabilidad: 9 out of 100; Evaluación de la gravedad: 40 out of 100 ; Evaluación del riesgo: H7"]
[null," - Ciclón Tropical: Oleada de Tormenta: Clasificación de vulnerabilidad total: 93 out of 100; Evaluación de la probabilidad: 8 out of 100; Evaluación de la gravedad: 60 out of 100 ; Evaluación del riesgo: H7"]
[]
[]
[null,"Escenarios de la Matriz de Riesgos"]
[null,"La herramienta le ayudará a desarrollar y entender escenarios de riesgo actuales y futuros basados ​​en los resultados de su autoevaluación. Un escenario de riesgo es una evaluación integral de la gravedad y probabilidad de un peligro y su impacto total, basado en la exposición y vulnerabilidad de la ciudad a la pérdida de vidas, daños u otros impactos adversos en el desastre resultante. Identificar escenarios es fundamental para entender el nivel de riesgo de cada desastre potencial y su impacto en la locación especificada. Esto permitirá que las ciudades establezcan una medida de referencia de su nivel actual de resiliencia ante desastres, identifiquen las prioridades para la inversión y la acción y sigan sus progresos para mejorar su resiliencia a los desastres en el tiempo."]
[null,"La herramienta puede aplicarse al desarrollo de diferentes escenarios de riesgo basados ​​en:"]
[null," 1) un solo peligro principal dentro de una familia de riesgo seleccionada. Por ejemplo, un terremoto (principal riesgo dentro de la familia de peligros geofísicos) en un entorno costero causando movimiento en el suelo seguido por un tsunami."]
[null," 2) Un riesgo compuesto como resultado de una combinación de dos o más peligros principales dentro de la misma familia de riesgo. Por ejemplo, un escenario de riesgo resultante de la combinación de un evento de sequía (principal riesgo dentro de la familia de riesgos climatológicos) y un evento de incendio forestal (principal riesgo dentro de la familia de riesgos climatológicos) que provoca incendios forestales y de arbustos."]
[null," 3) Una combinación de los peligros principales entre diferentes familias de riesgo. Por ejemplo, un escenario de riesgo en el que hay actividad volcánica (riesgo principal dentro de la familia de riesgos geofísicos) y deslizamiento de tierra (principal riesgo dentro de la familia de peligros hidrológicos), causando movimiento en el suelo, flujo de lava y suelo expansivo que tienen efectos combinados en el entorno urbano / rural del estudio."]
[]
[]
[null,"Notas:"]
[]
[null,"El nivel de riesgo para cada escenario identificado puede determinarse utilizando la Matriz de Riesgos incluida en la pestaña \"Risk Matrix” (Matriz de Riesgos). A cada escenario se le asigna una prioridad basada en el nivel de riesgo determinado. Esto le ayudará a identificar los riesgos que requieren acción prioritaria y los que sólo requieren una supervisión y revisión continua. También hay una tabla de \"Guía de Probabilidad\" incluida en la pestaña Matriz de Riesgos. Esta guía está diseñada para ayudar al usuario a comprender la probabilidad y las definiciones alineadas con las categorías de calificación."]
[]
[null,"Caso de Estudio:"]
[null,"A number of risk scenarios can be developed as a result of the city of Mackay's assessment. As explained above, scenarios can be built within or across Hazard Families and Main Hazards, hazard events or a combination of these. In this case study, three potential scenarios have been developed below:"]
[]
[null,"1) Scenario #1: A riverine flood."]
[null,"2) Scenario #2: A convective storm with hail and damaging winds."]
[null,"3) Scenario #3: An earthquake causing ground movement, followed by landslide and riverine flooding."]
[]
[null,"Key Data and formulas to use in scenarios calculations:"]
[null,"  - A Riverine flood has a Likelihood Ranking of 8.5 and a Severity Rating of 65.0."]
[null,"  - A Convective storm as a Likelihood Ranking of 4.0 (with hail) and 7.0 (with wind) and a Severity Rating of 5.0 (with hail) and 40.0 (with wind)."]
[null,"  - Earthquake causing Ground Movement has a Likelihood Ranking of 6.5 and a Severity Rating of 45.0."]
[null,"  - Earthquake causing landslide following event has a Likelihood Ranking of 7.5 and a Severity Rating of 60.0."]
[]
[null,"  - Average Likelihood Ranking (LR): LR1 + LR2 + LR3 divided by Total Number of LR Assessed"]
[null,"  - Weighted Average Severity Rating (ASR): (LR1 x SR1) + (LR2 x SR2) divided by 10, where SR is the Severity Rating for each hazard event assessed."]
[]
[null,"Para determinar el nivel de riesgo de cada escenario, nos referimos a la Matriz de Riesgos proporcionada."]
[]
[null,"1) Escenario #1: "]
[null,"     - En base a la clasificación de probabilidad obtenida, es decir, 8.5, el ranking de verosimilitud del escenario basado en la exposición y la vulnerabilidad, en comparación con otros posibles escenarios en la ciudad de Mackay, se clasifica como \"Muy Alto\"."]
[null,"     - Basándose en la clasificación de gravedad obtenida, es decir, 65.0, la gravedad del evento se clasifica como \"Mayor\"."]
[null,"     - Como resultado, se obtiene un nivel de riesgo final de \"H8\"."]
[null,"2) Escenario #2:"]
[null,"    - Como este escenario se basa en dos eventos de amenaza dentro de la misma subfamilia de riesgo, la puntuación de la clasificación de probabilidad promedio se calcula usando la puntuación de clasificación de probabilidad para cada evento de peligro. En este caso, el puntaje promedio de clasificación de probabilidad es igual a 5,5 (es decir, 4,0 + 7,0 / 2), por lo que el ranking de probabilidad del escenario basado en la exposición y la vulnerabilidad, en comparación con otros escenarios posibles en la ciudad de Mackay, se clasifica como \"Moderado\"."]
[null,"     - La clasificación de gravedad media ponderada se calcula utilizando la calificación de gravedad de cada evento de riesgo ponderada por la puntuación de probabilidad de cada evento de riesgo. La escala de gravedad del escenario es igual a 30 (es decir, 4,0 x 5,0 + 7,0 x 40,0 / 10), por lo que la gravedad del escenario se clasifica como \"Moderada\"."]
[null,"     - Como resultado, se obtiene un nivel de riesgo final de \"M5\"."]
[null,"3) Escenario #3: "]
[null,"    - Como este escenario se basa en tres eventos de riesgo, la puntuación de la clasificación de probabilidad promedio se calcula usando la puntuación de clasificación de probabilidad para cada evento de peligro. En este caso, el puntaje promedio de clasificación de probabilidad es igual a 7,5 (es decir, 6,5 + 7,5 + 8,5 / 3), por lo que el ranking de probabilidad del escenario basado en la exposición y vulnerabilidad, en comparación con otros posibles escenarios en la ciudad de Mackay, se clasifica como “Alto\"."]
[null,"     - Dado que este escenario se basa en el riesgo de diferentes sub-familias de riesgo (es decir, dos dentro de la subfamilia de riesgo geofísico y uno dentro de la subfamilia de riesgo hidrológico), la calificación de gravedad media ponderada se calcula de la siguiente manera: se calcula la calificación de gravedad para el evento de peligro de la misma subfamilia (es decir, movimiento en tierra y deslizamiento de tierra) usando la puntuación de severidad de cada evento de peligro ponderada por la puntuación de probabilidad de cada evento de riesgo (74.25, [6.5 x 45.0] + [7.5 X 60.0] / 10); en segundo lugar, la clasificación de gravedad del tercer evento de amenaza (inundación) se multiplica por su puntuación de clasificación de probabilidad (55.25, es decir [8.5 X 65.0] / 10); finalmente, se obtiene el promedio de las dos calificaciones calculadas (64,75, es decir [74,25 + 55,25] / 2). Por lo tanto, la escala de gravedad promedio del escenario es igual a 64,75, por lo que la gravedad del escenario se clasifica como \"Mayor\"."]
[null,"     - Como resultado, se obtiene un nivel de riesgo final de \"H7\"."]
[null," "]
[]
[null,"Estos escenarios pueden priorizarse en función de su nivel de riesgo, es decir, escenario # 1> escenario # 3> escenario # 2. Esto guiará a la ciudad de Mackay en el diseño de un plan de acción."]
[]
[]
["Fin"]

{"sheet":"Hazard Glossary","index":2,"n_rows":90,"n_cols":16384,"rows_kept":90,"cut":false,"hidden":false,"merged":[]}
[{"$f":"MdlTle","v":"Herramienta Rápida de Estimación del Riesgo"}]
[{"$f":"MID(CELL(\"filename\",A1),FIND(\"]\",CELL(\"filename\",A1))+1,255)","v":"Hazard Glossary"}]
[]
[]
[null,"Accidente aéreo","Para actualizarse"]
[null,"Accidente de navegación","Para actualizarse"]
[null,"Accidente de tráfico","Para actualizarse"]
[null,"Accidente ferroviario","Para actualizarse"]
[null,"Acción de ola","Las ondas de superficie generadas por el viento que pueden ocurrir en la superficie de cualquier cuerpo de agua abierto como océanos, ríos y lagos, etc. El tamaño de la ola depende de la fuerza del viento y de la distancia recorrida."]
[null,"Actividad volcánica","Tipo de evento volcánico cerca de una abertura / ventilación en la superficie de la Tierra incluyendo erupciones volcánicas de lava, ceniza, vapor caliente, gas y material piroclástico."]
[null,"Incidente con animales","Encuentros humanos con animales peligrosos o exóticos en ambientes tanto urbanos como rurales."]
[null,"Avalanche","Una gran masa de material de tierra suelta, nieve o hielo que se desliza, fluye o cae rápidamente por la ladera de una montaña bajo la fuerza de la gravedad.\n• Avalancha de nieve: Movimiento rápido hacia abajo de una mezcla de nieve y hielo.\n• Avalancha de escombros: El repentino y muy rápido movimiento hacia abajo de la masa sin clasificar de roca y suelo. Hay dos tipos generales de avalanchas de escombros: una avalancha de desechos fríos suele ser el resultado de una pendiente inestable que se derrumba repentinamente, mientras que una avalancha de escombros calientes es el resultado de la actividad volcánica que conduce a la inestabilidad de la pendiente y al colapso."]
[null,"Caída de ceniza","Desechos volcánicos no consolidados (menos de 4 mm de diámetro) soplados en la atmósfera durante una erupción; pueden permanecer en el aire durante largos períodos de tiempo y viajar considerable distancia de la fuente."]
[null,"Caída de lodo (chubasco) / caída de rocas / debris","Tipos de deslizamientos de tierra que ocurren cuando la lluvia pesada o el derretimiento rápido de la nieve / del hielo envían grandes cantidades de la vegetación, del fango, o de la roca pendiente abajo por las fuerzas gravitacionales."]
[null,"Ciclón tropical","Un ciclón tropical se origina en aguas tropicales o subtropicales. Se caracteriza por un ciclón de escala sinóptica de núcleo cálido, no frontal con un centro de baja presión, bandas de lluvia espirales y fuertes vientos. Dependiendo de su ubicación, los ciclones tropicales son conocidos como huracanes (Atlántico, Pacífico Nordeste), tifones (Pacífico Noroeste) o ciclones (Pacífico Sur y Océano Índico)."]
[null,"Colapso estructural","Para actualizarse"]
[null,"Helada/ Congelación","Una tormenta de invierno es la consecuencia del enfriamiento radiativo que resulta en la formación de finos cristales de hielo en el suelo u otras superficies en forma de agujas, plumas, escamas o ventiladores. La helada ocurre cuando la temperatura de las superficies está por debajo de la congelación y el vapor de agua del aire húmedo forma depósitos sólidos en la superficie fría. El congelamiento ocurre cuando la temperatura del aire está a (32 ° F / 0 ° C) o por debajo en un área extensa durante un período de tiempo climatológicamente significativo. El uso del término generalmente se restringe a situaciones advectivas o a ocasiones en que el viento u otras condiciones previenen la helada. La helada y el congelamiento son especialmente dañinos durante la temporada de cultivo."]
[null,"Contaminación radioactiva (incidente nuclear)","Para actualizarse"]
[null,"Corte de energía","Para actualizarse"]
[null,"Derecho","Tormentas generalizadas y generalmente rápidas asociadas con la convección / tormenta convectiva. Los derechos incluyen vientos descendentes y lineales. El daño de los derechos a menudo se confunde con el daño de los tornados."]
[null,"Derrame de petróleo","Para actualizarse"]
[null,"Derrame químico","Para actualizarse"]
[null,"Desastre de minas","Para actualizarse"]
[null,"Desastre industrial","Para actualizarse"]
[null,"Desbordamiento de ríos","Un tipo de inundación resultante del desbordamiento de agua de un arroyo o canal de río sobre terreno normalmente seco en la planicie de inundación adyacente al canal."]
[null,"Deslizamiento","El colapso de la superficie terrestre debido a la disolución de las rocas subsuperficiales como la piedra caliza o carbonato de roca por el agua."]
[null,"Deslizamiento después de terremoto","Independientemente de la presencia de agua, el movimiento de masas también puede ser desencadenado por terremotos."]
[null,"Disturbios de radio","Disparado por las emisiones de rayos X del Sol golpeando la atmósfera de la Tierra y causando perturbaciones en la ionosfera, como el atasco de señales de radio de alta y / o baja frecuencia. Esto afecta a las comunicaciones de radio por satélite y los sistemas de posicionamiento global (GPS)."]
[null,"Enfermedad de los priones","Un tipo de riesgo biológico causado por proteínas priónicas. Las enfermedades de priones o las encefalopatías espongiformes transmisibles (EET) son una familia de trastornos neurodegenerativos poco frecuentes y progresivos que afectan tanto a seres humanos como a animales, caracterizados por largos períodos de incubación y pérdidas neuronales. Ejemplos son encefalopatía espongiforme bovina (BSE), enfermedad de Creutzfeldt-Jakob (CJD), Kuru, etc."]
[null,"Enfermedad fúngica","Exposición a hongos ya sea por contacto con la piel, ingestión o inhalación de esporas, lo que resulta en un aumento inusual en el número de incidentes. Ejemplos son la neumonía por hongos, la meningitis por hongos, etc."]
[null,"Enfermedad Parasitaria","La exposición a un parásito -un organismo que vive en un huésped- causa un aumento inusual en el número de incidentes. La exposición a parásitos ocurre principalmente a través de agua contaminada, comida o contacto con insectos, animales (zoonóticos), mascotas, etc. Ejemplos son la malaria, la enfermedad de chagas, la giardiasis y la triquinosis."]
[null,"Enfermedades","Un aumento inusual, a menudo repentino, en el número de incidentes de una enfermedad infecciosa que ya existía en la región (por ejemplo, la gripe, E. coli) o la aparición de una enfermedad infecciosa previamente ausente de la región (por ejemplo, la peste, la poliomielitis )."]
[null,"Enfermedades bacterianas","Un aumento inusual en el número de incidentes causados ​​por la exposición a las bacterias ya sea por contacto con la piel, ingestión o inhalación. Los ejemplos incluyen salmonella, MSRA, y cólera, entre otros."]
[null,"Erosión costera","La pérdida temporal o permanente de sedimentos o masas terrestres en márgenes costeros debido a la acción de olas, vientos, mareas o actividades antropogénicas,"]
[null,"Explosión del lago glacial","Una inundación que ocurre cuando el agua retenida por un glaciar o morrena es liberada repentinamente. Los lagos glaciales pueden estar en la parte delantera del glaciar (lago marginal) o debajo de la capa de hielo (lago subglaciar)."]
[null,"Explosión en el aire","Una explosión de un cometa o meteoróide dentro de la atmósfera terrestre sin golpear el suelo."]
[null,"Explosión industrial","Para actualizarse"]
[null,"Flujo de lava","El magma expulsado que se mueve como una masa líquida descendente de un volcán durante una erupción."]
[null,"Flujos piroclásticos","Gases extremadamente calientes, cenizas y otros materiales de más de 1.000 grados Celsius que fluyen rápidamente por el flanco de un volcán (más de 700 km / h) durante una erupción."]
[null,"Fuego","Para actualizarse"]
[null,"Fuego descontrolado","Cualquier combustión o incineración incontrolada y no prescrita de plantas en un entorno natural, como un bosque, praderas, matorrales o tundra, que consume los combustibles naturales y se propaga en función de las condiciones ambientales (por ejemplo, el viento, la topografía). Los incendios forestales pueden ser provocados por rayos o acciones humanas."]
[null,"Fuego después de Terremoto","Incendios urbanos provocados por terremotos. Las zonas particularmente susceptibles son los edificios de madera densamente localizados que dominan la arquitectura local y donde el terremoto ha dañado o roto las tuberías de agua y gas. Los pequeños incendios locales tienen el potencial de fundirse en conflagraciones destruyendo muchos bloques de la ciudad."]
[null,"Fuego forestal","Un tipo de incendio forestal en una zona boscosa."]
[null,"Hielo","Precipitación sólida en forma de bolitas irregulares o bolas de hielo de más de 5 mm de diámetro."]
[null,"Hundimiento","La subsidencia se refiere al hundimiento del suelo debido a la remoción del agua subterránea, la minería, la disolución de la piedra caliza (por ejemplo, karst, sumideros), extracción de gas natural y terremotos."]
[null,"Impacto","Un tipo de peligro extraterrestre causado por la colisión de la Tierra con un meteorito, un asteroide o un cometa."]
[null,"Incidente Espacial","Para actualizarse"]
[null,"Indundaciones","Un término general para el desbordamiento de agua de un canal de arroyo sobre tierra normalmente seca en la llanura de inundación (inundaciones fluviales), niveles más altos de lo normal a lo largo de la costa y en lagos o embalses (inundaciones costeras) o en el punto donde cayó la lluvia (inundaciones repentinas)."]
[null,"Infestación de insectos","El influjo penetrante, el enjambre y / o la eclosión de insectos que afectan a los seres humanos, animales, cultivos y productos perecederos. Los ejemplos son las langostas y las abejas africanas."]
[null,"Inundación costera","Niveles de agua más altos de lo normal a lo largo de la costa causados ​​por cambios de marea o tormentas eléctricas que resultan en inundaciones, que pueden durar de días a semanas."]
[null,"Inundación de hielo","La acumulación de hielo flotante restringiendo o bloqueando el flujo y drenaje de un río. Los atascos de hielo tienden a desarrollarse cerca de las curvas y obstrucciones del río (por ejemplo, puentes)."]
[null,"Inundación repentina","Precipitaciones fuertes o excesivas en un corto período de tiempo que producen escurrimiento inmediato, creando condiciones de inundación en cuestión de minutos o pocas horas durante o después de la lluvia."]
[null,"Lahar","Mezcla caliente o fría de material de tierra que fluye en la pendiente de un volcán durante o entre erupciones volcánicas."]
[null,"Licuefacción","La transformación del suelo (parcialmente) saturado en agua de un estado sólido a un estado líquido causado por un terremoto. La licuefacción reduce la resistencia y la rigidez del suelo, haciendo que los edificios se derrumben."]
[null,"Lluvia","El vapor de agua se condensa en la atmósfera para formar gotitas de agua que caen a la Tierra."]
[null,"Movimiento del suelo","Desplazamiento superficial de materiales de tierra debido al movimiento de tierra provocado por terremotos o erupciones volcánicas."]
[null,"Movimiento masivo","Cualquier tipo de movimiento descendente de materiales de tierra."]
[null,"Niebla","Gotas de agua que están suspendidas en el aire cerca de la superficie de la Tierra. La niebla es simplemente una nube que está en contacto con el suelo."]
[null,"Nieve, hielo","Precipitación en forma de cristales de hielo / copos de nieve o pellets de hielo (aguanieve) formada directamente de vapor de agua congelada en el aire. El hielo se acumula cuando la lluvia cae sobre la superficie fría y se congela."]
[null,"Ola de calor","Un período de tiempo anormalmente caliente y / o inusualmente húmedo. Normalmente, una ola de calor dura dos o más días. Los criterios exactos de temperatura para lo que constituye una ola de calor varían según la ubicación."]
[null,"Ola de frío","Un período de tiempo anormalmente frío. Típicamente, una onda fría dura dos o más días y puede ser agravada por fuertes vientos. Los criterios exactos de temperatura para lo que constituye una onda fría varían según la ubicación."]
[null,"Ola gigante","Una cresta única inusual de una ola oceánica lejos en el mar que es mucho más alta y / o más escarpada que otras ondas en el sistema predominante de oleaje."]
[null,"Oleada de tormenta","Un aumento anormal del nivel del mar generado por un ciclón tropical u otras tormentas intensas."]
[null,"Onda de choque","Una onda de choque transporta la energía de una perturbación a través de un medio (sólido, líquido, gas) similar a una onda aunque viaja a una velocidad mucho más alta. Puede ser un tipo de peligro extraterrestre causado por la explosión (explosión de aire) o el impacto de meteoritos que generan ondas de energía capaces de romper vidrio, colapsar paredes, etc."]
[null,"Partículas energéticas","Emisiones de tormentas de radiación solar que consisten en trozos de materia (por ejemplo, protones y otras partículas cargadas) que se mueven a muy alta velocidad. La magnetosfera y la atmósfera bloquean las partículas energéticas (SEP) de llegar a los seres humanos en la Tierra, pero dañan la electrónica de la tecnología espacial (como los satélites) y representan un peligro de radiación para la vida en el espacio y las aeronaves que viajan en altitudes elevadas."]
[null,"Peligro Biológico","Peligro causado por la exposición a los organismos vivos y sus sustancias tóxicas (por ejemplo, veneno, moho) o enfermedades transmitidas por vectores que pueden transportar. Ejemplos son la fauna venenosa y los insectos, las plantas venenosas y los mosquitos portadores de agentes causantes de enfermedades como parásitos, bacterias o virus (por ejemplo, la malaria)."]
[null,"Peligro Climatológico","Riesgo causado por procesos atmosféricos de larga duración, de meso a macroescala, que van desde la variabilidad climática intraestacional hasta multidecadal."]
[null,"Peligro Extra-terrestre","Un peligro causado por asteroides, meteoroides y cometas a medida que pasan cerca de la tierra, entran en la atmósfera de la Tierra y / o golpean la Tierra, y por los cambios en las condiciones interplanetarias que afectan la magnetosfera, la ionosfera y la termosfera de la Tierra."]
[null,"Peligro geofísico","Un peligro que se origina en tierra firme. Este término se utiliza indistintamente con el término peligro geológico."]
[null,"Peligro hidrológico","Peligro causado por la ocurrencia, movimiento y distribución de aguas superficiales y subterráneas de agua dulce y salada."]
[null,"Peligro meteorológico","Riesgo causado por condiciones meteorológicas extremas y condiciones atmosféricas de corta duración, micro- a meso-escala que duran de minutos a días."]
[null,"Relámpagos","Una descarga eléctrica de alta tensión, visible producida por una tormenta y seguida por el sonido del trueno."]
[null,"Seiche","Una ola permanente de agua en un gran cuerpo de agua semi-o completamente cerrado (lagos o bahías) creado por fuertes vientos y / o un gran gradiente de presión barométrica."]
[null,"Sequía","Un período extendido de precipitación inusualmente baja que produce una escasez de agua para las personas, los animales y las plantas. La sequía es diferente de la mayoría de los otros peligros, ya que se desarrolla lentamente, a veces incluso durante años, y su aparición es generalmente difícil de detectar. La sequía no es sólo un fenómeno físico porque sus impactos pueden ser exacerbados por las actividades humanas y las demandas de abastecimiento de agua. Por lo tanto, la sequía se define a menudo conceptualmente y operacionalmente. Las definiciones operacionales de la sequía, es decir el grado de reducción de las precipitaciones que constituye una sequía, varían según la localidad, el clima y el sector ambiental."]
[null,"Suelo expansivo","El material de tierra, particularmente las arcillas que, al mojarse, congelarse o secarse, se expandirán o contraerán alternativamente causando daño a las cimentaciones de edificios y otras estructuras. El encogimiento se denomina generalmente desecación."]
[null,"Sumidero","El colapso de la superficie terrestre debido a la disolución de las rocas subsuperficiales como la piedra caliza o carbonato de roca por el agua."]
[null,"Temperatura Extrema","Un término general para las variaciones de temperatura por encima (calor extremo) o por debajo (frío extremo) condiciones normales."]
[null,"Terremoto","Movimiento súbito de un bloque de la corteza terrestre a lo largo de una falla geológica y agitación asociada del suelo."]
[null,"Tiempo Espacial","Un término general para condiciones climáticas extraterrestres impulsadas por erupciones solares tales como tormentas geomagnéticas, perturbaciones de radio y partículas energéticas solares."]
[null,"Tormanta Convectiva","Tipo de peligro meteorológico generado por el calentamiento del aire y la disponibilidad de masas de aire húmedas e inestables. Las tormentas convectivas van desde tormentas localizadas (con fuertes lluvias y / o granizo, relámpagos, vientos fuertes, tornados) hasta eventos de varios días a escala meso."]
[null,"Tormenta de Arena","Los fuertes vientos transportan partículas de arena en alto, pero generalmente limitadas a menos de 15 m (15 pies), especialmente comunes en ambientes áridos y semiáridos. Una tormenta de polvo también se caracteriza por fuertes vientos pero lleva partículas más pequeñas de polvo en lugar de arena sobre una extensa área."]
[null,"Tormenta de invierno","Un sistema de baja presión en los meses de invierno con acumulaciones significativas de nieve, lluvia helada, aguanieve o hielo. Una tormenta de nieve es una tormenta de nieve severa con vientos de más de 35 mph (56 km / h) durante tres o más horas."]
[null,"Tormenta Extratropical","Un tipo de sistema ciclónico de baja presión en las latitudes medias y altas (también llamado ciclón de latitud media) que obtiene principalmente su energía de la temperatura horizontal contrasta (frentes) en la atmósfera. Cuando se asocian con frentes fríos, los ciclones extratropicales pueden ser particularmente perjudiciales (por ejemplo, invierno / tormenta europea, Nor'easter)."]
[null,"Tormenta geomagnética","Un tipo de peligro extraterrestre causado por las ondas de choque del viento solar que perturban temporalmente la magnetosfera de la Tierra. Las tormentas geomagnéticas pueden interrumpir las redes eléctricas, las operaciones de las naves espaciales y las comunicaciones por satélite."]
[null,"Tornado","Una columna de aire que gira violentamente y llega al suelo o al agua abierta (tromba de agua)."]
[null,"Tsunami","Una serie de ondas (con largas longitudes de onda cuando se viaja a través del océano profundo) que se generan por un desplazamiento de grandes cantidades de agua a través de terremotos submarinos, erupciones volcánicas o deslizamientos de tierra. Las olas del tsunami viajan a muy alta velocidad a través del océano, pero cuando empiezan a llegar a aguas poco profundas se ralentizan y la ola crece más empinada."]
[null,"Viento","Diferencias en la presión del aire que resultan en el movimiento horizontal del aire. Cuanto mayor es la diferencia en la presión, más fuerte es el viento. El viento se mueve de la alta presión hacia la baja presión."]
[]
[]
["Fin",null,null,null,null,null,null,null,null,null,null,null,"End","End","End","End","End","End","End","End","End","End","End","End","End","End","End","End","End","End","End","End","End","End","End","End","End","End","End","End","End","End","End","End","End","End","End","End","End","End","End","End","End","End","End","End","End","End","End","End","End","End","End","End","End","End","End","End","End","End","End","End","End","End","End","End","End","End","End","End","End","End","End","End","End","End","End","End","End","End","End","End","End","End","End","End","End","End","End","End","End","End","End","End","End","End","End","End","End","End","End","End","End","End","End","End","End","End","End","End","End","End","End","End","End","End","End","End","End","End","End","End","End","End","End","End","End","End","End","End","End","End","End","End","End","End","End","End","End","End","End","End","End","End","End","End","End","End","End","End","End","End","End","End","End","End","End","End","End","End","End","End","End","End","End","End","End","End","End","End","End","End","End","End","End","End","End","End","End","End","End","End","End","End","End","End","End","End","End","End","End","End","End","End","End","End","End","End","End","End","End","End","End","End","End","End","End","End","End","End","End","End","End","End","End","End","End","End","End","End","End","End","End","End","End","End","End","End","End","End","End","End","End","End","End","End","End","End","End","End","End","End","End","End","End","End","End","End","End","End","End","End","End","End","End","End","End","End","End","End","End","End","End","End","End","End","End","End","End","End","End","End","End","End","End","End","End","End","End","End","End","End","End","End","End","End","End","End","End","End","End","End","End","End","End","End","End","End","End","End","End","End","End","End","End","End","End","End","End","End","End","End","End","End","End","End","End","End","End","End","End","End","End","End","End","End","End","End","End","End","End","End","End","End","End","End","End","End","End","End","End","End","End","End","End","End","End","End","End","End","End","End","End","End","End","End","End","End","End","End","End","End","End","End","End","End","End","End","End","End","End","End","End","End","End","End","End","End","End","End","End","End","End","End","End","End","End","End","End","End","End","End","End","End","End","End","End","End","End","End","End","End","End","End","End","End","End","End","End","End","End","End","End","End","End","End","End","End","End","End","End","End","End","End","End","End","End","End","End","End","End","End","End","End","End","End","End","End","End","End","End","End","End","End","End","End","End","End","End","End","End","End","End","End","End","End","End","End","End","End","End","End","End","End","End","End","End","End","End","End","End","End","End","End","End","End","End","End","End","End","End","End","End","End","End","End","End","End","End","End","End","End","End","End","End","End","End","End","End","End","End","End","End","End","End","End","End","End","End","End","End","End","End","End","End","End","End","End","End","End","End","End","End","End","End","End","End","End","End","End","End","End","End","End","End","End","End","End","End","End","End","End","End","End","End","End","End","End","End","End","End","End","End","End","End","End","End","End","End","End","End","End","End","End","End","End","End","End","End","End","End","End","End","End","End","End","End","End","End","End","End","End","End","End","End","End","End","End","End","End","End","End","End","End","End","End","End","End","End","End","End","End","End","End","End","End","End","End","End","End","End","End","End","End","End","End","End","End","End","End","End","End","End","End","End","End","End","End","End","End","End","End","End","End","End","End","End","End","End","End","End","End","End","End","End","End","End","End","End","End","End","End","End","End","End","End","End","End","End","End","End","End","End","End","End","End","End","End","End","End","End","End","End","End","End","End","End","End","End","End","End","End","End","End","End","End","End","End","End","End","End","End","End","End","End","End","End","End","End","End","End","End","End","End","End","End","End","End","End","End","End","End","End","End","End","End","End","End","End","End","End","End","End","End","End","End","End","End","End","End","End","End","End","End","End","End","End","End","End","End","End","End","End","End","End","End","End","End","End","End","End","End","End","End","End","End","End","End","End","End","End","End","End","End","End","End","End","End","End","End","End","End","End","End","End","End","End","End","End","End","End","End","End","End","End","End","End","End","End","End","End","End","End","End","End","End","End","End","End","End","End","End","End","End","End","End","End","End","End","End","End","End","End","End","End","End","End","End","End","End","End","End","End","End","End","End","End","End","End","End","End","End","End","End","End","End","End","End","End","End","End","End","End","End","End","End","End","End","End","End","End","End","End","End","End","End","End","End","End","End","End","End","End","End","End","End","End","End","End","End","End","End","End","End","End","End","End","End","End","End","End","End","End","End","End","End","End","End","End","End","End","End","End","End","End","End","End","End","End","End","End","End","End","End","End","End","End","End","End","End","End","End","End","End","End","End","End","End","End","End","End","End","End","End","End","End","End","End","End","End","End","End","End","End","End","End","End","End","End","End","End","End","End","End","End","End","End","End","End","End","End","End","End","End","End","End","End","End","End","End","End","End","End","End","End","End","End","End","End","End","End","End","End","End","End","End","End","End","End","End","End","End","End","End","End","End","End","End","End","End","End","End","End","End","End","End","End","End","End","End","End","End","End","End","End","End","End","End","End","End","End","End","End","End","End","End","End","End","End","End","End","End","End","End","End","End","End","End","End","End","End","End","End","End","End","End","End","End","End","End","End","End","End","End","End","End","End","End","End","End","End","End","End","End","End","End","End","End","End","End","End","End","End","End","End","End","End","End","End","End","End","End","End","End","End","End","End","End","End","End","End","End","End","End","End","End","End","End","End","End","End","End","End","End","End","End","End","End","End","End","End","End","End","End","End","End","End","End","End","End","End","End","End","End","End","End","End","End","End","End","End","End","End","End","End","End","End","End","End","End","End","End","End","End","End","End","End","End","End","End","End","End","End","End","End","End","End","End","End","End","End","End","End","End","End","End","End","End","End","End","End","End","End","End","End","End","End","End","End","End","End","End","End","End","End","End","End","End","End","End","End","End","End","End","End","End","End","End","End","End","End","End","End","End","End","End","End","End","End","End","End","End","End","End","End","End","End","End","End","End","End","End","End","End","End","End","End","End","End","End","End","End","End","End","End","End","End","End","End","End","End","End","End","End","End","End","End","End","End","End","End","End","End","End","End","End","End","End","End","End","End","End","End","End","End","End","End","End","End","End","End","End","End","End","End","End","End","End","End","End","End","End","End","End","End","End","End","End","End","End","End","End","End","End","End","End","End","End","End","End","End","End","End","End","End","End","End","End","End","End","End","End","End","End","End","End","End","End","End","End","End","End","End","End","End","End","End","End","End","End","End","End","End","End","End","End","End","End","End","End","End","End","End","End","End","End","End","End","End","End","End","End","End","End","End","End","End","End","End","End","End","End","End","End","End","End","End","End","End","End","End","End","End","End","End","End","End","End","End","End","End","End","End","End","End","End","End","End","End","End","End","End","End","End","End","End","End","End","End","End","End","End","End","End","End","End","End","End","End","End","End","End","End","End","End","End","End","End","End","End","End","End","End","End","End","End","End","End","End","End","End","End","End","End","End","End","End","End","End","End","End","End","End","End","End","End","End","End","End","End","End","End","End","End","End","End","End","End","End","End","End","End","End","End","End","End","End","End","End","End","End","End","End","End","End","End","End","End","End","End","End","End","End","End","End","End","End","End","End","End","End","End","End","End","End","End","End","End","End","End","End","End","End","End","End","End","End","End","End","End","End","End","End","End","End","End","End","End","End","End","End","End","End","End","End","End","End","End","End","End","End","End","End","End","End","End","End","End","End","End","End","End","End","End","End","End","End","End","End","End","End","End","End","End","End","End","End","End","End","End","End","End","End","End","End","End","End","End","End","End","End","End","End","End","End","End","End","End","End","End","End","End","End","End","End","End","End","End","End","End","End","End","End","End","End","End","End","End","End","End","End","End","End","End","End","End","End","End","End","End","End","End","End","End","End","End","End","End","End","End","End","End","End","End","End","End","End","End","End","End","End","End","End","End","End","End","End","End","End","End","End","End","End","End","End","End","End","End","End","End","End","End","End","End","End","End","End","End","End","End","End","End","End","End","End","End","End","End","End","End","End","End","End","End","End","End","End","End","End","End","End","End","End","End","End","End","End","End","End","End","End","End","End","End","End","End","End","End","End","End","End","End","End","End","End","End","End","End","End","End","End","End","End","End","End","End","End","End","End","End","End","End","End","End","End","End","End","End","End","End","End","End","End","End","End","End","End","End","End","End","End","End","End","End","End","End","End","End","End","End","End","End","End","End","End","End","End","End","End","End","End","End","End","End","End","End","End","End","End","End","End","End","End","End","End","End","End","End","End","End","End","End","End","End","End","End","End","End","End","End","End","End","End","End","End","End","End","End","End","End","End","End","End","End","End","End","End","End","End","End","End","End","End","End","End","End","End","End","End","End","End","End","End","End","End","End","End","End","End","End","End","End","End","End","End","End","End","End","End","End","End","End","End","End","End","End","End","End","End","End","End","End","End","End","End","End","End","End","End","End","End","End","End","End","End","End","End","End","End","End","End","End","End","End","End","End","End","End","End","End","End","End","End","End","End","End","End","End","End","End","End","End","End","End","End","End","End","End","End","End","End","End","End","End","End","End","End","End","End","End","End","End","End","End","End","End","End","End","End","End","End","End","End","End","End","End","End","End","End","End","End","End","End","End","End","End","End","End","End","End","End","End","End","End","End","End","End","End","End","End","End","End","End","End","End","End","End","End","End","End","End","End","End","End","End","End","End","End","End","End","End","End","End","End","End","End","End","End","End","End","End","End","End","End","End","End","End","End","End","End","End","End","End","End","End","End","End","End","End","End","End","End","End","End","End","End","End","End","End","End","End","End","End","End","End","End","End","End","End","End","End","End","End","End","End","End","End","End","End","End","End","End","End","End","End","End","End","End","End","End","End","End","End","End","End","End","End","End","End","End","End","End","End","End","End","End","End","End","End","End","End","End","End","End","End","End","End","End","End","End","End","End","End","End","End","End","End","End","End","End","End","End","End","End","End","End","End","End","End","End","End","End","End","End","End","End","End","End","End","End","End","End","End","End","End","End","End","End","End","End","End","End","End","End","End","End","End","End","End","End","End","End","End","End","End","End","End","End","End","End","End","End","End","End","End","End","End","End","End","End","End","End","End","End","End","End","End","End","End","End","End","End","End","End","End","End","End","End","End","End","End","End","End","End","End","End","End","End","End","End","End","End","End","End","End","End","End","End","End","End","End","End","End","End","End","End","End","End","End","End","End","End","End","End","End","End","End","End","End","End","End","End","End","End","End","End","End","End","End","End","End","End","End","End","End","End","End","End","End","End","End","End","End","End","End","End","End","End","End","End","End","End","End","End","End","End","End","End","End","End","End","End","End","End","End","End","End","End","End","End","End","End","End","End","End","End","End","End","End","End","End","End","End","End","End","End","End","End","End","End","End","End","End","End","End","End","End","End","End","End","End","End","End","End","End","End","End","End","End","End","End","End","End","End","End","End","End","End","End","End","End","End","End","End","End","End","End","End","End","End","End","End","End","End","End","End","End","End","End","End","End","End","End","End","End","End","End","End","End","End","End","End","End","End","End","End","End","End","End","End","End","End","End","End","End","End","End","End","End","End","End","End","End","End","End","End","End","End","End","End","End","End","End","End","End","End","End","End","End","End","End","End","End","End","End","End","End","End","End","End","End","End","End","End","End","End","End","End","End","End","End","End","End","End","End","End","End","End","End","End","End","End","End","End","End","End","End","End","End","End","End","End","End","End","End","End","End","End","End","End","End","End","End","End","End","End","End","End","End","End","End","End","End","End","End","End","End","End","End","End","End","End","End","End","End","End","End","End","End","End","End","End","End","End","End","End","End","End","End","End","End","End","End","End","End","End","End","End","End","End","End","End","End","End","End","End","End","End","End","End","End","End","End","End","End","End","End","End","End","End","End","End","End","End","End","End","End","End","End","End","End","End","End","End","End","End","End","End","End","End","End","End","End","End","End","End","End","End","End","End","End","End","End","End","End","End","End","End","End","End","End","End","End","End","End","End","End","End","End","End","End","End","End","End","End","End","End","End","End","End","End","End","End","End","End","End","End","End","End","End","End","End","End","End","End","End","End","End","End","End","End","End","End","End","End","End","End","End","End","End","End","End","End","End","End","End","End","End","End","End","End","End","End","End","End","End","End","End","End","End","End","End","End","End","End","End","End","End","End","End","End","End","End","End","End","End","End","End","End","End","End","End","End","End","End","End","End","End","End","End","End","End","End","End","End","End","End","End","End","End","End","End","End","End","End","End","End","End","End","End","End","End","End","End","End","End","End","End","End","End","End","End","End","End","End","End","End","End","End","End","End","End","End","End","End","End","End","End","End","End","End","End","End","End","End","End","End","End","End","End","End","End","End","End","End","End","End","End","End","End","End","End","End","End","End","End","End","End","End","End","End","End","End","End","End","End","End","End","End","End","End","End","End","End","End","End","End","End","End","End","End","End","End","End","End","End","End","End","End","End","End","End","End","End","End","End","End","End","End","End","End","End","End","End","End","End","End","End","End","End","End","End","End","End","End","End","End","End","End","End","End","End","End","End","End","End","End","End","End","End","End","End","End","End","End","End","End","End","End","End","End","End","End","End","End","End","End","End","End","End","End","End","End","End","End","End","End","End","End","End","End","End","End","End","End","End","End","End","End","End","End","End","End","End","End","End","End","End","End","End","End","End","End","End","End","End","End","End","End","End","End","End","End","End","End","End","End","End","End","End","End","End","End","End","End","End","End","End","End","End","End","End","End","End","End","End","End","End","End","End","End","End","End","End","End","End","End","End","End","End","End","End","End","End","End","End","End","End","End","End","End","End","End","End","End","End","End","End","End","End","End","End","End","End","End","End","End","End","End","End","End","End","End","End","End","End","End","End","End","End","End","End","End","End","End","End","End","End","End","End","End","End","End","End","End","End","End","End","End","End","End","End","End","End","End","End","End","End","End","End","End","End","End","End","End","End","End","End","End","End","End","End","End","End","End","End","End","End","End","End","End","End","End","End","End","End","End","End","End","End","End","End","End","End","End","End","End","End","End","End","End","End","End","End","End","End","End","End","End","End","End","End","End","End","End","End","End","End","End","End","End","End","End","End","End","End","End","End","End","End","End","End","End","End","End","End","End","End","End","End","End","End","End","End","End","End","End","End","End","End","End","End","End","End","End","End","End","End","End","End","End","End","End","End","End","End","End","End","End","End","End","End","End","End","End","End","End","End","End","End","End","End","End","End","End","End","End","End","End","End","End","End","End","End","End","End","End","End","End","End","End","End","End","End","End","End","End","End","End","End","End","End","End","End","End","End","End","End","End","End","End","End","End","End","End","End","End","End","End","End","End","End","End","End","End","End","End","End","End","End","End","End","End","End","End","End","End","End","End","End","End","End","End","End","End","End","End","End","End","End","End","End","End","End","End","End","End","End","End","End","End","End","End","End","End","End","End","End","End","End","End","End","End","End","End","End","End","End","End","End","End","End","End","End","End","End","End","End","End","End","End","End","End","End","End","End","End","End","End","End","End","End","End","End","End","End","End","End","End","End","End","End","End","End","End","End","End","End","End","End","End","End","End","End","End","End","End","End","End","End","End","End","End","End","End","End","End","End","End","End","End","End","End","End","End","End","End","End","End","End","End","End","End","End","End","End","End","End","End","End","End","End","End","End","End","End","End","End","End","End","End","End","End","End","End","End","End","End","End","End","End","End","End","End","End","End","End","End","End","End","End","End","End","End","End","End","End","End","End","End","End","End","End","End","End","End","End","End","End","End","End","End","End","End","End","End","End","End","End","End","End","End","End","End","End","End","End","End","End","End","End","End","End","End","End","End","End","End","End","End","End","End","End","End","End","End","End","End","End","End","End","End","End","End","End","End","End","End","End","End","End","End","End","End","End","End","End","End","End","End","End","End","End","End","End","End","End","End","End","End","End","End","End","End","End","End","End","End","End","End","End","End","End","End","End","End","End","End","End","End","End","End","End","End","End","End","End","End","End","End","End","End","End","End","End","End","End","End","End","End","End","End","End","End","End","End","End","End","End","End","End","End","End","End","End","End","End","End","End","End","End","End","End","End","End","End","End","End","End","End","End","End","End","End","End","End","End","End","End","End","End","End","End","End","End","End","End","End","End","End","End","End","End","End","End","End","End","End","End","End","End","End","End","End","End","End","End","End","End","End","End","End","End","End","End","End","End","End","End","End","End","End","End","End","End","End","End","End","End","End","End","End","End","End","End","End","End","End","End","End","End","End","End","End","End","End","End","End","End","End","End","End","End","End","End","End","End","End","End","End","End","End","End","End","End","End","End","End","End","End","End","End","End","End","End","End","End","End","End","End","End","End","End","End","End","End","End","End","End","End","End","End","End","End","End","End","End","End","End","End","End","End","End","End","End","End","End","End","End","End","End","End","End","End","End","End","End","End","End","End","End","End","End","End","End","End","End","End","End","End","End","End","End","End","End","End","End","End","End","End","End","End","End","End","End","End","End","End","End","End","End","End","End","End","End","End","End","End","End","End","End","End","End","End","End","End","End","End","End","End","End","End","End","End","End","End","End","End","End","End","End","End","End","End","End","End","End","End","End","End","End","End","End","End","End","End","End","End","End","End","End","End","End","End","End","End","End","End","End","End","End","End","End","End","End","End","End","End","End","End","End","End","End","End","End","End","End","End","End","End","End","End","End","End","End","End","End","End","End","End","End","End","End","End","End","End","End","End","End","End","End","End","End","End","End","End","End","End","End","End","End","End","End","End","End","End","End","End","End","End","End","End","End","End","End","End","End","End","End","End","End","End","End","End","End","End","End","End","End","End","End","End","End","End","End","End","End","End","End","End","End","End","End","End","End","End","End","End","End","End","End","End","End","End","End","End","End","End","End","End","End","End","End","End","End","End","End","End","End","End","End","End","End","End","End","End","End","End","End","End","End","End","End","End","End","End","End","End","End","End","End","End","End","End","End","End","End","End","End","End","End","End","End","End","End","End","End","End","End","End","End","End","End","End","End","End","End","End","End","End","End","End","End","End","End","End","End","End","End","End","End","End","End","End","End","End","End","End","End","End","End","End","End","End","End","End","End","End","End","End","End","End","End","End","End","End","End","End","End","End","End","End","End","End","End","End","End","End","End","End","End","End","End","End","End","End","End","End","End","End","End","End","End","End","End","End","End","End","End","End","End","End","End","End","End","End","End","End","End","End","End","End","End","End","End","End","End","End","End","End","End","End","End","End","End","End","End","End","End","End","End","End","End","End","End","End","End","End","End","End","End","End","End","End","End","End","End","End","End","End","End","End","End","End","End","End","End","End","End","End","End","End","End","End","End","End","End","End","End","End","End","End","End","End","End","End","End","End","End","End","End","End","End","End","End","End","End","End","End","End","End","End","End","End","End","End","End","End","End","End","End","End","End","End","End","End","End","End","End","End","End","End","End","End","End","End","End","End","End","End","End","End","End","End","End","End","End","End","End","End","End","End","End","End","End","End","End","End","End","End","End","End","End","End","End","End","End","End","End","End","End","End","End","End","End","End","End","End","End","End","End","End","End","End","End","End","End","End","End","End","End","End","End","End","End","End","End","End","End","End","End","End","End","End","End","End","End","End","End","End","End","End","End","End","End","End","End","End","End","End","End","End","End","End","End","End","End","End","End","End","End","End","End","End","End","End","End","End","End","End","End","End","End","End","End","End","End","End","End","End","End","End","End","End","End","End","End","End","End","End","End","End","End","End","End","End","End","End","End","End","End","End","End","End","End","End","End","End","End","End","End","End","End","End","End","End","End","End","End","End","End","End","End","End","End","End","End","End","End","End","End","End","End","End","End","End","End","End","End","End","End","End","End","End","End","End","End","End","End","End","End","End","End","End","End","End","End","End","End","End","End","End","End","End","End","End","End","End","End","End","End","End","End","End","End","End","End","End","End","End","End","End","End","End","End","End","End","End","End","End","End","End","End","End","End","End","End","End","End","End","End","End","End","End","End","End","End","End","End","End","End","End","End","End","End","End","End","End","End","End","End","End","End","End","End","End","End","End","End","End","End","End","End","End","End","End","End","End","End","End","End","End","End","End","End","End","End","End","End","End","End","End","End","End","End","End","End","End","End","End","End","End","End","End","End","End","End","End","End","End","End","End","End","End","End","End","End","End","End","End","End","End","End","End","End","End","End","End","End","End","End","End","End","End","End","End","End","End","End","End","End","End","End","End","End","End","End","End","End","End","End","End","End","End","End","End","End","End","End","End","End","End","End","End","End","End","End","End","End","End","End","End","End","End","End","End","End","End","End","End","End","End","End","End","End","End","End","End","End","End","End","End","End","End","End","End","End","End","End","End","End","End","End","End","End","End","End","End","End","End","End","End","End","End","End","End","End","End","End","End","End","End","End","End","End","End","End","End","End","End","End","End","End","End","End","End","End","End","End","End","End","End","End","End","End","End","End","End","End","End","End","End","End","End","End","End","End","End","End","End","End","End","End","End","End","End","End","End","End","End","End","End","End","End","End","End","End","End","End","End","End","End","End","End","End","End","End","End","End","End","End","End","End","End","End","End","End","End","End","End","End","End","End","End","End","End","End","End","End","End","End","End","End","End","End","End","End","End","End","End","End","End","End","End","End","End","End","End","End","End","End","End","End","End","End","End","End","End","End","End","End","End","End","End","End","End","End","End","End","End","End","End","End","End","End","End","End","End","End","End","End","End","End","End","End","End","End","End","End","End","End","End","End","End","End","End","End","End","End","End","End","End","End","End","End","End","End","End","End","End","End","End","End","End","End","End","End","End","End","End","End","End","End","End","End","End","End","End","End","End","End","End","End","End","End","End","End","End","End","End","End","End","End","End","End","End","End","End","End","End","End","End","End","End","End","End","End","End","End","End","End","End","End","End","End","End","End","End","End","End","End","End","End","End","End","End","End","End","End","End","End","End","End","End","End","End","End","End","End","End","End","End","End","End","End","End","End","End","End","End","End","End","End","End","End","End","End","End","End","End","End","End","End","End","End","End","End","End","End","End","End","End","End","End","End","End","End","End","End","End","End","End","End","End","End","End","End","End","End","End","End","End","End","End","End","End","End","End","End","End","End","End","End","End","End","End","End","End","End","End","End","End","End","End","End","End","End","End","End","End","End","End","End","End","End","End","End","End","End","End","End","End","End","End","End","End","End","End","End","End","End","End","End","End","End","End","End","End","End","End","End","End","End","End","End","End","End","End","End","End","End","End","End","End","End","End","End","End","End","End","End","End","End","End","End","End","End","End","End","End","End","End","End","End","End","End","End","End","End","End","End","End","End","End","End","End","End","End","End","End","End","End","End","End","End","End","End","End","End","End","End","End","End","End","End","End","End","End","End","End","End","End","End","End","End","End","End","End","End","End","End","End","End","End","End","End","End","End","End","End","End","End","End","End","End","End","End","End","End","End","End","End","End","End","End","End","End","End","End","End","End","End","End","End","End","End","End","End","End","End","End","End","End","End","End","End","End","End","End","End","End","End","End","End","End","End","End","End","End","End","End","End","End","End","End","End","End","End","End","End","End","End","End","End","End","End","End","End","End","End","End","End","End","End","End","End","End","End","End","End","End","End","End","End","End","End","End","End","End","End","End","End","End","End","End","End","End","End","End","End","End","End","End","End","End","End","End","End","End","End","End","End","End","End","End","End","End","End","End","End","End","End","End","End","End","End","End","End","End","End","End","End","End","End","End","End","End","End","End","End","End","End","End","End","End","End","End","End","End","End","End","End","End","End","End","End","End","End","End","End","End","End","End","End","End","End","End","End","End","End","End","End","End","End","End","End","End","End","End","End","End","End","End","End","End","End","End","End","End","End","End","End","End","End","End","End","End","End","End","End","End","End","End","End","End","End","End","End","End","End","End","End","End","End","End","End","End","End","End","End","End","End","End","End","End","End","End","End","End","End","End","End","End","End","End","End","End","End","End","End","End","End","End","End","End","End","End","End","End","End","End","End","End","End","End","End","End","End","End","End","End","End","End","End","End","End","End","End","End","End","End","End","End","End","End","End","End","End","End","End","End","End","End","End","End","End","End","End","End","End","End","End","End","End","End","End","End","End","End","End","End","End","End","End","End","End","End","End","End","End","End","End","End","End","End","End","End","End","End","End","End","End","End","End","End","End","End","End","End","End","End","End","End","End","End","End","End","End","End","End","End","End","End","End","End","End","End","End","End","End","End","End","End","End","End","End","End","End","End","End","End","End","End","End","End","End","End","End","End","End","End","End","End","End","End","End","End","End","End","End","End","End","End","End","End","End","End","End","End","End","End","End","End","End","End","End","End","End","End","End","End","End","End","End","End","End","End","End","End","End","End","End","End","End","End","End","End","End","End","End","End","End","End","End","End","End","End","End","End","End","End","End","End","End","End","End","End","End","End","End","End","End","End","End","End","End","End","End","End","End","End","End","End","End","End","End","End","End","End","End","End","End","End","End","End","End","End","End","End","End","End","End","End","End","End","End","End","End","End","End","End","End","End","End","End","End","End","End","End","End","End","End","End","End","End","End","End","End","End","End","End","End","End","End","End","End","End","End","End","End","End","End","End","End","End","End","End","End","End","End","End","End","End","End","End","End","End","End","End","End","End","End","End","End","End","End","End","End","End","End","End","End","End","End","End","End","End","End","End","End","End","End","End","End","End","End","End","End","End","End","End","End","End","End","End","End","End","End","End","End","End","End","End","End","End","End","End","End","End","End","End","End","End","End","End","End","End","End","End","End","End","End","End","End","End","End","End","End","End","End","End","End","End","End","End","End","End","End","End","End","End","End","End","End","End","End","End","End","End","End","End","End","End","End","End","End","End","End","End","End","End","End","End","End","End","End","End","End","End","End","End","End","End","End","End","End","End","End","End","End","End","End","End","End","End","End","End","End","End","End","End","End","End","End","End","End","End","End","End","End","End","End","End","End","End","End","End","End","End","End","End","End","End","End","End","End","End","End","End","End","End","End","End","End","End","End","End","End","End","End","End","End","End","End","End","End","End","End","End","End","End","End","End","End","End","End","End","End","End","End","End","End","End","End","End","End","End","End","End","End","End","End","End","End","End","End","End","End","End","End","End","End","End","End","End","End","End","End","End","End","End","End","End","End","End","End","End","End","End","End","End","End","End","End","End","End","End","End","End","End","End","End","End","End","End","End","End","End","End","End","End","End","End","End","End","End","End","End","End","End","End","End","End","End","End","End","End","End","End","End","End","End","End","End","End","End","End","End","End","End","End","End","End","End","End","End","End","End","End","End","End","End","End","End","End","End","End","End","End","End","End","End","End","End","End","End","End","End","End","End","End","End","End","End","End","End","End","End","End","End","End","End","End","End","End","End","End","End","End","End","End","End","End","End","End","End","End","End","End","End","End","End","End","End","End","End","End","End","End","End","End","End","End","End","End","End","End","End","End","End","End","End","End","End","End","End","End","End","End","End","End","End","End","End","End","End","End","End","End","End","End","End","End","End","End","End","End","End","End","End","End","End","End","End","End","End","End","End","End","End","End","End","End","End","End","End","End","End","End","End","End","End","End","End","End","End","End","End","End","End","End","End","End","End","End","End","End","End","End","End","End","End","End","End","End","End","End","End","End","End","End","End","End","End","End","End","End","End","End","End","End","End","End","End","End","End","End","End","End","End","End","End","End","End","End","End","End","End","End","End","End","End","End","End","End","End","End","End","End","End","End","End","End","End","End","End","End","End","End","End","End","End","End","End","End","End","End","End","End","End","End","End","End","End","End","End","End","End","End","End","End","End","End","End","End","End","End","End","End","End","End","End","End","End","End","End","End","End","End","End","End","End","End","End","End","End","End","End","End","End","End","End","End","End","End","End","End","End","End","End","End","End","End","End","End","End","End","End","End","End","End","End","End","End","End","End","End","End","End","End","End","End","End","End","End","End","End","End","End","End","End","End","End","End","End","End","End","End","End","End","End","End","End","End","End","End","End","End","End","End","End","End","End","End","End","End","End","End","End","End","End","End","End","End","End","End","End","End","End","End","End","End","End","End","End","End","End","End","End","End","End","End","End","End","End","End","End","End","End","End","End","End","End","End","End","End","End","End","End","End","End","End","End","End","End","End","End","End","End","End","End","End","End","End","End","End","End","End","End","End","End","End","End","End","End","End","End","End","End","End","End","End","End","End","End","End","End","End","End","End","End","End","End","End","End","End","End","End","End","End","End","End","End","End","End","End","End","End","End","End","End","End","End","End","End","End","End","End","End","End","End","End","End","End","End","End","End","End","End","End","End","End","End","End","End","End","End","End","End","End","End","End","End","End","End","End","End","End","End","End","End","End","End","End","End","End","End","End","End","End","End","End","End","End","End","End","End","End","End","End","End","End","End","End","End","End","End","End","End","End","End","End","End","End","End","End","End","End","End","End","End","End","End","End","End","End","End","End","End","End","End","End","End","End","End","End","End","End","End","End","End","End","End","End","End","End","End","End","End","End","End","End","End","End","End","End","End","End","End","End","End","End","End","End","End","End","End","End","End","End","End","End","End","End","End","End","End","End","End","End","End","End","End","End","End","End","End","End","End","End","End","End","End","End","End","End","End","End","End","End","End","End","End","End","End","End","End","End","End","End","End","End","End","End","End","End","End","End","End","End","End","End","End","End","End","End","End","End","End","End","End","End","End","End","End","End","End","End","End","End","End","End","End","End","End","End","End","End","End","End","End","End","End","End","End","End","End","End","End","End","End","End","End","End","End","End","End","End","End","End","End","End","End","End","End","End","End","End","End","End","End","End","End","End","End","End","End","End","End","End","End","End","End","End","End","End","End","End","End","End","End","End","End","End","End","End","End","End","End","End","End","End","End","End","End","End","End","End","End","End","End","End","End","End","End","End","End","End","End","End","End","End","End","End","End","End","End","End","End","End","End","End","End","End","End","End","End","End","End","End","End","End","End","End","End","End","End","End","End","End","End","End","End","End","End","End","End","End","End","End","End","End","End","End","End","End","End","End","End","End","End","End","End","End","End","End","End","End","End","End","End","End","End","End","End","End","End","End","End","End","End","End","End","End","End","End","End","End","End","End","End","End","End","End","End","End","End","End","End","End","End","End","End","End","End","End","End","End","End","End","End","End","End","End","End","End","End","End","End","End","End","End","End","End","End","End","End","End","End","End","End","End","End","End","End","End","End","End","End","End","End","End","End","End","End","End","End","End","End","End","End","End","End","End","End","End","End","End","End","End","End","End","End","End","End","End","End","End","End","End","End","End","End","End","End","End","End","End","End","End","End","End","End","End","End","End","End","End","End","End","End","End","End","End","End","End","End","End","End","End","End","End","End","End","End","End","End","End","End","End","End","End","End","End","End","End","End","End","End","End","End","End","End","End","End","End","End","End","End","End","End","End","End","End","End","End","End","End","End","End","End","End","End","End","End","End","End","End","End","End","End","End","End","End","End","End","End","End","End","End","End","End","End","End","End","End","End","End","End","End","End","End","End","End","End","End","End","End","End","End","End","End","End","End","End","End","End","End","End","End","End","End","End","End","End","End","End","End","End","End","End","End","End","End","End","End","End","End","End","End","End","End","End","End","End","End","End","End","End","End","End","End","End","End","End","End","End","End","End","End","End","End","End","End","End","End","End","End","End","End","End","End","End","End","End","End","End","End","End","End","End","End","End","End","End","End","End","End","End","End","End","End","End","End","End","End","End","End","End","End","End","End","End","End","End","End","End","End","End","End","End","End","End","End","End","End","End","End","End","End","End","End","End","End","End","End","End","End","End","End","End","End","End","End","End","End","End","End","End","End","End","End","End","End","End","End","End","End","End","End","End","End","End","End","End","End","End","End","End","End","End","End","End","End","End","End","End","End","End","End","End","End","End","End","End","End","End","End","End","End","End","End","End","End","End","End","End","End","End","End","End","End","End","End","End","End","End","End","End","End","End","End","End","End","End","End","End","End","End","End","End","End","End","End","End","End","End","End","End","End","End","End","End","End","End","End","End","End","End","End","End","End","End","End","End","End","End","End","End","End","End","End","End","End","End","End","End","End","End","End","End","End","End","End","End","End","End","End","End","End","End","End","End","End","End","End","End","End","End","End","End","End","End","End","End","End","End","End","End","End","End","End","End","End","End","End","End","End","End","End","End","End","End","End","End","End","End","End","End","End","End","End","End","End","End","End","End","End","End","End","End","End","End","End","End","End","End","End","End","End","End","End","End","End","End","End","End","End","End","End","End","End","End","End","End","End","End","End","End","End","End","End","End","End","End","End","End","End","End","End","End","End","End","End","End","End","End","End","End","End","End","End","End","End","End","End","End","End","End","End","End","End","End","End","End","End","End","End","End","End","End","End","End","End","End","End","End","End","End","End","End","End","End","End","End","End","End","End","End","End","End","End","End","End","End","End","End","End","End","End","End","End","End","End","End","End","End","End","End","End","End","End","End","End","End","End","End","End","End","End","End","End","End","End","End","End","End","End","End","End","End","End","End","End","End","End","End","End","End","End","End","End","End","End","End","End","End","End","End","End","End","End","End","End","End","End","End","End","End","End","End","End","End","End","End","End","End","End","End","End","End","End","End","End","End","End","End","End","End","End","End","End","End","End","End","End","End","End","End","End","End","End","End","End","End","End","End","End","End","End","End","End","End","End","End","End","End","End","End","End","End","End","End","End","End","End","End","End","End","End","End","End","End","End","End","End","End","End","End","End","End","End","End","End","End","End","End","End","End","End","End","End","End","End","End","End","End","End","End","End","End","End","End","End","End","End","End","End","End","End","End","End","End","End","End","End","End","End","End","End","End","End","End","End","End","End","End","End","End","End","End","End","End","End","End","End","End","End","End","End","End","End","End","End","End","End","End","End","End","End","End","End","End","End","End","End","End","End","End","End","End","End","End","End","End","End","End","End","End","End","End","End","End","End","End","End","End","End","End","End","End","End","End","End","End","End","End","End","End","End","End","End","End","End","End","End","End","End","End","End","End","End","End","End","End","End","End","End","End","End","End","End","End","End","End","End","End","End","End","End","End","End","End","End","End","End","End","End","End","End","End","End","End","End","End","End","End","End","End","End","End","End","End","End","End","End","End","End","End","End","End","End","End","End","End","End","End","End","End","End","End","End","End","End","End","End","End","End","End","End","End","End","End","End","End","End","End","End","End","End","End","End","End","End","End","End","End","End","End","End","End","End","End","End","End","End","End","End","End","End","End","End","End","End","End","End","End","End","End","End","End","End","End","End","End","End","End","End","End","End","End","End","End","End","End","End","End","End","End","End","End","End","End","End","End","End","End","End","End","End","End","End","End","End","End","End","End","End","End","End","End","End","End","End","End","End","End","End","End","End","End","End","End","End","End","End","End","End","End","End","End","End","End","End","End","End","End","End","End","End","End","End","End","End","End","End","End","End","End","End","End","End","End","End","End","End","End","End","End","End","End","End","End","End","End","End","End","End","End","End","End","End","End","End","End","End","End","End","End","End","End","End","End","End","End","End","End","End","End","End","End","End","End","End","End","End","End","End","End","End","End","End","End","End","End","End","End","End","End","End","End","End","End","End","End","End","End","End","End","End","End","End","End","End","End","End","End","End","End","End","End","End","End","End","End","End","End","End","End","End","End","End","End","End","End","End","End","End","End","End","End","End","End","End","End","End","End","End","End","End","End","End","End","End","End","End","End","End","End","End","End","End","End","End","End","End","End","End","End","End","End","End","End","End","End","End","End","End","End","End","End","End","End","End","End","End","End","End","End","End","End","End","End","End","End","End","End","End","End","End","End","End","End","End","End","End","End","End","End","End","End","End","End","End","End","End","End","End","End","End","End","End","End","End","End","End","End","End","End","End","End","End","End","End","End","End","End","End","End","End","End","End","End","End","End","End","End","End","End","End","End","End","End","End","End","End","End","End","End","End","End","End","End","End","End","End","End","End","End","End","End","End","End","End","End","End","End","End","End","End","End","End","End","End","End","End","End","End","End","End","End","End","End","End","End","End","End","End","End","End","End","End","End","End","End","End","End","End","End","End","End","End","End","End","End","End","End","End","End","End","End","End","End","End","End","End","End","End","End","End","End","End","End","End","End","End","End","End","End","End","End","End","End","End","End","End","End","End","End","End","End","End","End","End","End","End","End","End","End","End","End","End","End","End","End","End","End","End","End","End","End","End","End","End","End","End","End","End","End","End","End","End","End","End","End","End","End","End","End","End","End","End","End","End","End","End","End","End","End","End","End","End","End","End","End","End","End","End","End","End","End","End","End","End","End","End","End","End","End","End","End","End","End","End","End","End","End","End","End","End","End","End","End","End","End","End","End","End","End","End","End","End","End","End","End","End","End","End","End","End","End","End","End","End","End","End","End","End","End","End","End","End","End","End","End","End","End","End","End","End","End","End","End","End","End","End","End","End","End","End","End","End","End","End","End","End","End","End","End","End","End","End","End","End","End","End","End","End","End","End","End","End","End","End","End","End","End","End","End","End","End","End","End","End","End","End","End","End","End","End","End","End","End","End","End","End","End","End","End","End","End","End","End","End","End","End","End","End","End","End","End","End","End","End","End","End","End","End","End","End","End","End","End","End","End","End","End","End","End","End","End","End","End","End","End","End","End","End","End","End","End","End","End","End","End","End","End","End","End","End","End","End","End","End","End","End","End","End","End","End","End","End","End","End","End","End","End","End","End","End","End","End","End","End","End","End","End","End","End","End","End","End","End","End","End","End","End","End","End","End","End","End","End","End","End","End","End","End","End","End","End","End","End","End","End","End","End","End","End","End","End","End","End","End","End","End","End","End","End","End","End","End","End","End","End","End","End","End","End","End","End","End","End","End","End","End","End","End","End","End","End","End","End","End","End","End","End","End","End","End","End","End","End","End","End","End","End","End","End","End","End","End","End","End","End","End","End","End","End","End","End","End","End","End","End","End","End","End","End","End","End","End","End","End","End","End","End","End","End","End","End","End","End","End","End","End","End","End","End","End","End","End","End","End","End","End","End","End","End","End","End","End","End","End","End","End","End","End","End","End","End","End","End","End","End","End","End","End","End","End","End","End","End","End","End","End","End","End","End","End","End","End","End","End","End","End","End","End","End","End","End","End","End","End","End","End","End","End","End","End","End","End","End","End","End","End","End","End","End","End","End","End","End","End","End","End","End","End","End","End","End","End","End","End","End","End","End","End","End","End","End","End","End","End","End","End","End","End","End","End","End","End","End","End","End","End","End","End","End","End","End","End","End","End","End","End","End","End","End","End","End","End","End","End","End","End","End","End","End","End","End","End","End","End","End","End","End","End","End","End","End","End","End","End","End","End","End","End","End","End","End","End","End","End","End","End","End","End","End","End","End","End","End","End","End","End","End","End","End","End","End","End","End","End","End","End","End","End","End","End","End","End","End","End","End","End","End","End","End","End","End","End","End","End","End","End","End","End","End","End","End","End","End","End","End","End","End","End","End","End","End","End","End","End","End","End","End","End","End","End","End","End","End","End","End","End","End","End","End","End","End","End","End","End","End","End","End","End","End","End","End","End","End","End","End","End","End","End","End","End","End","End","End","End","End","End","End","End","End","End","End","End","End","End","End","End","End","End","End","End","End","End","End","End","End","End","End","End","End","End","End","End","End","End","End","End","End","End","End","End","End","End","End","End","End","End","End","End","End","End","End","End","End","End","End","End","End","End","End","End","End","End","End","End","End","End","End","End","End","End","End","End","End","End","End","End","End","End","End","End","End","End","End","End","End","End","End","End","End","End","End","End","End","End","End","End","End","End","End","End","End","End","End","End","End","End","End","End","End","End","End","End","End","End","End","End","End","End","End","End","End","End","End","End","End","End","End","End","End","End","End","End","End","End","End","End","End","End","End","End","End","End","End","End","End","End","End","End","End","End","End","End","End","End","End","End","End","End","End","End","End","End","End","End","End","End","End","End","End","End","End","End","End","End","End","End","End","End","End","End","End","End","End","End","End","End","End","End","End","End","End","End","End","End","End","End","End","End","End","End","End","End","End","End","End","End","End","End","End","End","End","End","End","End","End","End","End","End","End","End","End","End","End","End","End","End","End","End","End","End","End","End","End","End","End","End","End","End","End","End","End","End","End","End","End","End","End","End","End","End","End","End","End","End","End","End","End","End","End","End","End","End","End","End","End","End","End","End","End","End","End","End","End","End","End","End","End","End","End","End","End","End","End","End","End","End","End","End","End","End","End","End","End","End","End","End","End","End","End","End","End","End","End","End","End","End","End","End","End","End","End","End","End","End","End","End","End","End","End","End","End","End","End","End","End","End","End","End","End","End","End","End","End","End","End","End","End","End","End","End","End","End","End","End","End","End","End","End","End","End","End","End","End","End","End","End","End","End","End","End","End","End","End","End","End","End","End","End","End","End","End","End","End","End","End","End","End","End","End","End","End","End","End","End","End","End","End","End","End","End","End","End","End","End","End","End","End","End","End","End","End","End","End","End","End","End","End","End","End","End","End","End","End","End","End","End","End","End","End","End","End","End","End","End","End","End","End","End","End","End","End","End","End","End","End","End","End","End","End","End","End","End","End","End","End","End","End","End","End","End","End","End","End","End","End","End","End","End","End","End","End","End","End","End","End","End","End","End","End","End","End","End","End","End","End","End","End","End","End","End","End","End","End","End","End","End","End","End","End","End","End","End","End","End","End","End","End","End","End","End","End","End","End","End","End","End","End","End","End","End","End","End","End","End","End","End","End","End","End","End","End","End","End","End","End","End","End","End","End","End","End","End","End","End","End","End","End","End","End","End","End","End","End","End","End","End","End","End","End","End","End","End","End","End","End","End","End","End","End","End","End","End","End","End","End","End","End","End","End","End","End","End","End","End","End","End","End","End","End","End","End","End","End","End","End","End","End","End","End","End","End","End","End","End","End","End","End","End","End","End","End","End","End","End","End","End","End","End","End","End","End","End","End","End","End","End","End","End","End","End","End","End","End","End","End","End","End","End","End","End","End","End","End","End","End","End","End","End","End","End","End","End","End","End","End","End","End","End","End","End","End","End","End","End","End","End","End","End","End","End","End","End","End","End","End","End","End","End","End","End","End","End","End","End","End","End","End","End","End","End","End","End","End","End","End","End","End","End","End","End","End","End","End","End","End","End","End","End","End","End","End","End","End","End","End","End","End","End","End","End","End","End","End","End","End","End","End","End","End","End","End","End","End","End","End","End","End","End","End","End","End","End","End","End","End","End","End","End","End","End","End","End","End","End","End","End","End","End","End","End","End","End","End","End","End","End","End","End","End","End","End","End","End","End","End","End","End","End","End","End","End","End","End","End","End","End","End","End","End","End","End","End","End","End","End","End","End","End","End","End","End","End","End","End","End","End","End","End","End","End","End","End","End","End","End","End","End","End","End","End","End","End","End","End","End","End","End","End","End","End","End","End","End","End","End","End","End","End","End","End","End","End","End","End","End","End","End","End","End","End","End","End","End","End","End","End","End","End","End","End","End","End","End","End","End","End","End","End","End","End","End","End","End","End","End","End","End","End","End","End","End","End","End","End","End","End","End","End","End","End","End","End","End","End","End","End","End","End","End","End","End","End","End","End","End","End","End","End","End","End","End","End","End","End","End","End","End","End","End","End","End","End","End","End","End","End","End","End","End","End","End","End","End","End","End","End","End","End","End","End","End","End","End","End","End","End","End","End","End","End","End","End","End","End","End","End","End","End","End","End","End","End","End","End","End","End","End","End","End","End","End","End","End","End","End","End","End","End","End","End","End","End","End","End","End","End","End","End","End","End","End","End","End","End","End","End","End","End","End","End","End","End","End","End","End","End","End","End","End","End","End","End","End","End","End","End","End","End","End","End","End","End","End","End","End","End","End","End","End","End","End","End","End","End","End","End","End","End","End","End","End","End","End","End","End","End","End","End","End","End","End","End","End","End","End","End","End","End","End","End","End","End","End","End","End","End","End","End","End","End","End","End","End","End","End","End","End","End","End","End","End","End","End","End","End","End","End","End","End","End","End","End","End","End","End","End","End","End","End","End","End","End","End","End","End","End","End","End","End","End","End","End","End","End","End","End","End","End","End","End","End","End","End","End","End","End","End","End","End","End","End","End","End","End","End","End","End","End","End","End","End","End","End","End","End","End","End","End","End","End","End","End","End","End","End","End","End","End","End","End","End","End","End","End","End","End","End","End","End","End","End","End","End","End","End","End","End","End","End","End","End","End","End","End","End","End","End","End","End","End","End","End","End","End","End","End","End","End","End","End","End","End","End","End","End","End","End","End","End","End","End","End","End","End","End","End","End","End","End","End","End","End","End","End","End","End","End","End","End","End","End","End","End","End","End","End","End","End","End","End","End","End","End","End","End","End","End","End","End","End","End","End","End","End","End","End","End","End","End","End","End","End","End","End","End","End","End","End","End","End","End","End","End","End","End","End","End","End","End","End","End","End","End","End","End","End","End","End","End","End","End","End","End","End","End","End","End","End","End","End","End","End","End","End","End","End","End","End","End","End","End","End","End","End","End","End","End","End","End","End","End","End","End","End","End","End","End","End","End","End","End","End","End","End","End","End","End","End","End","End","End","End","End","End","End","End","End","End","End","End","End","End","End","End","End","End","End","End","End","End","End","End","End","End","End","End","End","End","End","End","End","End","End","End","End","End","End","End","End","End","End","End","End","End","End","End","End","End","End","End","End","End","End","End","End","End","End","End","End","End","End","End","End","End","End","End","End","End","End","End","End","End","End","End","End","End","End","End","End","End","End","End","End","End","End","End","End","End","End","End","End","End","End","End","End","End","End","End","End","End","End","End","End","End","End","End","End","End","End","End","End","End","End","End","End","End","End","End","End","End","End","End","End","End","End","End","End","End","End","End","End","End","End","End","End","End","End","End","End","End","End","End","End","End","End","End","End","End","End","End","End","End","End","End","End","End","End","End","End","End","End","End","End","End","End","End","End","End","End","End","End","End","End","End","End","End","End","End","End","End","End","End","End","End","End","End","End","End","End","End","End","End","End","End","End","End","End","End","End","End","End","End","End","End","End","End","End","End","End","End","End","End","End","End","End","End","End","End","End","End","End","End","End","End","End","End","End","End","End","End","End","End","End","End","End","End","End","End","End","End","End","End","End","End","End","End","End","End","End","End","End","End","End","End","End","End","End","End","End","End","End","End","End","End","End","End","End","End","End","End","End","End","End","End","End","End","End","End","End","End","End","End","End","End","End","End","End","End","End","End","End","End","End","End","End","End","End","End","End","End","End","End","End","End","End","End","End","End","End","End","End","End","End","End","End","End","End","End","End","End","End","End","End","End","End","End","End","End","End","End","End","End","End","End","End","End","End","End","End","End","End","End","End","End","End","End","End","End","End","End","End","End","End","End","End","End","End","End","End","End","End","End","End","End","End","End","End","End","End","End","End","End","End","End","End","End","End","End","End","End","End","End","End","End","End","End","End","End","End","End","End","End","End","End","End","End","End","End","End","End","End","End","End","End","End","End","End","End","End","End","End","End","End","End","End","End","End","End","End","End","End","End","End","End","End","End","End","End","End","End","End","End","End","End","End","End","End","End","End","End","End","End","End","End","End","End","End","End","End","End","End","End","End","End","End","End","End","End","End","End","End","End","End","End","End","End","End","End","End","End","End","End","End","End","End","End","End","End","End","End","End","End","End","End","End","End","End","End","End","End","End","End","End","End","End","End","End","End","End","End","End","End","End","End","End","End","End","End","End","End","End","End","End","End","End","End","End","End","End","End","End","End","End","End","End","End","End","End","End","End","End","End","End","End","End","End","End","End","End","End","End","End","End","End","End","End","End","End","End","End","End","End","End","End","End","End","End","End","End","End","End","End","End","End","End","End","End","End","End","End","End","End","End","End","End","End","End","End","End","End","End","End","End","End","End","End","End","End","End","End","End","End","End","End","End","End","End","End","End","End","End","End","End","End","End","End","End","End","End","End","End","End","End","End","End","End","End","End","End","End","End","End","End","End","End","End","End","End","End","End","End","End","End","End","End","End","End","End","End","End","End","End","End","End","End","End","End","End","End","End","End","End","End","End","End","End","End","End","End","End","End","End","End","End","End","End","End","End","End","End","End","End","End","End","End","End","End","End","End","End","End","End","End","End","End","End","End","End","End","End","End","End","End","End","End","End","End","End","End","End","End","End","End","End","End","End","End","End","End","End","End","End","End","End","End","End","End","End","End","End","End","End","End","End","End","End","End","End","End","End","End","End","End","End","End","End","End","End","End","End","End","End","End","End","End","End","End","End","End","End","End","End","End","End","End","End","End","End","End","End","End","End","End","End","End","End","End","End","End","End","End","End","End","End","End","End","End","End","End","End","End","End","End","End","End","End","End","End","End","End","End","End","End","End","End","End","End","End","End","End","End","End","End","End","End","End","End","End","End","End","End","End","End","End","End","End","End","End","End","End","End","End","End","End","End","End","End","End","End","End","End","End","End","End","End","End","End","End","End","End","End","End","End","End","End","End","End","End","End","End","End","End","End","End","End","End","End","End","End","End","End","End","End","End","End","End","End","End","End","End","End","End","End","End","End","End","End","End","End","End","End","End","End","End","End","End","End","End","End","End","End","End","End","End","End","End","End","End","End","End","End","End","End","End","End","End","End","End","End","End","End","End","End","End","End","End","End","End","End","End","End","End","End","End","End","End","End","End","End","End","End","End","End","End","End","End","End","End","End","End","End","End","End","End","End","End","End","End","End","End","End","End","End","End","End","End","End","End","End","End","End","End","End","End","End","End","End","End","End","End","End","End","End","End","End","End","End","End","End","End","End","End","End","End","End","End","End","End","End","End","End","End","End","End","End","End","End","End","End","End","End","End","End","End","End","End","End","End","End","End","End","End","End","End","End","End","End","End","End","End","End","End","End","End","End","End","End","End","End","End","End","End","End","End","End","End","End","End","End","End","End","End","End","End","End","End","End","End","End","End","End","End","End","End","End","End","End","End","End","End","End","End","End","End","End","End","End","End","End","End","End","End","End","End","End","End","End","End","End","End","End","End","End","End","End","End","End","End","End","End","End","End","End","End","End","End","End","End","End","End","End","End","End","End","End","End","End","End","End","End","End","End","End","End","End","End","End","End","End","End","End","End","End","End","End","End","End","End","End","End","End","End","End","End","End","End","End","End","End","End","End","End","End","End","End","End","End","End","End","End","End","End","End","End","End","End","End","End","End","End","End","End","End","End","End","End","End","End","End","End","End","End","End","End","End","End","End","End","End","End","End","End","End","End","End","End","End","End","End","End","End","End","End","End","End","End","End","End","End","End","End","End","End","End","End","End","End","End","End","End","End","End","End","End","End","End","End","End","End","End","End","End","End","End","End","End","End","End","End","End","End","End","End","End","End","End","End","End","End","End","End","End","End","End","End","End","End","End","End","End","End","End","End","End","End","End","End","End","End","End","End","End","End","End","End","End","End","End","End","End","End","End","End","End","End","End","End","End","End","End","End","End","End","End","End","End","End","End","End","End","End","End","End","End","End","End","End","End","End","End","End","End","End","End","End","End","End","End","End","End","End","End","End","End","End","End","End","End","End","End","End","End","End","End","End","End","End","End","End","End","End","End","End","End","End","End","End","End","End","End","End","End","End","End","End","End","End","End","End","End","End","End","End","End","End","End","End","End","End","End","End","End","End","End","End","End","End","End","End","End","End","End","End","End","End","End","End","End","End","End","End","End","End","End","End","End","End","End","End","End","End","End","End","End","End","End","End","End","End","End","End","End","End","End","End","End","End","End","End","End","End","End","End","End","End","End","End","End","End","End","End","End","End","End","End","End","End","End","End","End","End","End","End","End","End","End","End","End","End","End","End","End","End","End","End","End","End","End","End","End","End","End","End","End","End","End","End","End","End","End","End","End","End","End","End","End","End","End","End","End","End","End","End","End","End","End","End","End","End","End","End","End","End","End","End","End","End","End","End","End","End","End","End","End","End","End","End","End","End","End","End","End","End","End","End","End","End","End","End","End","End","End","End","End","End","End","End","End","End","End","End","End","End","End","End","End","End","End","End","End","End","End","End","End","End","End","End","End","End","End","End","End","End","End","End","End","End","End","End","End","End","End","End","End","End","End","End","End","End","End","End","End","End","End","End","End","End","End","End","End","End","End","End","End","End","End","End","End","End","End","End","End","End","End","End","End","End","End","End","End","End","End","End","End","End","End","End","End","End","End","End","End","End","End","End","End","End","End","End","End","End","End","End","End","End","End","End","End","End","End","End","End","End","End","End","End","End","End","End","End","End","End","End","End","End","End","End","End","End","End","End","End","End","End","End","End","End","End","End","End","End","End","End","End","End","End","End","End","End","End","End","End","End","End","End","End","End","End","End","End","End","End","End","End","End","End","End","End","End","End","End","End","End","End","End","End","End","End","End","End","End","End","End","End","End","End","End","End","End","End","End","End","End","End","End","End","End","End","End","End","End","End","End","End","End","End","End","End","End","End","End","End","End","End","End","End","End","End","End","End","End","End","End","End","End","End","End","End","End","End","End","End","End","End","End","End","End","End","End","End","End","End","End","End","End","End","End","End","End","End","End","End","End","End","End","End","End","End","End","End","End","End","End","End","End","End","End","End","End","End","End","End","End","End","End","End","End","End","End","End","End","End","End","End","End","End","End","End","End","End","End","End","End","End","End","End","End","End","End","End","End","End","End","End","End","End","End","End","End","End","End","End","End","End","End","End","End","End","End","End","End","End","End","End","End","End","End","End","End","End","End","End","End","End","End","End","End","End","End","End","End","End","End","End","End","End","End","End","End","End","End","End","End","End","End","End","End","End","End","End","End","End","End","End","End","End","End","End","End","End","End","End","End","End","End","End","End","End","End","End","End","End","End","End","End","End","End","End","End","End","End","End","End","End","End","End","End","End","End","End","End","End","End","End","End","End","End","End","End","End","End","End","End","End","End","End","End","End","End","End","End","End","End","End","End","End","End","End","End","End","End","End","End","End","End","End","End","End","End","End","End","End","End","End","End","End","End","End","End","End","End","End","End","End","End","End","End","End","End","End","End","End","End","End","End","End","End","End","End","End","End","End","End","End","End","End","End","End","End","End","End","End","End","End","End","End","End","End","End","End","End","End","End","End","End","End","End","End","End","End","End","End","End","End","End","End","End","End","End","End","End","End","End","End","End","End","End","End","End","End","End","End","End","End","End","End","End","End","End","End","End","End","End","End","End","End","End","End","End","End","End","End","End","End","End","End","End","End","End","End","End","End","End","End","End","End","End","End","End","End","End","End","End","End","End","End","End","End","End","End","End","End","End","End","End","End","End","End","End","End","End","End","End","End","End","End","End","End","End","End","End","End","End","End","End","End","End","End","End","End","End","End","End","End","End","End","End","End","End","End","End","End","End","End","End","End","End","End","End","End","End","End","End","End","End","End","End","End","End","End","End","End","End","End","End","End","End","End","End","End","End","End","End","End","End","End","End","End","End","End","End","End","End","End","End","End","End","End","End","End","End","End","End","End","End","End","End","End","End","End","End","End","End","End","End","End","End","End","End","End","End","End","End","End","End","End","End","End","End","End","End","End","End","End","End","End","End","End","End","End","End","End","End","End","End","End","End","End","End","End","End","End","End","End","End","End","End","End","End","End","End","End","End","End","End","End","End","End","End","End","End","End","End","End","End","End","End","End","End","End","End","End","End","End","End","End","End","End","End","End","End","End","End","End","End","End","End","End","End","End","End","End","End","End","End","End","End","End","End","End","End","End","End","End","End","End","End","End","End","End","End","End","End","End","End","End","End","End","End","End","End","End","End","End","End","End","End","End","End","End","End","End","End","End","End","End","End","End","End","End","End","End","End","End","End","End","End","End","End","End","End","End","End","End","End","End","End","End","End","End","End","End","End","End","End","End","End","End","End","End","End","End","End","End","End","End","End","End","End","End","End","End","End","End","End","End","End","End","End","End","End","End","End","End","End","End","End","End","End","End","End","End","End","End","End","End","End","End","End","End","End","End","End","End","End","End","End","End","End","End","End","End","End","End","End","End","End","End","End","End","End","End","End","End","End","End","End","End","End","End","End","End","End","End","End","End","End","End","End","End","End","End","End","End","End","End","End","End","End","End","End","End","End","End","End","End","End","End","End","End","End","End","End","End","End","End","End","End","End","End","End","End","End","End","End","End","End","End","End","End","End","End","End","End","End","End","End","End","End","End","End","End","End","End","End","End","End","End","End","End","End","End","End","End","End","End","End","End","End","End","End","End","End","End","End","End","End","End","End","End","End","End","End","End","End","End","End","End","End","End","End","End","End","End","End","End","End","End","End","End","End","End","End","End","End","End","End","End","End","End","End","End","End","End","End","End","End","End","End","End","End","End","End","End","End","End","End","End","End","End","End","End","End","End","End","End","End","End","End","End","End","End","End","End","End","End","End","End","End","End","End","End","End","End","End","End","End","End","End","End","End","End","End","End","End","End","End","End","End","End","End","End","End","End","End","End","End","End","End","End","End","End","End","End","End","End","End","End","End","End","End","End","End","End","End","End","End","End","End","End","End","End","End","End","End","End","End","End","End","End","End","End","End","End","End","End","End","End","End","End","End","End","End","End","End","End","End","End","End","End","End","End","End","End","End","End","End","End","End","End","End","End","End","End","End","End","End","End","End","End","End","End","End","End","End","End","End","End","End","End","End","End","End","End","End","End","End","End","End","End","End","End","End","End","End","End","End","End","End","End","End","End","End","End","End","End","End","End","End","End","End","End","End","End","End","End","End","End","End","End","End","End","End","End","End","End","End","End","End","End","End","End","End","End","End","End","End","End","End","End","End","End","End","End","End","End","End","End","End","End","End","End","End","End","End","End","End","End","End","End","End","End","End","End","End","End","End","End","End","End","End","End","End","End","End","End","End","End","End","End","End","End","End","End","End","End","End","End","End","End","End","End","End","End","End","End","End","End","End","End","End","End","End","End","End","End","End","End","End","End","End","End","End","End","End","End","End","End","End","End","End","End","End","End","End","End","End","End","End","End","End","End","End","End","End","End","End","End","End","End","End","End","End","End","End","End","End","End","End","End","End","End","End","End","End","End","End","End","End","End","End","End","End","End","End","End","End","End","End","End","End","End","End","End","End","End","End","End","End","End","End","End","End","End","End","End","End","End","End","End","End","End","End","End","End","End","End","End","End","End","End","End","End","End","End","End","End","End","End","End","End","End","End","End","End","End","End","End","End","End","End","End","End","End","End","End","End","End","End","End","End","End","End","End","End","End","End","End","End","End","End","End","End","End","End","End","End","End","End","End","End","End","End","End","End","End","End","End","End","End","End","End","End","End","End","End","End","End","End","End","End","End","End","End","End","End","End","End","End","End","End","End","End","End","End","End","End","End","End","End","End","End","End","End","End","End","End","End","End","End","End","End","End","End","End","End","End","End","End","End","End","End","End","End","End","End","End","End","End","End","End","End","End","End","End","End","End","End","End","End","End","End","End","End","End","End","End","End","End","End","End","End","End","End","End","End","End","End","End","End","End","End","End","End","End","End","End","End","End","End","End","End","End","End","End","End","End","End","End","End","End","End","End","End","End","End","End","End","End","End","End","End","End","End","End","End","End","End","End","End","End","End","End","End","End","End","End","End","End","End","End","End","End","End","End","End","End","End","End","End","End","End","End","End","End","End","End","End","End","End","End","End","End","End","End","End","End","End","End","End","End","End","End","End","End","End","End","End","End","End","End","End","End","End","End","End","End","End","End","End","End","End","End","End","End","End","End","End","End","End","End","End","End","End","End","End","End","End","End","End","End","End","End","End","End","End","End","End","End","End","End","End","End","End","End","End","End","End","End","End","End","End","End","End","End","End","End","End","End","End","End","End","End","End","End","End","End","End","End","End","End","End","End","End","End","End","End","End","End","End","End","End","End","End","End","End","End","End","End","End","End","End","End","End","End","End","End","End","End","End","End","End","End","End","End","End","End","End","End","End","End","End","End","End","End","End","End","End","End","End","End","End","End","End","End","End","End","End","End","End","End","End","End","End","End","End","End","End","End","End","End","End","End","End","End","End","End","End","End","End","End","End","End","End","End","End","End","End","End","End","End","End","End","End","End","End","End","End","End","End","End","End","End","End","End","End","End","End","End","End","End","End","End","End","End","End","End","End","End","End","End","End","End","End","End","End","End","End","End","End","End","End","End","End","End","End","End","End","End","End","End","End","End","End","End","End","End","End","End","End","End","End","End","End","End","End","End","End","End","End","End","End","End","End","End","End","End","End","End","End","End","End","End","End","End","End","End","End","End","End","End","End","End","End","End","End","End","End","End","End","End","End","End","End","End","End","End","End","End","End","End","End","End","End","End","End","End","End","End","End","End","End","End","End","End","End","End","End","End","End","End","End","End","End","End","End","End","End","End","End","End","End","End","End","End","End","End","End","End","End","End","End","End","End","End","End","End","End","End","End","End","End","End","End","End","End","End","End","End","End","End","End","End","End","End","End","End","End","End","End","End","End","End","End","End","End","End","End","End","End","End","End","End","End","End","End","End","End","End","End","End","End","End","End","End","End","End","End","End","End","End","End","End","End","End","End","End","End","End","End","End","End","End","End","End","End","End","End","End","End","End","End","End","End","End","End","End","End","End","End","End","End","End","End","End","End","End","End","End","End","End","End","End","End","End","End","End","End","End","End","End","End","End","End","End","End","End","End","End","End","End","End","End","End","End","End","End","End","End","End","End","End","End","End","End","End","End","End","End","End","End","End","End","End","End","End","End","End","End","End","End","End","End","End","End","End","End","End","End","End","End","End","End","End","End","End","End","End","End","End","End","End","End","End","End","End","End","End","End","End","End","End","End","End","End","End","End","End","End","End","End","End","End","End","End","End","End","End","End","End","End","End","End","End","End","End","End","End","End","End","End","End","End","End","End","End","End","End","End","End","End","End","End","End","End","End","End","End","End","End","End","End","End","End","End","End","End","End","End","End","End","End","End","End","End","End","End","End","End","End","End","End","End","End","End","End","End","End","End","End","End","End","End","End","End","End","End","End","End","End","End","End","End","End","End","End","End","End","End","End","End","End","End","End","End","End","End","End","End","End","End","End","End","End","End","End","End","End","End","End","End","End","End","End","End","End","End","End","End","End","End","End","End","End","End","End","End","End","End","End","End","End","End","End","End","End","End","End","End","End","End","End","End","End","End","End","End","End","End","End","End","End","End","End","End","End","End","End","End","End","End","End","End","End","End","End","End","End","End","End","End","End","End","End","End","End","End","End","End","End","End","End","End","End","End","End","End","End","End","End","End","End","End","End","End","End","End","End","End","End","End","End","End","End","End","End","End","End","End","End","End","End","End","End","End","End","End","End","End","End","End","End","End","End","End","End","End","End","End","End","End","End","End","End","End","End","End","End","End","End","End","End","End","End","End","End","End","End","End","End","End","End","End","End","End","End","End","End","End","End","End","End","End","End","End","End","End","End","End","End","End","End","End","End","End","End","End","End","End","End","End","End","End","End","End","End","End","End","End","End","End","End","End","End","End","End","End","End","End","End","End","End","End","End","End","End","End","End","End","End","End","End","End","End","End","End","End","End","End","End","End","End","End","End","End","End","End","End","End","End","End","End","End","End","End","End","End","End","End","End","End","End","End","End","End","End","End","End","End","End","End","End","End","End","End","End","End","End","End","End","End","End","End","End","End","End","End","End","End","End","End","End","End","End","End","End","End","End","End","End","End","End","End","End","End","End","End","End","End","End","End","End","End","End","End","End","End","End","End","End","End","End","End","End","End","End","End","End","End","End","End","End","End","End","End","End","End","End","End","End","End","End","End","End","End","End","End","End","End","End","End","End","End","End","End","End","End","End","End","End","End","End","End","End","End","End","End","End","End","End","End","End","End","End","End","End","End","End","End","End","End","End","End","End","End","End","End","End","End","End","End","End","End","End","End","End","End","End","End","End","End","End","End","End","End","End","End","End","End","End","End","End","End","End","End","End","End","End","End","End","End","End","End","End","End","End","End","End","End","End","End","End","End","End","End","End","End","End","End","End","End","End","End","End","End","End","End","End","End","End","End","End","End","End","End","End","End","End","End","End","End","End","End","End","End","End","End","End","End","End","End","End","End","End","End","End","End","End","End","End","End","End","End","End","End","End","End","End","End","End","End","End","End","End","End","End","End","End","End","End","End","End","End","End","End","End","End","End","End","End","End","End","End","End","End","End","End","End","End","End","End","End","End","End","End","End","End","End","End","End","End","End","End","End","End","End","End","End","End","End","End","End","End","End","End","End","End","End","End","End","End","End","End","End","End","End","End","End","End","End","End","End","End","End","End","End","End","End","End","End","End","End","End","End","End","End","End","End","End","End","End","End","End","End","End","End","End","End","End","End","End","End","End","End","End","End","End","End","End","End","End","End","End","End","End","End","End","End","End","End","End","End","End","End","End","End","End","End","End","End","End","End","End","End","End","End","End","End","End","End","End","End","End","End","End","End","End","End","End","End","End","End","End","End","End","End","End","End","End","End","End","End","End","End","End","End","End","End","End","End","End","End","End","End","End","End","End","End","End","End","End","End","End","End","End","End","End","End","End","End","End","End","End","End","End","End","End","End","End","End","End","End","End","End","End","End","End","End","End","End","End","End","End","End","End","End","End","End","End","End","End","End","End","End","End","End","End","End","End","End","End","End","End","End","End","End","End","End","End","End","End","End","End","End","End","End","End","End","End","End","End","End","End","End","End","End","End","End","End","End","End","End","End","End","End","End","End","End","End","End","End","End","End","End","End","End","End","End","End","End","End","End","End","End","End","End","End","End","End","End","End","End","End","End","End","End","End","End","End","End","End","End","End","End","End","End","End","End","End","End","End","End","End","End","End","End","End","End","End","End","End","End","End","End","End","End","End","End","End","End","End","End","End","End","End","End","End","End","End","End","End","End","End","End","End","End","End","End","End","End","End","End","End","End","End","End","End","End","End","End","End","End","End","End","End","End","End","End","End","End","End","End","End","End","End","End","End","End","End","End","End","End","End","End","End","End","End","End","End","End","End","End","End","End","End","End","End","End","End","End","End","End","End","End","End","End","End","End","End","End","End","End","End","End","End","End","End","End","End","End","End","End","End","End","End","End","End","End","End","End","End","End","End","End","End","End","End","End","End","End","End","End","End","End","End","End","End","End","End","End","End","End","End","End","End","End","End","End","End","End","End","End","End","End","End","End","End","End","End","End","End","End","End","End","End","End","End","End","End","End","End","End","End","End","End","End","End","End","End","End","End","End","End","End","End","End","End","End","End","End","End","End","End","End","End","End","End","End","End","End","End","End","End","End","End","End","End","End","End","End","End","End","End","End","End","End","End","End","End","End","End","End","End","End","End","End","End","End","End","End","End","End","End","End","End","End","End","End","End","End","End","End","End","End","End","End","End","End","End","End","End","End","End","End","End","End","End","End","End","End","End","End","End","End","End","End","End","End","End","End","End","End","End","End","End","End","End","End","End","End","End","End","End","End","End","End","End","End","End","End","End","End","End","End","End","End","End","End","End","End","End","End","End","End","End","End","End","End","End","End","End","End","End","End","End","End","End","End","End","End","End","End","End","End","End","End","End","End","End","End","End","End","End","End","End","End","End","End","End","End","End","End","End","End","End","End","End","End","End","End","End","End","End","End","End","End","End","End","End","End","End","End","End","End","End","End","End","End","End","End","End","End","End","End","End","End","End","End","End","End","End","End","End","End","End","End","End","End","End","End","End","End","End","End","End","End","End","End","End","End","End","End","End","End","End","End","End","End","End","End","End","End","End","End","End","End","End","End","End","End","End","End","End","End","End","End","End","End","End","End","End","End","End","End","End","End","End","End","End","End","End","End","End","End","End","End","End","End","End","End","End","End","End","End","End","End","End","End","End","End","End","End","End","End","End","End","End","End","End","End","End","End","End","End","End","End","End","End","End","End","End","End","End","End","End","End","End","End","End","End","End","End","End","End","End","End","End","End","End","End","End","End","End","End","End","End","End","End","End","End","End","End","End","End","End","End","End","End","End","End","End","End","End","End","End","End","End","End","End","End","End","End","End","End","End","End","End","End","End","End","End","End","End","End","End","End","End","End","End","End","End","End","End","End","End","End","End","End","End","End","End","End","End","End","End","End","End","End","End","End","End","End","End","End","End","End","End","End","End","End","End","End","End","End","End","End","End","End","End","End","End","End","End","End","End","End","End","End","End","End","End","End","End","End","End","End","End","End","End","End","End","End","End","End","End","End","End","End","End","End","End","End","End","End","End","End","End","End","End","End","End","End","End","End","End","End","End","End","End","End","End","End","End","End","End","End","End","End","End","End","End","End","End","End","End","End","End","End","End","End","End","End","End","End","End","End","End","End","End","End","End","End","End","End","End","End","End","End","End","End","End","End","End","End","End","End","End","End","End","End","End","End","End","End","End","End","End","End","End","End","End","End","End","End","End","End","End","End","End","End","End","End","End","End","End","End","End","End","End","End","End","End","End","End","End","End","End","End","End","End","End","End","End","End","End","End","End","End","End","End","End","End","End","End","End","End","End","End","End","End","End","End","End","End","End","End","End","End","End","End","End","End","End","End","End","End","End","End","End","End","End","End","End","End","End","End","End","End","End","End","End","End","End","End","End","End","End","End","End","End","End","End","End","End","End","End","End","End","End","End","End","End","End","End","End","End","End","End","End","End","End","End","End","End","End","End","End","End","End","End","End","End","End","End","End","End","End","End","End","End","End","End","End","End","End","End","End","End","End","End","End","End","End","End","End","End","End","End","End","End","End","End","End","End","End","End","End","End","End","End","End","End","End","End","End","End","End","End","End","End","End","End","End","End","End","End","End","End","End","End","End","End","End","End","End","End","End","End","End","End","End","End","End","End","End","End","End","End","End","End","End","End","End","End","End","End","End","End","End","End","End","End","End","End","End","End","End","End","End","End","End","End","End","End","End","End","End","End","End","End","End","End","End","End","End","End","End","End","End","End","End","End","End","End","End","End","End","End","End","End","End","End","End","End","End","End","End","End","End","End","End","End","End","End","End","End","End","End","End","End","End","End","End","End","End","End","End","End","End","End","End","End","End","End","End","End","End","End","End","End","End","End","End","End","End","End","End","End","End","End","End","End","End","End","End","End","End","End","End","End","End","End","End","End","End","End","End","End","End","End","End","End","End","End","End","End","End","End","End","End","End","End","End","End","End","End","End","End","End","End","End","End","End","End","End","End","End","End","End","End","End","End","End","End","End","End","End","End","End","End","End","End","End","End","End","End","End","End","End","End","End","End","End","End","End","End","End","End","End","End","End","End","End","End","End","End","End","End","End","End","End","End","End","End","End","End","End","End","End","End","End","End","End","End","End","End","End","End","End","End","End","End","End","End","End","End","End","End","End","End","End","End","End","End","End","End","End","End","End","End","End","End","End","End","End","End","End","End","End","End","End","End","End","End","End","End","End","End","End","End","End","End","End","End","End","End","End","End","End","End","End","End","End","End","End","End","End","End","End","End","End","End","End","End","End","End","End","End","End","End","End","End","End","End","End","End","End","End","End","End","End","End","End","End","End","End","End","End","End","End","End","End","End","End","End","End","End","End","End","End","End","End","End","End","End","End","End","End","End","End","End","End","End","End","End","End","End","End","End","End","End","End","End","End","End","End","End","End","End","End","End","End","End","End","End","End","End","End","End","End","End","End","End","End","End","End","End","End","End","End","End","End","End","End","End","End","End","End","End","End","End","End","End","End","End","End","End","End","End","End","End","End","End","End","End","End","End","End","End","End","End","End","End","End","End","End","End","End","End","End","End","End","End","End","End","End","End","End","End","End","End","End","End","End","End","End","End","End","End","End","End","End","End","End","End","End","End","End","End","End","End","End","End","End","End","End","End","End","End","End","End","End","End","End","End","End","End","End","End","End","End","End","End","End","End","End","End","End","End","End","End","End","End","End","End","End","End","End","End","End","End","End","End","End","End","End","End","End","End","End","End","End","End","End","End","End","End","End","End","End","End","End","End","End","End","End","End","End","End","End","End","End","End","End","End","End","End","End","End","End","End","End","End","End","End","End","End","End","End","End","End","End","End","End","End","End","End","End","End","End","End","End","End","End","End","End","End","End","End","End","End","End","End","End","End","End","End","End","End","End","End","End","End","End","End","End","End","End","End","End","End","End","End","End","End","End","End","End","End","End","End","End","End","End","End","End","End","End","End","End","End","End","End","End","End","End","End","End","End","End","End","End","End","End","End","End","End","End","End","End","End","End","End","End","End","End","End","End","End","End","End","End","End","End","End","End","End","End","End","End","End","End","End","End","End","End","End","End","End","End","End","End","End","End","End","End","End","End","End","End","End","End","End","End","End","End","End","End","End","End","End","End","End","End","End","End","End","End","End","End","End","End","End","End","End","End","End","End","End","End","End","End","End","End","End","End","End","End","End","End","End","End","End","End","End","End","End","End","End","End","End","End","End","End","End","End","End","End","End","End","End","End","End","End","End","End","End","End","End","End","End","End","End","End","End","End","End","End","End","End","End","End","End","End","End","End","End","End","End","End","End","End","End","End","End","End","End","End","End","End","End","End","End","End","End","End","End","End","End","End","End","End","End","End","End","End","End","End","End","End","End","End","End","End","End","End","End","End","End","End","End","End","End","End","End","End","End","End","End","End","End","End","End","End","End","End","End","End","End","End","End","End","End","End","End","End","End","End","End","End","End","End","End","End","End","End","End","End","End","End","End","End","End","End","End","End","End","End","End","End","End","End","End","End","End","End","End","End","End","End","End","End","End","End","End","End","End","End","End","End","End","End","End","End","End","End","End","End","End","End","End","End","End","End","End","End","End","End","End","End","End","End","End","End","End","End","End","End","End","End","End","End","End","End","End","End","End","End","End","End","End","End","End","End","End","End","End","End","End","End","End","End","End","End","End","End","End","End","End","End","End","End","End","End","End","End","End","End","End","End","End","End","End","End","End","End","End","End","End","End","End","End","End","End","End","End","End","End","End","End","End","End","End","End","End","End","End","End","End","End","End","End","End","End","End","End","End","End","End","End","End","End","End","End","End","End","End","End","End","End","End","End","End","End","End","End","End","End","End","End","End","End","End","End","End","End","End","End","End","End","End","End","End","End","End","End","End","End","End","End","End","End","End","End","End","End","End","End","End","End","End","End","End","End","End","End","End","End","End","End","End","End","End","End","End","End","End","End","End","End","End","End","End","End","End","End","End","End","End","End","End","End","End","End","End","End","End","End","End","End","End","End","End","End","End","End","End","End","End","End","End","End","End","End","End","End","End","End","End","End","End","End","End","End","End","End","End","End","End","End","End","End","End","End","End","End","End","End","End","End","End","End","End","End","End","End","End","End","End","End","End","End","End","End","End","End","End","End","End","End","End","End","End","End","End","End","End","End","End","End","End","End","End","End","End","End","End","End","End","End","End","End","End","End","End","End","End","End","End","End","End","End","End","End"]

{"sheet":"Risk Matrix","index":3,"n_rows":56,"n_cols":9,"rows_kept":56,"cut":false,"hidden":false,"merged":[[25,6,26,6],[25,5,26,5],[25,3,25,4],[8,1,12,1],[25,1,25,2]]}
[{"$f":"MdlTle","v":"Herramienta Rápida de Estimación del Riesgo"}]
[{"$f":"MID(CELL(\"filename\",A1),FIND(\"]\",CELL(\"filename\",A1))+1,255)","v":"Risk Matrix"}]
[]
[]
[]
[]
[null,"Escala de Probabilidad",null,null,"Muy Baja","Baja","Moderada","Alta","Muy Alta"]
[null,"Calificación de Probabilidad",null,null,"0 - 2","2 - 4","4 - 6","6 - 8","8 - 10"]
[null,"Gravedad\nPuntaje de gravedad promedio ponderado (basado en las respuestas proporcionadas para las medidas de vulnerabilidad, exposición y respuesta)","Insignificante","0 - 10","VL1","VL2","L3","L4","M5"]
[null,null,"Menor","11 - 25","VL2","L3","L4","M5","M6"]
[null,null,"Moderado","26 - 50","L3","L4","M5","M6","H7"]
[null,null,"Mayor","51 - 75","L4","M5","M6","H7","H8"]
[null,null,"Catastrófico","76 - 100","M5","M6","H7","H8","VH9"]
[]
[]
[null,"Guía de Probabilidad"]
[null,"Mivel","Definición basada en la probabilidad",null,null,null,"Definición basada en datos históricos"]
[null,"Muy alta","Es casi seguro que ocurra al menos una vez",null,null,null,"Ha ocurrido 3 o más veces en los últimos 5 años"]
[null,"Alta","Razonable probabilidad de que ocurra al menos una vez",null,null,null,"Ha ocurrido dos veces en los últimos 5 años"]
[null,"Moderada","Puede ocurrir al menos una vez",null,null,null,"Ha ocurrido una vez en los últimos 5 años"]
[null,"Baja","No se espera que ocurra",null,null,null,"Puede ocurrir y ha ocurrido una vez en los últimos 10 años"]
[null,"Muy Baja","Sólo ocurrirá en circunstancias excepcionales",null,null,null,"Puede ocurrir solamente en circunstancias excepcionales y ha ocurrido en los últimos 20 años"]
[]
["Risk matrix table"]
[]
[null,"Severity",null,"Likelihood ranking",null,"Ranking","Ranking reference"]
[null,"Lower Bound","Upper Bound","Lower bound","Upper bound"]
[null,-100,0,0,0,0,"VL1"]
[null,0.1,10,0,2,1,"VL1"]
[null,0.1,10,2.1,4,2,"VL2"]
[null,0.1,10,4.0999999999999996,6,3,"L3"]
[null,0.1,10,6.1,8,4,"L4"]
[null,0.1,10,8.1,10,5,"M5"]
[null,11,25,0,2,6,"VL2"]
[null,11,25,2.1,4,7,"L3"]
[null,11,25,4.0999999999999996,6,8,"L4"]
[null,11,25,6.1,8,9,"M5"]
[null,11,25,8.1,10,10,"M6"]
[null,26,50,0,2,11,"L3"]
[null,26,50,2.1,4,12,"L4"]
[null,26,50,4.0999999999999996,6,13,"M5"]
[null,26,50,6.1,8,14,"M6"]
[null,26,50,8.1,10,15,"H7"]
[null,51,75,0,2,16,"L4"]
[null,51,75,2.1,4,17,"M5"]
[null,51,75,4.0999999999999996,6,18,"M6"]
[null,51,75,6.1,8,19,"H7"]
[null,51,75,8.1,10,20,"H8"]
[null,76,100,0,2,21,"M5"]
[null,76,100,2.1,4,22,"M6"]
[null,76,100,4.0999999999999996,6,23,"H7"]
[null,76,100,6.1,8,24,"H8"]
[null,76,100,8.1,10,25,"VH9"]
[]
[]
["Fin"]

{"sheet":"Information","index":4,"n_rows":24,"n_cols":3,"rows_kept":24,"cut":false,"hidden":false,"merged":[]}
[{"$f":"MdlTle","v":"Herramienta Rápida de Estimación del Riesgo"}]
[{"$f":"MID(CELL(\"filename\",A1),FIND(\"]\",CELL(\"filename\",A1))+1,255)","v":"Information"}]
[]
[]
[]
[]
[]
[]
[]
[]
[]
[]
[]
[]
[null,null,"Locación/Región Nombre/Título: "]
[]
[null,null,"Descripción (incluyendo activo (s) examinado):"]
[]
[]
[null,null,"Asesor (persona completando la estimación del riesgo): "]
[]
[null,null,"Día de completado: "]
[]
[null,null,"Revisión Fecha/Versión: "]

{"sheet":"Assumptions","index":5,"n_rows":162,"n_cols":6,"rows_kept":162,"cut":false,"hidden":false,"merged":[]}
[{"$f":"MdlTle","v":"Herramienta Rápida de Estimación del Riesgo"}]
[{"$f":"MID(CELL(\"filename\",A1),FIND(\"]\",CELL(\"filename\",A1))+1,255)","v":"Assumptions"}]
[]
[]
["Supuestos generales"]
[]
[]
[null,"Proporción de probabilidad",null,"%",null,0.5]
[null,"Puntaje / rango máximo",null,"#",null,10]
[null,"Ponderación de vulnerabilidad",null,"%",null,0.25]
[]
["Calificaciones y puntuaciones"]
[]
[null,"Clasificaciones de exposición"]
[null,"0-Descartable",null,"#",null,0]
[null,"1-Extremadamente improbable",null,"#",null,1]
[null,"2-Muy poco probable",null,"#",null,2]
[null,"3-Poco probable",null,"#",null,3]
[null,"4-Improbable",null,"#",null,4]
[null,"5-Posible",null,"#",null,5]
[null,"6-Muy posible",null,"#",null,6]
[null,"7-Probable",null,"#",null,7]
[null,"8-Muy probable",null,"#",null,8]
[null,"9-Extremadamente probable",null,"#",null,9]
[null,"10-Inevitable",null,"#",null,10]
[]
[null,"Clasificación de vulnerabilidad"]
[null,"0-Descartable",null,"#",null,0]
[null,"1-Extremadamente improbable",null,"#",null,1]
[null,"2-Muy poco probable",null,"#",null,2]
[null,"3-Poco probable",null,"#",null,3]
[null,"4-Improbable",null,"#",null,4]
[null,"5-Posible",null,"#",null,5]
[null,"6-Muy posible",null,"#",null,6]
[null,"7-Probable",null,"#",null,7]
[null,"8-Muy probable",null,"#",null,8]
[null,"9-Extremadamente probable",null,"#",null,9]
[null,"10-Inevitable",null,"#",null,10]
[]
[null,"Grado de respuesta"]
[null,"0-No hay medidas en vigor",null,"#",null,0]
[null,"1-Extremadamente pocas medidas en vigor",null,"#",null,1]
[null,"2-Muy pocas medidas en vigor",null,"#",null,2]
[null,"3-Pocas medidas en vigor",null,"#",null,3]
[null,"4-Algunas medidas en vigor",null,"#",null,4]
[null,"5-Medidas razonables en vigor",null,"#",null,5]
[null,"6-Buenas medidas en vigor",null,"#",null,6]
[null,"7-Medidas elevadas en vigor",null,"#",null,7]
[null,"8-Medidas extremadamente altas en vigor",null,"#",null,8]
[null,"9-Inmensas medidas en vigor",null,"#",null,9]
[null,"10-Control completo del desastre",null,"#",null,10]
[]
["Menús desplegables"]
[]
[null,"Peligros"]
[null,"Principales riesgos geofísicos"]
[null,"Terremoto"]
[null,"Movimiento masivo"]
[null,"Actividad volcánica"]
[]
[null,"Riesgos Hidrológicos Principales"]
[null,"Inundaciones"]
[null,"Deslizamiento de tierra"]
[null,"Acción de las olas"]
[]
[null,"Riesgos Meteorológicos Principales"]
[null,"Tormenta convectiva"]
[null,"Tormenta extratropical"]
[null,"Temperatura extrema"]
[null,"Niebla"]
[null,"Ciclón tropical"]
[]
[null,"Riesgos Climatológicos Principales"]
[null,"Sequía"]
[null,"Explosión del lago glacial"]
[null,"Fuego descontrolado"]
[]
[null,"Riesgos Biológicos Principales"]
[null,"Incidente de animales"]
[null,"Enfermedades"]
[null,"Infestación de insectos"]
[]
[null,"Peligros principales extra-terrestres"]
[null,"Impacto en la tierra o el agua"]
[null,"Tiempo Espacial"]
[]
[null,"Principales riesgos antropogénicos"]
[null,"Peligros tecnológicos "]
[null,"Peligros radiológicos"]
[null,"Accidentes de transporte"]
[]
[null,"Otros peligros principales (definidos por el usuario)"]
[null,"Repuesta 1"]
[null,"Repuesta 2"]
[null,"Repuesta 3"]
[null,"Repuesta 4"]
[]
[]
[null,"Eventos de peligro"]
[null,"Explosión en el aire",null,null,null," Flujos piroclásticos"]
[null,"Caída de ceniza",null,null,null,"Caída de ceniza"]
[null,"Avalancha / Nieve / Escombros",null,null,null,"Deslizamiento después del evento"]
[null,"Accidente aéreo",null,null,null,"Flujo de lava"]
[null,"Enfermedades bacterianas",null,null,null,"Fuego seguido a evento"]
[null,"Derrame químico",null,null,null,"Lahar"]
[null,"Erosión costera",null,null,null,"Licuefacción"]
[null,"Inundación costera",null,null,null,"Movimiento del suelo"]
[null,"Ola Fría",null,null,null,"Tsunami"]
[null,"Colisión",null,null,null,"Avalancha / Nieve / Escombros"]
[null,"Derecho",null,null,null,"Desbordamiento de ríos"]
[null,"Partículas energéticas",null,null,null,"Deslizamiento después del evento"]
[null,"Suelo expansivo",null,null,null,"Deslizamiento/Caida de piedras/Escombros"]
[null,"Fuego seguido a evento",null,null,null,"Erosión costera"]
[null,"Inundación repentina",null,null,null,"Inundación costera"]
[null,"Incendio forestal",null,null,null,"Inundación de hielo"]
[null,"Congelación",null,null,null,"Inundación repentina"]
[null,"Enfermedad fúngica",null,null,null,"Ola gigante"]
[null,"Tormenta geomagnética",null,null,null,"Seiche"]
[null,"Movimiento del suelo",null,null,null,"Suelo expansivo"]
[null,"Granizo",null,null,null,"Sumidero"]
[null,"Ola de calor",null,null,null,"Congelación"]
[null,"Inundación de hielo",null,null,null,"Derecho"]
[null,"Desastre industrial",null,null,null,"Granizo"]
[null,"Explosión industrial",null,null,null,"Lluvia"]
[null,"Lahar",null,null,null,"Nieve /Hielo "]
[null,"Incendio en arbustos / pasto",null,null,null,"Ola de calor"]
[null,"Deslizamiento después del evento",null,null,null,"Ola Fría"]
[null,"Flujo de lava",null,null,null,"Oleada de tormenta"]
[null,"Relámpago",null,null,null,"Relámpagos"]
[null,"Licuefacción",null,null,null,"Tormenta de arena"]
[null,"Desastre de minas",null,null,null,"Tormenta de invierno"]
[null,"Caída de lodo (chubasco) / caída de rocas / debris",null,null,null,"Tornado"]
[null,"Accidente de navegación",null,null,null,"Viento"]
[null,"Derrame de petróleo",null,null,null,"Hundimiento"]
[null,"Enfermedad Parasitaria",null,null,null,"Incendio de tierras agrícolas/pastizales"]
[null,"Corte de energía",null,null,null,"Incendio forestal"]
[null,"Enfermedad de los priones",null,null,null,"Enfermedad de los priones"]
[null,"Flujo piroclástico",null,null,null,"Enfermedad fúngica"]
[null,"Contaminación por radiación, incidente nuclear",null,null,null,"Enfermedad Parasitaria"]
[null,"Disturbios de radio",null,null,null,"Enfermedad viral"]
[null,"Accidente ferroviario",null,null,null,"Enfermedades bacterianas"]
[null,"Lluvia",null,null,null,"Colisión"]
[null,"Inundación fluvial",null,null,null,"Disturbios de radio"]
[null,"Accidente de tráfico",null,null,null,"Explosión en el aire"]
[null,"Ola gigante",null,null,null,"Onda de choque"]
[null,"Tormenta de arena",null,null,null,"Partículas energéticas"]
[null,"Seiche",null,null,null,"Tormenta geomagnética"]
[null,"Onda de choque",null,null,null,"Accidente aéreo"]
[null,"Sumidero",null,null,null,"Accidente de navegación"]
[null,"Nieve /Hielo ",null,null,null,"Accidente de tráfico"]
[null,"Incidente Espacial",null,null,null,"Accidente ferroviario"]
[null,"Oleada de tormenta",null,null,null,"Colapso estructural"]
[null,"Colapso estructural",null,null,null,"Contaminación por radiación, incidente nuclear"]
[null,"Hundimiento",null,null,null,"Corte de energía"]
[null,"Tornado",null,null,null,"Derrame de petróleo"]
[null,"Tsunami",null,null,null,"Derrame químico"]
[null,"Enfermedad viral",null,null,null,"Desastre de minas"]
[null,"Viento",null,null,null,"Desastre industrial"]
[null,"Tormenta de invierno",null,null,null,"Explosión industrial"]
[null,null,null,null,null,"Fuego seguido a evento"]
[null,null,null,null,null,"Incidente Espacial"]
["Fin"]

{"sheet":"Hazard Data Entry","index":6,"n_rows":54,"n_cols":14,"rows_kept":54,"cut":false,"hidden":false,"merged":[[4,1,5,1],[4,4,4,7],[4,2,5,2],[4,13,5,13],[4,3,5,3],[4,9,5,9],[4,12,5,12]]}
[{"$f":"MdlTle","v":"Herramienta Rápida de Estimación del Riesgo"}]
[{"$f":"MID(CELL(\"filename\",A1),FIND(\"]\",CELL(\"filename\",A1))+1,255)","v":"Hazard Data Entry"}]
[]
[]
[null,"Familia de peligros","Eventos de peligro","Clasificaciones de exposición","Clasificación de vulnerabilidad",null,null,null,"Total vulnerability rating","Nivel actual de medidas de respuesta emprendidas o vigentes","Proporción de probabilidad","Clasificación de gravedad","Resultado de la matriz de riesgo","Comentarios y justificaciones"]
[null,null,null,null,"Infraestructura","Sectrores productivos","Servicios básicos o escenciales","Aspectos sociales y humanos","1 (bajo) - 100 (alto)",null,"1 (bajo) - 10 (alto)","1 (bajo) - 100 (alto)"]
[null,"H1 - Geofísicos"]
[null,null,null,null,null,null,null,null,{"$f":"IFERROR((((INDEX(Assumptions!$F$28:$F$38,MATCH(E8,Vulnerabilties,0))*Assumptions!$F$10)+(INDEX(Assumptions!$F$28:$F$38,MATCH(F8,Vulnerabilties,0))*Assumptions!$F$10)+(INDEX(Assumptions!$F$28:$F$38,MATCH(G8,Vulnerabilties,0))*Assumptions!$F$10)+(INDEX(Assumptions!$F$28:$F$38,MATCH(H8,Vulnerabilties,0))*Assumptions!$F$10))*Assumptions!$F$9),0)","v":0},null,{"$f":"IFERROR(INDEX(Assumptions!$F$15:$F$25,MATCH(D8,Exposures,0)*Assumptions!$F$8+(I8/Assumptions!$F$9)*Assumptions!$F$8),0)","v":0},{"$f":"IFERROR((K8*Assumptions!$F$9)-(INDEX(Assumptions!$F$41:$F$51,MATCH(J8,Levels_of_response,0))*Assumptions!$F$9),0)","v":0},{"$f":"IF(L8<=0,\"VL1\",IFERROR(INDEX('Risk Matrix'!$G$28:$G$53,MATCH(SUMPRODUCT(('Risk Matrix'!$B$28:$B$53<=L8)*('Risk Matrix'!$C$28:$C$53>=L8)*('Risk Matrix'!$D$28:$D$53<=K8)*('Risk Matrix'!$E$28:$E$53>=K8)*('Risk Matrix'!$F$28:$F$53)),'Risk Matrix'!$F$28:$F$53,0)),0))","v":"VL1"}]
[null,null,null,null,null,null,null,null,{"$f":"IFERROR((((INDEX(Assumptions!$F$28:$F$38,MATCH(E9,Vulnerabilties,0))*Assumptions!$F$10)+(INDEX(Assumptions!$F$28:$F$38,MATCH(F9,Vulnerabilties,0))*Assumptions!$F$10)+(INDEX(Assumptions!$F$28:$F$38,MATCH(G9,Vulnerabilties,0))*Assumptions!$F$10)+(INDEX(Assumptions!$F$28:$F$38,MATCH(H9,Vulnerabilties,0))*Assumptions!$F$10))*Assumptions!$F$9),0)","v":0},null,{"$f":"IFERROR(INDEX(Assumptions!$F$15:$F$25,MATCH(D9,Exposures,0)*Assumptions!$F$8+(I9/Assumptions!$F$9)*Assumptions!$F$8),0)","v":0},{"$f":"IFERROR((K9*Assumptions!$F$9)-(INDEX(Assumptions!$F$41:$F$51,MATCH(J9,Levels_of_response,0))*Assumptions!$F$9),0)","v":0},{"$f":"IF(L9<=0,\"VL1\",IFERROR(INDEX('Risk Matrix'!$G$28:$G$53,MATCH(SUMPRODUCT(('Risk Matrix'!$B$28:$B$53<=L9)*('Risk Matrix'!$C$28:$C$53>=L9)*('Risk Matrix'!$D$28:$D$53<=K9)*('Risk Matrix'!$E$28:$E$53>=K9)*('Risk Matrix'!$F$28:$F$53)),'Risk Matrix'!$F$28:$F$53,0)),0))","v":"VL1"}]
[null,null,null,null,null,null,null,null,{"$f":"IFERROR((((INDEX(Assumptions!$F$28:$F$38,MATCH(E10,Vulnerabilties,0))*Assumptions!$F$10)+(INDEX(Assumptions!$F$28:$F$38,MATCH(F10,Vulnerabilties,0))*Assumptions!$F$10)+(INDEX(Assumptions!$F$28:$F$38,MATCH(G10,Vulnerabilties,0))*Assumptions!$F$10)+(INDEX(Assumptions!$F$28:$F$38,MATCH(H10,Vulnerabilties,0))*Assumptions!$F$10))*Assumptions!$F$9),0)","v":0},null,{"$f":"IFERROR(INDEX(Assumptions!$F$15:$F$25,MATCH(D10,Exposures,0)*Assumptions!$F$8+(I10/Assumptions!$F$9)*Assumptions!$F$8),0)","v":0},{"$f":"IFERROR((K10*Assumptions!$F$9)-(INDEX(Assumptions!$F$41:$F$51,MATCH(J10,Levels_of_response,0))*Assumptions!$F$9),0)","v":0},{"$f":"IF(L10<=0,\"VL1\",IFERROR(INDEX('Risk Matrix'!$G$28:$G$53,MATCH(SUMPRODUCT(('Risk Matrix'!$B$28:$B$53<=L10)*('Risk Matrix'!$C$28:$C$53>=L10)*('Risk Matrix'!$D$28:$D$53<=K10)*('Risk Matrix'!$E$28:$E$53>=K10)*('Risk Matrix'!$F$28:$F$53)),'Risk Matrix'!$F$28:$F$53,0)),0))","v":"VL1"}]
[null,null,null,null,null,null,null,null,{"$f":"IFERROR((((INDEX(Assumptions!$F$28:$F$38,MATCH(E11,Vulnerabilties,0))*Assumptions!$F$10)+(INDEX(Assumptions!$F$28:$F$38,MATCH(F11,Vulnerabilties,0))*Assumptions!$F$10)+(INDEX(Assumptions!$F$28:$F$38,MATCH(G11,Vulnerabilties,0))*Assumptions!$F$10)+(INDEX(Assumptions!$F$28:$F$38,MATCH(H11,Vulnerabilties,0))*Assumptions!$F$10))*Assumptions!$F$9),0)","v":0},null,{"$f":"IFERROR(INDEX(Assumptions!$F$15:$F$25,MATCH(D11,Exposures,0)*Assumptions!$F$8+(I11/Assumptions!$F$9)*Assumptions!$F$8),0)","v":0},{"$f":"IFERROR((K11*Assumptions!$F$9)-(INDEX(Assumptions!$F$41:$F$51,MATCH(J11,Levels_of_response,0))*Assumptions!$F$9),0)","v":0},{"$f":"IF(L11<=0,\"VL1\",IFERROR(INDEX('Risk Matrix'!$G$28:$G$53,MATCH(SUMPRODUCT(('Risk Matrix'!$B$28:$B$53<=L11)*('Risk Matrix'!$C$28:$C$53>=L11)*('Risk Matrix'!$D$28:$D$53<=K11)*('Risk Matrix'!$E$28:$E$53>=K11)*('Risk Matrix'!$F$28:$F$53)),'Risk Matrix'!$F$28:$F$53,0)),0))","v":"VL1"}]
[null,null,null,null,null,null,null,null,{"$f":"IFERROR((((INDEX(Assumptions!$F$28:$F$38,MATCH(E12,Vulnerabilties,0))*Assumptions!$F$10)+(INDEX(Assumptions!$F$28:$F$38,MATCH(F12,Vulnerabilties,0))*Assumptions!$F$10)+(INDEX(Assumptions!$F$28:$F$38,MATCH(G12,Vulnerabilties,0))*Assumptions!$F$10)+(INDEX(Assumptions!$F$28:$F$38,MATCH(H12,Vulnerabilties,0))*Assumptions!$F$10))*Assumptions!$F$9),0)","v":0},null,{"$f":"IFERROR(INDEX(Assumptions!$F$15:$F$25,MATCH(D12,Exposures,0)*Assumptions!$F$8+(I12/Assumptions!$F$9)*Assumptions!$F$8),0)","v":0},{"$f":"IFERROR((K12*Assumptions!$F$9)-(INDEX(Assumptions!$F$41:$F$51,MATCH(J12,Levels_of_response,0))*Assumptions!$F$9),0)","v":0},{"$f":"IF(L12<=0,\"VL1\",IFERROR(INDEX('Risk Matrix'!$G$28:$G$53,MATCH(SUMPRODUCT(('Risk Matrix'!$B$28:$B$53<=L12)*('Risk Matrix'!$C$28:$C$53>=L12)*('Risk Matrix'!$D$28:$D$53<=K12)*('Risk Matrix'!$E$28:$E$53>=K12)*('Risk Matrix'!$F$28:$F$53)),'Risk Matrix'!$F$28:$F$53,0)),0))","v":"VL1"}]
[null,"H2 - Hidrológicos"]
[null,null,null,null,null,null,null,null,{"$f":"IFERROR((((INDEX(Assumptions!$F$28:$F$38,MATCH(E14,Vulnerabilties,0))*Assumptions!$F$10)+(INDEX(Assumptions!$F$28:$F$38,MATCH(F14,Vulnerabilties,0))*Assumptions!$F$10)+(INDEX(Assumptions!$F$28:$F$38,MATCH(G14,Vulnerabilties,0))*Assumptions!$F$10)+(INDEX(Assumptions!$F$28:$F$38,MATCH(H14,Vulnerabilties,0))*Assumptions!$F$10))*Assumptions!$F$9),0)","v":0},null,{"$f":"IFERROR(INDEX(Assumptions!$F$15:$F$25,MATCH(D14,Exposures,0)*Assumptions!$F$8+(I14/Assumptions!$F$9)*Assumptions!$F$8),0)","v":0},{"$f":"IFERROR((K14*Assumptions!$F$9)-(INDEX(Assumptions!$F$41:$F$51,MATCH(J14,Levels_of_response,0))*Assumptions!$F$9),0)","v":0},{"$f":"IF(L14<=0,\"VL1\",IFERROR(INDEX('Risk Matrix'!$G$28:$G$53,MATCH(SUMPRODUCT(('Risk Matrix'!$B$28:$B$53<=L14)*('Risk Matrix'!$C$28:$C$53>=L14)*('Risk Matrix'!$D$28:$D$53<=K14)*('Risk Matrix'!$E$28:$E$53>=K14)*('Risk Matrix'!$F$28:$F$53)),'Risk Matrix'!$F$28:$F$53,0)),0))","v":"VL1"}]
[null,null,null,null,null,null,null,null,{"$f":"IFERROR((((INDEX(Assumptions!$F$28:$F$38,MATCH(E15,Vulnerabilties,0))*Assumptions!$F$10)+(INDEX(Assumptions!$F$28:$F$38,MATCH(F15,Vulnerabilties,0))*Assumptions!$F$10)+(INDEX(Assumptions!$F$28:$F$38,MATCH(G15,Vulnerabilties,0))*Assumptions!$F$10)+(INDEX(Assumptions!$F$28:$F$38,MATCH(H15,Vulnerabilties,0))*Assumptions!$F$10))*Assumptions!$F$9),0)","v":0},null,{"$f":"IFERROR(INDEX(Assumptions!$F$15:$F$25,MATCH(D15,Exposures,0)*Assumptions!$F$8+(I15/Assumptions!$F$9)*Assumptions!$F$8),0)","v":0},{"$f":"IFERROR((K15*Assumptions!$F$9)-(INDEX(Assumptions!$F$41:$F$51,MATCH(J15,Levels_of_response,0))*Assumptions!$F$9),0)","v":0},{"$f":"IF(L15<=0,\"VL1\",IFERROR(INDEX('Risk Matrix'!$G$28:$G$53,MATCH(SUMPRODUCT(('Risk Matrix'!$B$28:$B$53<=L15)*('Risk Matrix'!$C$28:$C$53>=L15)*('Risk Matrix'!$D$28:$D$53<=K15)*('Risk Matrix'!$E$28:$E$53>=K15)*('Risk Matrix'!$F$28:$F$53)),'Risk Matrix'!$F$28:$F$53,0)),0))","v":"VL1"}]
[null,null,null,null,null,null,null,null,{"$f":"IFERROR((((INDEX(Assumptions!$F$28:$F$38,MATCH(E16,Vulnerabilties,0))*Assumptions!$F$10)+(INDEX(Assumptions!$F$28:$F$38,MATCH(F16,Vulnerabilties,0))*Assumptions!$F$10)+(INDEX(Assumptions!$F$28:$F$38,MATCH(G16,Vulnerabilties,0))*Assumptions!$F$10)+(INDEX(Assumptions!$F$28:$F$38,MATCH(H16,Vulnerabilties,0))*Assumptions!$F$10))*Assumptions!$F$9),0)","v":0},null,{"$f":"IFERROR(INDEX(Assumptions!$F$15:$F$25,MATCH(D16,Exposures,0)*Assumptions!$F$8+(I16/Assumptions!$F$9)*Assumptions!$F$8),0)","v":0},{"$f":"IFERROR((K16*Assumptions!$F$9)-(INDEX(Assumptions!$F$41:$F$51,MATCH(J16,Levels_of_response,0))*Assumptions!$F$9),0)","v":0},{"$f":"IF(L16<=0,\"VL1\",IFERROR(INDEX('Risk Matrix'!$G$28:$G$53,MATCH(SUMPRODUCT(('Risk Matrix'!$B$28:$B$53<=L16)*('Risk Matrix'!$C$28:$C$53>=L16)*('Risk Matrix'!$D$28:$D$53<=K16)*('Risk Matrix'!$E$28:$E$53>=K16)*('Risk Matrix'!$F$28:$F$53)),'Risk Matrix'!$F$28:$F$53,0)),0))","v":"VL1"}]
[null,null,null,null,null,null,null,null,{"$f":"IFERROR((((INDEX(Assumptions!$F$28:$F$38,MATCH(E17,Vulnerabilties,0))*Assumptions!$F$10)+(INDEX(Assumptions!$F$28:$F$38,MATCH(F17,Vulnerabilties,0))*Assumptions!$F$10)+(INDEX(Assumptions!$F$28:$F$38,MATCH(G17,Vulnerabilties,0))*Assumptions!$F$10)+(INDEX(Assumptions!$F$28:$F$38,MATCH(H17,Vulnerabilties,0))*Assumptions!$F$10))*Assumptions!$F$9),0)","v":0},null,{"$f":"IFERROR(INDEX(Assumptions!$F$15:$F$25,MATCH(D17,Exposures,0)*Assumptions!$F$8+(I17/Assumptions!$F$9)*Assumptions!$F$8),0)","v":0},{"$f":"IFERROR((K17*Assumptions!$F$9)-(INDEX(Assumptions!$F$41:$F$51,MATCH(J17,Levels_of_response,0))*Assumptions!$F$9),0)","v":0},{"$f":"IF(L17<=0,\"VL1\",IFERROR(INDEX('Risk Matrix'!$G$28:$G$53,MATCH(SUMPRODUCT(('Risk Matrix'!$B$28:$B$53<=L17)*('Risk Matrix'!$C$28:$C$53>=L17)*('Risk Matrix'!$D$28:$D$53<=K17)*('Risk Matrix'!$E$28:$E$53>=K17)*('Risk Matrix'!$F$28:$F$53)),'Risk Matrix'!$F$28:$F$53,0)),0))","v":"VL1"}]
[null,null,null,null,null,null,null,null,{"$f":"IFERROR((((INDEX(Assumptions!$F$28:$F$38,MATCH(E18,Vulnerabilties,0))*Assumptions!$F$10)+(INDEX(Assumptions!$F$28:$F$38,MATCH(F18,Vulnerabilties,0))*Assumptions!$F$10)+(INDEX(Assumptions!$F$28:$F$38,MATCH(G18,Vulnerabilties,0))*Assumptions!$F$10)+(INDEX(Assumptions!$F$28:$F$38,MATCH(H18,Vulnerabilties,0))*Assumptions!$F$10))*Assumptions!$F$9),0)","v":0},null,{"$f":"IFERROR(INDEX(Assumptions!$F$15:$F$25,MATCH(D18,Exposures,0)*Assumptions!$F$8+(I18/Assumptions!$F$9)*Assumptions!$F$8),0)","v":0},{"$f":"IFERROR((K18*Assumptions!$F$9)-(INDEX(Assumptions!$F$41:$F$51,MATCH(J18,Levels_of_response,0))*Assumptions!$F$9),0)","v":0},{"$f":"IF(L18<=0,\"VL1\",IFERROR(INDEX('Risk Matrix'!$G$28:$G$53,MATCH(SUMPRODUCT(('Risk Matrix'!$B$28:$B$53<=L18)*('Risk Matrix'!$C$28:$C$53>=L18)*('Risk Matrix'!$D$28:$D$53<=K18)*('Risk Matrix'!$E$28:$E$53>=K18)*('Risk Matrix'!$F$28:$F$53)),'Risk Matrix'!$F$28:$F$53,0)),0))","v":"VL1"}]
[null,"H3 - Meteorológicos"]
[null,null,null,null,null,null,null,null,{"$f":"IFERROR((((INDEX(Assumptions!$F$28:$F$38,MATCH(E20,Vulnerabilties,0))*Assumptions!$F$10)+(INDEX(Assumptions!$F$28:$F$38,MATCH(F20,Vulnerabilties,0))*Assumptions!$F$10)+(INDEX(Assumptions!$F$28:$F$38,MATCH(G20,Vulnerabilties,0))*Assumptions!$F$10)+(INDEX(Assumptions!$F$28:$F$38,MATCH(H20,Vulnerabilties,0))*Assumptions!$F$10))*Assumptions!$F$9),0)","v":0},null,{"$f":"IFERROR(INDEX(Assumptions!$F$15:$F$25,MATCH(D20,Exposures,0)*Assumptions!$F$8+(I20/Assumptions!$F$9)*Assumptions!$F$8),0)","v":0},{"$f":"IFERROR((K20*Assumptions!$F$9)-(INDEX(Assumptions!$F$41:$F$51,MATCH(J20,Levels_of_response,0))*Assumptions!$F$9),0)","v":0},{"$f":"IF(L20<=0,\"VL1\",IFERROR(INDEX('Risk Matrix'!$G$28:$G$53,MATCH(SUMPRODUCT(('Risk Matrix'!$B$28:$B$53<=L20)*('Risk Matrix'!$C$28:$C$53>=L20)*('Risk Matrix'!$D$28:$D$53<=K20)*('Risk Matrix'!$E$28:$E$53>=K20)*('Risk Matrix'!$F$28:$F$53)),'Risk Matrix'!$F$28:$F$53,0)),0))","v":"VL1"}]
[null,null,null,null,null,null,null,null,{"$f":"IFERROR((((INDEX(Assumptions!$F$28:$F$38,MATCH(E21,Vulnerabilties,0))*Assumptions!$F$10)+(INDEX(Assumptions!$F$28:$F$38,MATCH(F21,Vulnerabilties,0))*Assumptions!$F$10)+(INDEX(Assumptions!$F$28:$F$38,MATCH(G21,Vulnerabilties,0))*Assumptions!$F$10)+(INDEX(Assumptions!$F$28:$F$38,MATCH(H21,Vulnerabilties,0))*Assumptions!$F$10))*Assumptions!$F$9),0)","v":0},null,{"$f":"IFERROR(INDEX(Assumptions!$F$15:$F$25,MATCH(D21,Exposures,0)*Assumptions!$F$8+(I21/Assumptions!$F$9)*Assumptions!$F$8),0)","v":0},{"$f":"IFERROR((K21*Assumptions!$F$9)-(INDEX(Assumptions!$F$41:$F$51,MATCH(J21,Levels_of_response,0))*Assumptions!$F$9),0)","v":0},{"$f":"IF(L21<=0,\"VL1\",IFERROR(INDEX('Risk Matrix'!$G$28:$G$53,MATCH(SUMPRODUCT(('Risk Matrix'!$B$28:$B$53<=L21)*('Risk Matrix'!$C$28:$C$53>=L21)*('Risk Matrix'!$D$28:$D$53<=K21)*('Risk Matrix'!$E$28:$E$53>=K21)*('Risk Matrix'!$F$28:$F$53)),'Risk Matrix'!$F$28:$F$53,0)),0))","v":"VL1"}]
[null,null,null,null,null,null,null,null,{"$f":"IFERROR((((INDEX(Assumptions!$F$28:$F$38,MATCH(E22,Vulnerabilties,0))*Assumptions!$F$10)+(INDEX(Assumptions!$F$28:$F$38,MATCH(F22,Vulnerabilties,0))*Assumptions!$F$10)+(INDEX(Assumptions!$F$28:$F$38,MATCH(G22,Vulnerabilties,0))*Assumptions!$F$10)+(INDEX(Assumptions!$F$28:$F$38,MATCH(H22,Vulnerabilties,0))*Assumptions!$F$10))*Assumptions!$F$9),0)","v":0},null,{"$f":"IFERROR(INDEX(Assumptions!$F$15:$F$25,MATCH(D22,Exposures,0)*Assumptions!$F$8+(I22/Assumptions!$F$9)*Assumptions!$F$8),0)","v":0},{"$f":"IFERROR((K22*Assumptions!$F$9)-(INDEX(Assumptions!$F$41:$F$51,MATCH(J22,Levels_of_response,0))*Assumptions!$F$9),0)","v":0},{"$f":"IF(L22<=0,\"VL1\",IFERROR(INDEX('Risk Matrix'!$G$28:$G$53,MATCH(SUMPRODUCT(('Risk Matrix'!$B$28:$B$53<=L22)*('Risk Matrix'!$C$28:$C$53>=L22)*('Risk Matrix'!$D$28:$D$53<=K22)*('Risk Matrix'!$E$28:$E$53>=K22)*('Risk Matrix'!$F$28:$F$53)),'Risk Matrix'!$F$28:$F$53,0)),0))","v":"VL1"}]
[null,null,null,null,null,null,null,null,{"$f":"IFERROR((((INDEX(Assumptions!$F$28:$F$38,MATCH(E23,Vulnerabilties,0))*Assumptions!$F$10)+(INDEX(Assumptions!$F$28:$F$38,MATCH(F23,Vulnerabilties,0))*Assumptions!$F$10)+(INDEX(Assumptions!$F$28:$F$38,MATCH(G23,Vulnerabilties,0))*Assumptions!$F$10)+(INDEX(Assumptions!$F$28:$F$38,MATCH(H23,Vulnerabilties,0))*Assumptions!$F$10))*Assumptions!$F$9),0)","v":0},null,{"$f":"IFERROR(INDEX(Assumptions!$F$15:$F$25,MATCH(D23,Exposures,0)*Assumptions!$F$8+(I23/Assumptions!$F$9)*Assumptions!$F$8),0)","v":0},{"$f":"IFERROR((K23*Assumptions!$F$9)-(INDEX(Assumptions!$F$41:$F$51,MATCH(J23,Levels_of_response,0))*Assumptions!$F$9),0)","v":0},{"$f":"IF(L23<=0,\"VL1\",IFERROR(INDEX('Risk Matrix'!$G$28:$G$53,MATCH(SUMPRODUCT(('Risk Matrix'!$B$28:$B$53<=L23)*('Risk Matrix'!$C$28:$C$53>=L23)*('Risk Matrix'!$D$28:$D$53<=K23)*('Risk Matrix'!$E$28:$E$53>=K23)*('Risk Matrix'!$F$28:$F$53)),'Risk Matrix'!$F$28:$F$53,0)),0))","v":"VL1"}]
[null,null,null,null,null,null,null,null,{"$f":"IFERROR((((INDEX(Assumptions!$F$28:$F$38,MATCH(E24,Vulnerabilties,0))*Assumptions!$F$10)+(INDEX(Assumptions!$F$28:$F$38,MATCH(F24,Vulnerabilties,0))*Assumptions!$F$10)+(INDEX(Assumptions!$F$28:$F$38,MATCH(G24,Vulnerabilties,0))*Assumptions!$F$10)+(INDEX(Assumptions!$F$28:$F$38,MATCH(H24,Vulnerabilties,0))*Assumptions!$F$10))*Assumptions!$F$9),0)","v":0},null,{"$f":"IFERROR(INDEX(Assumptions!$F$15:$F$25,MATCH(D24,Exposures,0)*Assumptions!$F$8+(I24/Assumptions!$F$9)*Assumptions!$F$8),0)","v":0},{"$f":"IFERROR((K24*Assumptions!$F$9)-(INDEX(Assumptions!$F$41:$F$51,MATCH(J24,Levels_of_response,0))*Assumptions!$F$9),0)","v":0},{"$f":"IF(L24<=0,\"VL1\",IFERROR(INDEX('Risk Matrix'!$G$28:$G$53,MATCH(SUMPRODUCT(('Risk Matrix'!$B$28:$B$53<=L24)*('Risk Matrix'!$C$28:$C$53>=L24)*('Risk Matrix'!$D$28:$D$53<=K24)*('Risk Matrix'!$E$28:$E$53>=K24)*('Risk Matrix'!$F$28:$F$53)),'Risk Matrix'!$F$28:$F$53,0)),0))","v":"VL1"}]
[null,"H4 - Climatológicos"]
[null,null,null,null,null,null,null,null,{"$f":"IFERROR((((INDEX(Assumptions!$F$28:$F$38,MATCH(E26,Vulnerabilties,0))*Assumptions!$F$10)+(INDEX(Assumptions!$F$28:$F$38,MATCH(F26,Vulnerabilties,0))*Assumptions!$F$10)+(INDEX(Assumptions!$F$28:$F$38,MATCH(G26,Vulnerabilties,0))*Assumptions!$F$10)+(INDEX(Assumptions!$F$28:$F$38,MATCH(H26,Vulnerabilties,0))*Assumptions!$F$10))*Assumptions!$F$9),0)","v":0},null,{"$f":"IFERROR(INDEX(Assumptions!$F$15:$F$25,MATCH(D26,Exposures,0)*Assumptions!$F$8+(I26/Assumptions!$F$9)*Assumptions!$F$8),0)","v":0},{"$f":"IFERROR((K26*Assumptions!$F$9)-(INDEX(Assumptions!$F$41:$F$51,MATCH(J26,Levels_of_response,0))*Assumptions!$F$9),0)","v":0},{"$f":"IF(L26<=0,\"VL1\",IFERROR(INDEX('Risk Matrix'!$G$28:$G$53,MATCH(SUMPRODUCT(('Risk Matrix'!$B$28:$B$53<=L26)*('Risk Matrix'!$C$28:$C$53>=L26)*('Risk Matrix'!$D$28:$D$53<=K26)*('Risk Matrix'!$E$28:$E$53>=K26)*('Risk Matrix'!$F$28:$F$53)),'Risk Matrix'!$F$28:$F$53,0)),0))","v":"VL1"}]
[null,null,null,null,null,null,null,null,{"$f":"IFERROR((((INDEX(Assumptions!$F$28:$F$38,MATCH(E27,Vulnerabilties,0))*Assumptions!$F$10)+(INDEX(Assumptions!$F$28:$F$38,MATCH(F27,Vulnerabilties,0))*Assumptions!$F$10)+(INDEX(Assumptions!$F$28:$F$38,MATCH(G27,Vulnerabilties,0))*Assumptions!$F$10)+(INDEX(Assumptions!$F$28:$F$38,MATCH(H27,Vulnerabilties,0))*Assumptions!$F$10))*Assumptions!$F$9),0)","v":0},null,{"$f":"IFERROR(INDEX(Assumptions!$F$15:$F$25,MATCH(D27,Exposures,0)*Assumptions!$F$8+(I27/Assumptions!$F$9)*Assumptions!$F$8),0)","v":0},{"$f":"IFERROR((K27*Assumptions!$F$9)-(INDEX(Assumptions!$F$41:$F$51,MATCH(J27,Levels_of_response,0))*Assumptions!$F$9),0)","v":0},{"$f":"IF(L27<=0,\"VL1\",IFERROR(INDEX('Risk Matrix'!$G$28:$G$53,MATCH(SUMPRODUCT(('Risk Matrix'!$B$28:$B$53<=L27)*('Risk Matrix'!$C$28:$C$53>=L27)*('Risk Matrix'!$D$28:$D$53<=K27)*('Risk Matrix'!$E$28:$E$53>=K27)*('Risk Matrix'!$F$28:$F$53)),'Risk Matrix'!$F$28:$F$53,0)),0))","v":"VL1"}]
[null,null,null,null,null,null,null,null,{"$f":"IFERROR((((INDEX(Assumptions!$F$28:$F$38,MATCH(E28,Vulnerabilties,0))*Assumptions!$F$10)+(INDEX(Assumptions!$F$28:$F$38,MATCH(F28,Vulnerabilties,0))*Assumptions!$F$10)+(INDEX(Assumptions!$F$28:$F$38,MATCH(G28,Vulnerabilties,0))*Assumptions!$F$10)+(INDEX(Assumptions!$F$28:$F$38,MATCH(H28,Vulnerabilties,0))*Assumptions!$F$10))*Assumptions!$F$9),0)","v":0},null,{"$f":"IFERROR(INDEX(Assumptions!$F$15:$F$25,MATCH(D28,Exposures,0)*Assumptions!$F$8+(I28/Assumptions!$F$9)*Assumptions!$F$8),0)","v":0},{"$f":"IFERROR((K28*Assumptions!$F$9)-(INDEX(Assumptions!$F$41:$F$51,MATCH(J28,Levels_of_response,0))*Assumptions!$F$9),0)","v":0},{"$f":"IF(L28<=0,\"VL1\",IFERROR(INDEX('Risk Matrix'!$G$28:$G$53,MATCH(SUMPRODUCT(('Risk Matrix'!$B$28:$B$53<=L28)*('Risk Matrix'!$C$28:$C$53>=L28)*('Risk Matrix'!$D$28:$D$53<=K28)*('Risk Matrix'!$E$28:$E$53>=K28)*('Risk Matrix'!$F$28:$F$53)),'Risk Matrix'!$F$28:$F$53,0)),0))","v":"VL1"}]
[null,null,null,null,null,null,null,null,{"$f":"IFERROR((((INDEX(Assumptions!$F$28:$F$38,MATCH(E29,Vulnerabilties,0))*Assumptions!$F$10)+(INDEX(Assumptions!$F$28:$F$38,MATCH(F29,Vulnerabilties,0))*Assumptions!$F$10)+(INDEX(Assumptions!$F$28:$F$38,MATCH(G29,Vulnerabilties,0))*Assumptions!$F$10)+(INDEX(Assumptions!$F$28:$F$38,MATCH(H29,Vulnerabilties,0))*Assumptions!$F$10))*Assumptions!$F$9),0)","v":0},null,{"$f":"IFERROR(INDEX(Assumptions!$F$15:$F$25,MATCH(D29,Exposures,0)*Assumptions!$F$8+(I29/Assumptions!$F$9)*Assumptions!$F$8),0)","v":0},{"$f":"IFERROR((K29*Assumptions!$F$9)-(INDEX(Assumptions!$F$41:$F$51,MATCH(J29,Levels_of_response,0))*Assumptions!$F$9),0)","v":0},{"$f":"IF(L29<=0,\"VL1\",IFERROR(INDEX('Risk Matrix'!$G$28:$G$53,MATCH(SUMPRODUCT(('Risk Matrix'!$B$28:$B$53<=L29)*('Risk Matrix'!$C$28:$C$53>=L29)*('Risk Matrix'!$D$28:$D$53<=K29)*('Risk Matrix'!$E$28:$E$53>=K29)*('Risk Matrix'!$F$28:$F$53)),'Risk Matrix'!$F$28:$F$53,0)),0))","v":"VL1"}]
[null,null,null,null,null,null,null,null,{"$f":"IFERROR((((INDEX(Assumptions!$F$28:$F$38,MATCH(E30,Vulnerabilties,0))*Assumptions!$F$10)+(INDEX(Assumptions!$F$28:$F$38,MATCH(F30,Vulnerabilties,0))*Assumptions!$F$10)+(INDEX(Assumptions!$F$28:$F$38,MATCH(G30,Vulnerabilties,0))*Assumptions!$F$10)+(INDEX(Assumptions!$F$28:$F$38,MATCH(H30,Vulnerabilties,0))*Assumptions!$F$10))*Assumptions!$F$9),0)","v":0},null,{"$f":"IFERROR(INDEX(Assumptions!$F$15:$F$25,MATCH(D30,Exposures,0)*Assumptions!$F$8+(I30/Assumptions!$F$9)*Assumptions!$F$8),0)","v":0},{"$f":"IFERROR((K30*Assumptions!$F$9)-(INDEX(Assumptions!$F$41:$F$51,MATCH(J30,Levels_of_response,0))*Assumptions!$F$9),0)","v":0},{"$f":"IF(L30<=0,\"VL1\",IFERROR(INDEX('Risk Matrix'!$G$28:$G$53,MATCH(SUMPRODUCT(('Risk Matrix'!$B$28:$B$53<=L30)*('Risk Matrix'!$C$28:$C$53>=L30)*('Risk Matrix'!$D$28:$D$53<=K30)*('Risk Matrix'!$E$28:$E$53>=K30)*('Risk Matrix'!$F$28:$F$53)),'Risk Matrix'!$F$28:$F$53,0)),0))","v":"VL1"}]
[null,"H5 -Biológicos"]
[null,null,null,null,null,null,null,null,{"$f":"IFERROR((((INDEX(Assumptions!$F$28:$F$38,MATCH(E32,Vulnerabilties,0))*Assumptions!$F$10)+(INDEX(Assumptions!$F$28:$F$38,MATCH(F32,Vulnerabilties,0))*Assumptions!$F$10)+(INDEX(Assumptions!$F$28:$F$38,MATCH(G32,Vulnerabilties,0))*Assumptions!$F$10)+(INDEX(Assumptions!$F$28:$F$38,MATCH(H32,Vulnerabilties,0))*Assumptions!$F$10))*Assumptions!$F$9),0)","v":0},null,{"$f":"IFERROR(INDEX(Assumptions!$F$15:$F$25,MATCH(D32,Exposures,0)*Assumptions!$F$8+(I32/Assumptions!$F$9)*Assumptions!$F$8),0)","v":0},{"$f":"IFERROR((K32*Assumptions!$F$9)-(INDEX(Assumptions!$F$41:$F$51,MATCH(J32,Levels_of_response,0))*Assumptions!$F$9),0)","v":0},{"$f":"IF(L32<=0,\"VL1\",IFERROR(INDEX('Risk Matrix'!$G$28:$G$53,MATCH(SUMPRODUCT(('Risk Matrix'!$B$28:$B$53<=L32)*('Risk Matrix'!$C$28:$C$53>=L32)*('Risk Matrix'!$D$28:$D$53<=K32)*('Risk Matrix'!$E$28:$E$53>=K32)*('Risk Matrix'!$F$28:$F$53)),'Risk Matrix'!$F$28:$F$53,0)),0))","v":"VL1"}]
[null,null,null,null,null,null,null,null,{"$f":"IFERROR((((INDEX(Assumptions!$F$28:$F$38,MATCH(E33,Vulnerabilties,0))*Assumptions!$F$10)+(INDEX(Assumptions!$F$28:$F$38,MATCH(F33,Vulnerabilties,0))*Assumptions!$F$10)+(INDEX(Assumptions!$F$28:$F$38,MATCH(G33,Vulnerabilties,0))*Assumptions!$F$10)+(INDEX(Assumptions!$F$28:$F$38,MATCH(H33,Vulnerabilties,0))*Assumptions!$F$10))*Assumptions!$F$9),0)","v":0},null,{"$f":"IFERROR(INDEX(Assumptions!$F$15:$F$25,MATCH(D33,Exposures,0)*Assumptions!$F$8+(I33/Assumptions!$F$9)*Assumptions!$F$8),0)","v":0},{"$f":"IFERROR((K33*Assumptions!$F$9)-(INDEX(Assumptions!$F$41:$F$51,MATCH(J33,Levels_of_response,0))*Assumptions!$F$9),0)","v":0},{"$f":"IF(L33<=0,\"VL1\",IFERROR(INDEX('Risk Matrix'!$G$28:$G$53,MATCH(SUMPRODUCT(('Risk Matrix'!$B$28:$B$53<=L33)*('Risk Matrix'!$C$28:$C$53>=L33)*('Risk Matrix'!$D$28:$D$53<=K33)*('Risk Matrix'!$E$28:$E$53>=K33)*('Risk Matrix'!$F$28:$F$53)),'Risk Matrix'!$F$28:$F$53,0)),0))","v":"VL1"}]
[null,null,null,null,null,null,null,null,{"$f":"IFERROR((((INDEX(Assumptions!$F$28:$F$38,MATCH(E34,Vulnerabilties,0))*Assumptions!$F$10)+(INDEX(Assumptions!$F$28:$F$38,MATCH(F34,Vulnerabilties,0))*Assumptions!$F$10)+(INDEX(Assumptions!$F$28:$F$38,MATCH(G34,Vulnerabilties,0))*Assumptions!$F$10)+(INDEX(Assumptions!$F$28:$F$38,MATCH(H34,Vulnerabilties,0))*Assumptions!$F$10))*Assumptions!$F$9),0)","v":0},null,{"$f":"IFERROR(INDEX(Assumptions!$F$15:$F$25,MATCH(D34,Exposures,0)*Assumptions!$F$8+(I34/Assumptions!$F$9)*Assumptions!$F$8),0)","v":0},{"$f":"IFERROR((K34*Assumptions!$F$9)-(INDEX(Assumptions!$F$41:$F$51,MATCH(J34,Levels_of_response,0))*Assumptions!$F$9),0)","v":0},{"$f":"IF(L34<=0,\"VL1\",IFERROR(INDEX('Risk Matrix'!$G$28:$G$53,MATCH(SUMPRODUCT(('Risk Matrix'!$B$28:$B$53<=L34)*('Risk Matrix'!$C$28:$C$53>=L34)*('Risk Matrix'!$D$28:$D$53<=K34)*('Risk Matrix'!$E$28:$E$53>=K34)*('Risk Matrix'!$F$28:$F$53)),'Risk Matrix'!$F$28:$F$53,0)),0))","v":"VL1"}]
[null,null,null,null,null,null,null,null,{"$f":"IFERROR((((INDEX(Assumptions!$F$28:$F$38,MATCH(E35,Vulnerabilties,0))*Assumptions!$F$10)+(INDEX(Assumptions!$F$28:$F$38,MATCH(F35,Vulnerabilties,0))*Assumptions!$F$10)+(INDEX(Assumptions!$F$28:$F$38,MATCH(G35,Vulnerabilties,0))*Assumptions!$F$10)+(INDEX(Assumptions!$F$28:$F$38,MATCH(H35,Vulnerabilties,0))*Assumptions!$F$10))*Assumptions!$F$9),0)","v":0},null,{"$f":"IFERROR(INDEX(Assumptions!$F$15:$F$25,MATCH(D35,Exposures,0)*Assumptions!$F$8+(I35/Assumptions!$F$9)*Assumptions!$F$8),0)","v":0},{"$f":"IFERROR((K35*Assumptions!$F$9)-(INDEX(Assumptions!$F$41:$F$51,MATCH(J35,Levels_of_response,0))*Assumptions!$F$9),0)","v":0},{"$f":"IF(L35<=0,\"VL1\",IFERROR(INDEX('Risk Matrix'!$G$28:$G$53,MATCH(SUMPRODUCT(('Risk Matrix'!$B$28:$B$53<=L35)*('Risk Matrix'!$C$28:$C$53>=L35)*('Risk Matrix'!$D$28:$D$53<=K35)*('Risk Matrix'!$E$28:$E$53>=K35)*('Risk Matrix'!$F$28:$F$53)),'Risk Matrix'!$F$28:$F$53,0)),0))","v":"VL1"}]
[null,null,null,null,null,null,null,null,{"$f":"IFERROR((((INDEX(Assumptions!$F$28:$F$38,MATCH(E36,Vulnerabilties,0))*Assumptions!$F$10)+(INDEX(Assumptions!$F$28:$F$38,MATCH(F36,Vulnerabilties,0))*Assumptions!$F$10)+(INDEX(Assumptions!$F$28:$F$38,MATCH(G36,Vulnerabilties,0))*Assumptions!$F$10)+(INDEX(Assumptions!$F$28:$F$38,MATCH(H36,Vulnerabilties,0))*Assumptions!$F$10))*Assumptions!$F$9),0)","v":0},null,{"$f":"IFERROR(INDEX(Assumptions!$F$15:$F$25,MATCH(D36,Exposures,0)*Assumptions!$F$8+(I36/Assumptions!$F$9)*Assumptions!$F$8),0)","v":0},{"$f":"IFERROR((K36*Assumptions!$F$9)-(INDEX(Assumptions!$F$41:$F$51,MATCH(J36,Levels_of_response,0))*Assumptions!$F$9),0)","v":0},{"$f":"IF(L36<=0,\"VL1\",IFERROR(INDEX('Risk Matrix'!$G$28:$G$53,MATCH(SUMPRODUCT(('Risk Matrix'!$B$28:$B$53<=L36)*('Risk Matrix'!$C$28:$C$53>=L36)*('Risk Matrix'!$D$28:$D$53<=K36)*('Risk Matrix'!$E$28:$E$53>=K36)*('Risk Matrix'!$F$28:$F$53)),'Risk Matrix'!$F$28:$F$53,0)),0))","v":"VL1"}]
[null,"H6 - Extra-terrestres"]
[null,null,null,null,null,null,null,null,{"$f":"IFERROR((((INDEX(Assumptions!$F$28:$F$38,MATCH(E38,Vulnerabilties,0))*Assumptions!$F$10)+(INDEX(Assumptions!$F$28:$F$38,MATCH(F38,Vulnerabilties,0))*Assumptions!$F$10)+(INDEX(Assumptions!$F$28:$F$38,MATCH(G38,Vulnerabilties,0))*Assumptions!$F$10)+(INDEX(Assumptions!$F$28:$F$38,MATCH(H38,Vulnerabilties,0))*Assumptions!$F$10))*Assumptions!$F$9),0)","v":0},null,{"$f":"IFERROR(INDEX(Assumptions!$F$15:$F$25,MATCH(D38,Exposures,0)*Assumptions!$F$8+(I38/Assumptions!$F$9)*Assumptions!$F$8),0)","v":0},{"$f":"IFERROR((K38*Assumptions!$F$9)-(INDEX(Assumptions!$F$41:$F$51,MATCH(J38,Levels_of_response,0))*Assumptions!$F$9),0)","v":0},{"$f":"IF(L38<=0,\"VL1\",IFERROR(INDEX('Risk Matrix'!$G$28:$G$53,MATCH(SUMPRODUCT(('Risk Matrix'!$B$28:$B$53<=L38)*('Risk Matrix'!$C$28:$C$53>=L38)*('Risk Matrix'!$D$28:$D$53<=K38)*('Risk Matrix'!$E$28:$E$53>=K38)*('Risk Matrix'!$F$28:$F$53)),'Risk Matrix'!$F$28:$F$53,0)),0))","v":"VL1"}]
[null,null,null,null,null,null,null,null,{"$f":"IFERROR((((INDEX(Assumptions!$F$28:$F$38,MATCH(E39,Vulnerabilties,0))*Assumptions!$F$10)+(INDEX(Assumptions!$F$28:$F$38,MATCH(F39,Vulnerabilties,0))*Assumptions!$F$10)+(INDEX(Assumptions!$F$28:$F$38,MATCH(G39,Vulnerabilties,0))*Assumptions!$F$10)+(INDEX(Assumptions!$F$28:$F$38,MATCH(H39,Vulnerabilties,0))*Assumptions!$F$10))*Assumptions!$F$9),0)","v":0},null,{"$f":"IFERROR(INDEX(Assumptions!$F$15:$F$25,MATCH(D39,Exposures,0)*Assumptions!$F$8+(I39/Assumptions!$F$9)*Assumptions!$F$8),0)","v":0},{"$f":"IFERROR((K39*Assumptions!$F$9)-(INDEX(Assumptions!$F$41:$F$51,MATCH(J39,Levels_of_response,0))*Assumptions!$F$9),0)","v":0},{"$f":"IF(L39<=0,\"VL1\",IFERROR(INDEX('Risk Matrix'!$G$28:$G$53,MATCH(SUMPRODUCT(('Risk Matrix'!$B$28:$B$53<=L39)*('Risk Matrix'!$C$28:$C$53>=L39)*('Risk Matrix'!$D$28:$D$53<=K39)*('Risk Matrix'!$E$28:$E$53>=K39)*('Risk Matrix'!$F$28:$F$53)),'Risk Matrix'!$F$28:$F$53,0)),0))","v":"VL1"}]
[null,null,null,null,null,null,null,null,{"$f":"IFERROR((((INDEX(Assumptions!$F$28:$F$38,MATCH(E40,Vulnerabilties,0))*Assumptions!$F$10)+(INDEX(Assumptions!$F$28:$F$38,MATCH(F40,Vulnerabilties,0))*Assumptions!$F$10)+(INDEX(Assumptions!$F$28:$F$38,MATCH(G40,Vulnerabilties,0))*Assumptions!$F$10)+(INDEX(Assumptions!$F$28:$F$38,MATCH(H40,Vulnerabilties,0))*Assumptions!$F$10))*Assumptions!$F$9),0)","v":0},null,{"$f":"IFERROR(INDEX(Assumptions!$F$15:$F$25,MATCH(D40,Exposures,0)*Assumptions!$F$8+(I40/Assumptions!$F$9)*Assumptions!$F$8),0)","v":0},{"$f":"IFERROR((K40*Assumptions!$F$9)-(INDEX(Assumptions!$F$41:$F$51,MATCH(J40,Levels_of_response,0))*Assumptions!$F$9),0)","v":0},{"$f":"IF(L40<=0,\"VL1\",IFERROR(INDEX('Risk Matrix'!$G$28:$G$53,MATCH(SUMPRODUCT(('Risk Matrix'!$B$28:$B$53<=L40)*('Risk Matrix'!$C$28:$C$53>=L40)*('Risk Matrix'!$D$28:$D$53<=K40)*('Risk Matrix'!$E$28:$E$53>=K40)*('Risk Matrix'!$F$28:$F$53)),'Risk Matrix'!$F$28:$F$53,0)),0))","v":"VL1"}]
[null,null,null,null,null,null,null,null,{"$f":"IFERROR((((INDEX(Assumptions!$F$28:$F$38,MATCH(E41,Vulnerabilties,0))*Assumptions!$F$10)+(INDEX(Assumptions!$F$28:$F$38,MATCH(F41,Vulnerabilties,0))*Assumptions!$F$10)+(INDEX(Assumptions!$F$28:$F$38,MATCH(G41,Vulnerabilties,0))*Assumptions!$F$10)+(INDEX(Assumptions!$F$28:$F$38,MATCH(H41,Vulnerabilties,0))*Assumptions!$F$10))*Assumptions!$F$9),0)","v":0},null,{"$f":"IFERROR(INDEX(Assumptions!$F$15:$F$25,MATCH(D41,Exposures,0)*Assumptions!$F$8+(I41/Assumptions!$F$9)*Assumptions!$F$8),0)","v":0},{"$f":"IFERROR((K41*Assumptions!$F$9)-(INDEX(Assumptions!$F$41:$F$51,MATCH(J41,Levels_of_response,0))*Assumptions!$F$9),0)","v":0},{"$f":"IF(L41<=0,\"VL1\",IFERROR(INDEX('Risk Matrix'!$G$28:$G$53,MATCH(SUMPRODUCT(('Risk Matrix'!$B$28:$B$53<=L41)*('Risk Matrix'!$C$28:$C$53>=L41)*('Risk Matrix'!$D$28:$D$53<=K41)*('Risk Matrix'!$E$28:$E$53>=K41)*('Risk Matrix'!$F$28:$F$53)),'Risk Matrix'!$F$28:$F$53,0)),0))","v":"VL1"}]
[null,null,null,null,null,null,null,null,{"$f":"IFERROR((((INDEX(Assumptions!$F$28:$F$38,MATCH(E42,Vulnerabilties,0))*Assumptions!$F$10)+(INDEX(Assumptions!$F$28:$F$38,MATCH(F42,Vulnerabilties,0))*Assumptions!$F$10)+(INDEX(Assumptions!$F$28:$F$38,MATCH(G42,Vulnerabilties,0))*Assumptions!$F$10)+(INDEX(Assumptions!$F$28:$F$38,MATCH(H42,Vulnerabilties,0))*Assumptions!$F$10))*Assumptions!$F$9),0)","v":0},null,{"$f":"IFERROR(INDEX(Assumptions!$F$15:$F$25,MATCH(D42,Exposures,0)*Assumptions!$F$8+(I42/Assumptions!$F$9)*Assumptions!$F$8),0)","v":0},{"$f":"IFERROR((K42*Assumptions!$F$9)-(INDEX(Assumptions!$F$41:$F$51,MATCH(J42,Levels_of_response,0))*Assumptions!$F$9),0)","v":0},{"$f":"IF(L42<=0,\"VL1\",IFERROR(INDEX('Risk Matrix'!$G$28:$G$53,MATCH(SUMPRODUCT(('Risk Matrix'!$B$28:$B$53<=L42)*('Risk Matrix'!$C$28:$C$53>=L42)*('Risk Matrix'!$D$28:$D$53<=K42)*('Risk Matrix'!$E$28:$E$53>=K42)*('Risk Matrix'!$F$28:$F$53)),'Risk Matrix'!$F$28:$F$53,0)),0))","v":"VL1"}]
[null,"H7 - Antropogénicos"]
[null,null,null,null,null,null,null,null,{"$f":"IFERROR((((INDEX(Assumptions!$F$28:$F$38,MATCH(E44,Vulnerabilties,0))*Assumptions!$F$10)+(INDEX(Assumptions!$F$28:$F$38,MATCH(F44,Vulnerabilties,0))*Assumptions!$F$10)+(INDEX(Assumptions!$F$28:$F$38,MATCH(G44,Vulnerabilties,0))*Assumptions!$F$10)+(INDEX(Assumptions!$F$28:$F$38,MATCH(H44,Vulnerabilties,0))*Assumptions!$F$10))*Assumptions!$F$9),0)","v":0},null,{"$f":"IFERROR(INDEX(Assumptions!$F$15:$F$25,MATCH(D44,Exposures,0)*Assumptions!$F$8+(I44/Assumptions!$F$9)*Assumptions!$F$8),0)","v":0},{"$f":"IFERROR((K44*Assumptions!$F$9)-(INDEX(Assumptions!$F$41:$F$51,MATCH(J44,Levels_of_response,0))*Assumptions!$F$9),0)","v":0},{"$f":"IF(L44<=0,\"VL1\",IFERROR(INDEX('Risk Matrix'!$G$28:$G$53,MATCH(SUMPRODUCT(('Risk Matrix'!$B$28:$B$53<=L44)*('Risk Matrix'!$C$28:$C$53>=L44)*('Risk Matrix'!$D$28:$D$53<=K44)*('Risk Matrix'!$E$28:$E$53>=K44)*('Risk Matrix'!$F$28:$F$53)),'Risk Matrix'!$F$28:$F$53,0)),0))","v":"VL1"}]
[null,null,null,null,null,null,null,null,{"$f":"IFERROR((((INDEX(Assumptions!$F$28:$F$38,MATCH(E45,Vulnerabilties,0))*Assumptions!$F$10)+(INDEX(Assumptions!$F$28:$F$38,MATCH(F45,Vulnerabilties,0))*Assumptions!$F$10)+(INDEX(Assumptions!$F$28:$F$38,MATCH(G45,Vulnerabilties,0))*Assumptions!$F$10)+(INDEX(Assumptions!$F$28:$F$38,MATCH(H45,Vulnerabilties,0))*Assumptions!$F$10))*Assumptions!$F$9),0)","v":0},null,{"$f":"IFERROR(INDEX(Assumptions!$F$15:$F$25,MATCH(D45,Exposures,0)*Assumptions!$F$8+(I45/Assumptions!$F$9)*Assumptions!$F$8),0)","v":0},{"$f":"IFERROR((K45*Assumptions!$F$9)-(INDEX(Assumptions!$F$41:$F$51,MATCH(J45,Levels_of_response,0))*Assumptions!$F$9),0)","v":0},{"$f":"IF(L45<=0,\"VL1\",IFERROR(INDEX('Risk Matrix'!$G$28:$G$53,MATCH(SUMPRODUCT(('Risk Matrix'!$B$28:$B$53<=L45)*('Risk Matrix'!$C$28:$C$53>=L45)*('Risk Matrix'!$D$28:$D$53<=K45)*('Risk Matrix'!$E$28:$E$53>=K45)*('Risk Matrix'!$F$28:$F$53)),'Risk Matrix'!$F$28:$F$53,0)),0))","v":"VL1"}]
[null,null,null,null,null,null,null,null,{"$f":"IFERROR((((INDEX(Assumptions!$F$28:$F$38,MATCH(E46,Vulnerabilties,0))*Assumptions!$F$10)+(INDEX(Assumptions!$F$28:$F$38,MATCH(F46,Vulnerabilties,0))*Assumptions!$F$10)+(INDEX(Assumptions!$F$28:$F$38,MATCH(G46,Vulnerabilties,0))*Assumptions!$F$10)+(INDEX(Assumptions!$F$28:$F$38,MATCH(H46,Vulnerabilties,0))*Assumptions!$F$10))*Assumptions!$F$9),0)","v":0},null,{"$f":"IFERROR(INDEX(Assumptions!$F$15:$F$25,MATCH(D46,Exposures,0)*Assumptions!$F$8+(I46/Assumptions!$F$9)*Assumptions!$F$8),0)","v":0},{"$f":"IFERROR((K46*Assumptions!$F$9)-(INDEX(Assumptions!$F$41:$F$51,MATCH(J46,Levels_of_response,0))*Assumptions!$F$9),0)","v":0},{"$f":"IF(L46<=0,\"VL1\",IFERROR(INDEX('Risk Matrix'!$G$28:$G$53,MATCH(SUMPRODUCT(('Risk Matrix'!$B$28:$B$53<=L46)*('Risk Matrix'!$C$28:$C$53>=L46)*('Risk Matrix'!$D$28:$D$53<=K46)*('Risk Matrix'!$E$28:$E$53>=K46)*('Risk Matrix'!$F$28:$F$53)),'Risk Matrix'!$F$28:$F$53,0)),0))","v":"VL1"}]
[null,null,null,null,null,null,null,null,{"$f":"IFERROR((((INDEX(Assumptions!$F$28:$F$38,MATCH(E47,Vulnerabilties,0))*Assumptions!$F$10)+(INDEX(Assumptions!$F$28:$F$38,MATCH(F47,Vulnerabilties,0))*Assumptions!$F$10)+(INDEX(Assumptions!$F$28:$F$38,MATCH(G47,Vulnerabilties,0))*Assumptions!$F$10)+(INDEX(Assumptions!$F$28:$F$38,MATCH(H47,Vulnerabilties,0))*Assumptions!$F$10))*Assumptions!$F$9),0)","v":0},null,{"$f":"IFERROR(INDEX(Assumptions!$F$15:$F$25,MATCH(D47,Exposures,0)*Assumptions!$F$8+(I47/Assumptions!$F$9)*Assumptions!$F$8),0)","v":0},{"$f":"IFERROR((K47*Assumptions!$F$9)-(INDEX(Assumptions!$F$41:$F$51,MATCH(J47,Levels_of_response,0))*Assumptions!$F$9),0)","v":0},{"$f":"IF(L47<=0,\"VL1\",IFERROR(INDEX('Risk Matrix'!$G$28:$G$53,MATCH(SUMPRODUCT(('Risk Matrix'!$B$28:$B$53<=L47)*('Risk Matrix'!$C$28:$C$53>=L47)*('Risk Matrix'!$D$28:$D$53<=K47)*('Risk Matrix'!$E$28:$E$53>=K47)*('Risk Matrix'!$F$28:$F$53)),'Risk Matrix'!$F$28:$F$53,0)),0))","v":"VL1"}]
[null,null,null,null,null,null,null,null,{"$f":"IFERROR((((INDEX(Assumptions!$F$28:$F$38,MATCH(E48,Vulnerabilties,0))*Assumptions!$F$10)+(INDEX(Assumptions!$F$28:$F$38,MATCH(F48,Vulnerabilties,0))*Assumptions!$F$10)+(INDEX(Assumptions!$F$28:$F$38,MATCH(G48,Vulnerabilties,0))*Assumptions!$F$10)+(INDEX(Assumptions!$F$28:$F$38,MATCH(H48,Vulnerabilties,0))*Assumptions!$F$10))*Assumptions!$F$9),0)","v":0},null,{"$f":"IFERROR(INDEX(Assumptions!$F$15:$F$25,MATCH(D48,Exposures,0)*Assumptions!$F$8+(I48/Assumptions!$F$9)*Assumptions!$F$8),0)","v":0},{"$f":"IFERROR((K48*Assumptions!$F$9)-(INDEX(Assumptions!$F$41:$F$51,MATCH(J48,Levels_of_response,0))*Assumptions!$F$9),0)","v":0},{"$f":"IF(L48<=0,\"VL1\",IFERROR(INDEX('Risk Matrix'!$G$28:$G$53,MATCH(SUMPRODUCT(('Risk Matrix'!$B$28:$B$53<=L48)*('Risk Matrix'!$C$28:$C$53>=L48)*('Risk Matrix'!$D$28:$D$53<=K48)*('Risk Matrix'!$E$28:$E$53>=K48)*('Risk Matrix'!$F$28:$F$53)),'Risk Matrix'!$F$28:$F$53,0)),0))","v":"VL1"}]
[null,"H8 - Otros (Definidos por el Usuario)"]
[null,null,null,null,null,null,null,null,{"$f":"IFERROR((((INDEX(Assumptions!$F$28:$F$38,MATCH(E50,Vulnerabilties,0))*Assumptions!$F$10)+(INDEX(Assumptions!$F$28:$F$38,MATCH(F50,Vulnerabilties,0))*Assumptions!$F$10)+(INDEX(Assumptions!$F$28:$F$38,MATCH(G50,Vulnerabilties,0))*Assumptions!$F$10)+(INDEX(Assumptions!$F$28:$F$38,MATCH(H50,Vulnerabilties,0))*Assumptions!$F$10))*Assumptions!$F$9),0)","v":0},null,{"$f":"IFERROR(INDEX(Assumptions!$F$15:$F$25,MATCH(D50,Exposures,0)*Assumptions!$F$8+(I50/Assumptions!$F$9)*Assumptions!$F$8),0)","v":0},{"$f":"IFERROR((K50*Assumptions!$F$9)-(INDEX(Assumptions!$F$41:$F$51,MATCH(J50,Levels_of_response,0))*Assumptions!$F$9),0)","v":0},{"$f":"IF(L50<=0,\"VL1\",IFERROR(INDEX('Risk Matrix'!$G$28:$G$53,MATCH(SUMPRODUCT(('Risk Matrix'!$B$28:$B$53<=L50)*('Risk Matrix'!$C$28:$C$53>=L50)*('Risk Matrix'!$D$28:$D$53<=K50)*('Risk Matrix'!$E$28:$E$53>=K50)*('Risk Matrix'!$F$28:$F$53)),'Risk Matrix'!$F$28:$F$53,0)),0))","v":"VL1"}]
[null,null,null,null,null,null,null,null,{"$f":"IFERROR((((INDEX(Assumptions!$F$28:$F$38,MATCH(E51,Vulnerabilties,0))*Assumptions!$F$10)+(INDEX(Assumptions!$F$28:$F$38,MATCH(F51,Vulnerabilties,0))*Assumptions!$F$10)+(INDEX(Assumptions!$F$28:$F$38,MATCH(G51,Vulnerabilties,0))*Assumptions!$F$10)+(INDEX(Assumptions!$F$28:$F$38,MATCH(H51,Vulnerabilties,0))*Assumptions!$F$10))*Assumptions!$F$9),0)","v":0},null,{"$f":"IFERROR(INDEX(Assumptions!$F$15:$F$25,MATCH(D51,Exposures,0)*Assumptions!$F$8+(I51/Assumptions!$F$9)*Assumptions!$F$8),0)","v":0},{"$f":"IFERROR((K51*Assumptions!$F$9)-(INDEX(Assumptions!$F$41:$F$51,MATCH(J51,Levels_of_response,0))*Assumptions!$F$9),0)","v":0},{"$f":"IF(L51<=0,\"VL1\",IFERROR(INDEX('Risk Matrix'!$G$28:$G$53,MATCH(SUMPRODUCT(('Risk Matrix'!$B$28:$B$53<=L51)*('Risk Matrix'!$C$28:$C$53>=L51)*('Risk Matrix'!$D$28:$D$53<=K51)*('Risk Matrix'!$E$28:$E$53>=K51)*('Risk Matrix'!$F$28:$F$53)),'Risk Matrix'!$F$28:$F$53,0)),0))","v":"VL1"}]
[null,null,null,null,null,null,null,null,{"$f":"IFERROR((((INDEX(Assumptions!$F$28:$F$38,MATCH(E52,Vulnerabilties,0))*Assumptions!$F$10)+(INDEX(Assumptions!$F$28:$F$38,MATCH(F52,Vulnerabilties,0))*Assumptions!$F$10)+(INDEX(Assumptions!$F$28:$F$38,MATCH(G52,Vulnerabilties,0))*Assumptions!$F$10)+(INDEX(Assumptions!$F$28:$F$38,MATCH(H52,Vulnerabilties,0))*Assumptions!$F$10))*Assumptions!$F$9),0)","v":0},null,{"$f":"IFERROR(INDEX(Assumptions!$F$15:$F$25,MATCH(D52,Exposures,0)*Assumptions!$F$8+(I52/Assumptions!$F$9)*Assumptions!$F$8),0)","v":0},{"$f":"IFERROR((K52*Assumptions!$F$9)-(INDEX(Assumptions!$F$41:$F$51,MATCH(J52,Levels_of_response,0))*Assumptions!$F$9),0)","v":0},{"$f":"IF(L52<=0,\"VL1\",IFERROR(INDEX('Risk Matrix'!$G$28:$G$53,MATCH(SUMPRODUCT(('Risk Matrix'!$B$28:$B$53<=L52)*('Risk Matrix'!$C$28:$C$53>=L52)*('Risk Matrix'!$D$28:$D$53<=K52)*('Risk Matrix'!$E$28:$E$53>=K52)*('Risk Matrix'!$F$28:$F$53)),'Risk Matrix'!$F$28:$F$53,0)),0))","v":"VL1"}]
[null,null,null,null,null,null,null,null,{"$f":"IFERROR((((INDEX(Assumptions!$F$28:$F$38,MATCH(E53,Vulnerabilties,0))*Assumptions!$F$10)+(INDEX(Assumptions!$F$28:$F$38,MATCH(F53,Vulnerabilties,0))*Assumptions!$F$10)+(INDEX(Assumptions!$F$28:$F$38,MATCH(G53,Vulnerabilties,0))*Assumptions!$F$10)+(INDEX(Assumptions!$F$28:$F$38,MATCH(H53,Vulnerabilties,0))*Assumptions!$F$10))*Assumptions!$F$9),0)","v":0},null,{"$f":"IFERROR(INDEX(Assumptions!$F$15:$F$25,MATCH(D53,Exposures,0)*Assumptions!$F$8+(I53/Assumptions!$F$9)*Assumptions!$F$8),0)","v":0},{"$f":"IFERROR((K53*Assumptions!$F$9)-(INDEX(Assumptions!$F$41:$F$51,MATCH(J53,Levels_of_response,0))*Assumptions!$F$9),0)","v":0},{"$f":"IF(L53<=0,\"VL1\",IFERROR(INDEX('Risk Matrix'!$G$28:$G$53,MATCH(SUMPRODUCT(('Risk Matrix'!$B$28:$B$53<=L53)*('Risk Matrix'!$C$28:$C$53>=L53)*('Risk Matrix'!$D$28:$D$53<=K53)*('Risk Matrix'!$E$28:$E$53>=K53)*('Risk Matrix'!$F$28:$F$53)),'Risk Matrix'!$F$28:$F$53,0)),0))","v":"VL1"}]
[null,null,null,null,null,null,null,null,{"$f":"IFERROR((((INDEX(Assumptions!$F$28:$F$38,MATCH(E54,Vulnerabilties,0))*Assumptions!$F$10)+(INDEX(Assumptions!$F$28:$F$38,MATCH(F54,Vulnerabilties,0))*Assumptions!$F$10)+(INDEX(Assumptions!$F$28:$F$38,MATCH(G54,Vulnerabilties,0))*Assumptions!$F$10)+(INDEX(Assumptions!$F$28:$F$38,MATCH(H54,Vulnerabilties,0))*Assumptions!$F$10))*Assumptions!$F$9),0)","v":0},null,{"$f":"IFERROR(INDEX(Assumptions!$F$15:$F$25,MATCH(D54,Exposures,0)*Assumptions!$F$8+(I54/Assumptions!$F$9)*Assumptions!$F$8),0)","v":0},{"$f":"IFERROR((K54*Assumptions!$F$9)-(INDEX(Assumptions!$F$41:$F$51,MATCH(J54,Levels_of_response,0))*Assumptions!$F$9),0)","v":0},{"$f":"IF(L54<=0,\"VL1\",IFERROR(INDEX('Risk Matrix'!$G$28:$G$53,MATCH(SUMPRODUCT(('Risk Matrix'!$B$28:$B$53<=L54)*('Risk Matrix'!$C$28:$C$53>=L54)*('Risk Matrix'!$D$28:$D$53<=K54)*('Risk Matrix'!$E$28:$E$53>=K54)*('Risk Matrix'!$F$28:$F$53)),'Risk Matrix'!$F$28:$F$53,0)),0))","v":"VL1"}]

{"sheet":"Data Scores","index":7,"n_rows":48,"n_cols":13,"rows_kept":48,"cut":false,"hidden":false,"merged":[[25,1,29,1],[30,1,34,1],[35,1,39,1],[40,1,44,1],[5,0,6,0],[5,1,9,1],[10,1,14,1],[15,1,19,1],[20,1,24,1]]}
[{"$f":"MdlTle","v":"Herramienta Rápida de Estimación del Riesgo"}]
[{"$f":"MID(CELL(\"filename\",A1),FIND(\"]\",CELL(\"filename\",A1))+1,255)","v":"Data Scores"}]
[]
[]
[null,"Familia de peligros","Desastre","Eventos de peligro","Nivel de exposición \n(1-10)",{"$f":"'Hazard Data Entry'!E6","v":"Infraestructura"},{"$f":"'Hazard Data Entry'!F6","v":"Sectrores productivos"},{"$f":"'Hazard Data Entry'!G6","v":"Servicios básicos o escenciales"},{"$f":"'Hazard Data Entry'!H6","v":"Aspectos sociales y humanos"},"Clasificación de vulnerabilidad total\n(1-100)","Medidas de respuesta actuales     (1-10)","Puntaje de probabilidad \n(1-10)","Puntaje de gravedad\n(1-100)"]
[null,{"$f":"'Hazard Data Entry'!$B$7","v":"H1 - Geofísicos"},{"$f":"'Hazard Data Entry'!B8","v":0},{"$f":"'Hazard Data Entry'!C8","v":0},{"$f":"IFERROR(INDEX(Assumptions!$F$15:$F$25,MATCH('Hazard Data Entry'!D8,Exposures,0)),0)","v":0},{"$f":"IFERROR(INDEX(Assumptions!$F$15:$F$25,MATCH('Hazard Data Entry'!E8,Exposures,0)),0)","v":0},{"$f":"IFERROR(INDEX(Assumptions!$F$15:$F$25,MATCH('Hazard Data Entry'!F8,Exposures,0)),0)","v":0},{"$f":"IFERROR(INDEX(Assumptions!$F$15:$F$25,MATCH('Hazard Data Entry'!G8,Exposures,0)),0)","v":0},{"$f":"IFERROR(INDEX(Assumptions!$F$15:$F$25,MATCH('Hazard Data Entry'!H8,Exposures,0)),0)","v":0},{"$f":"'Hazard Data Entry'!I8","v":0},{"$f":"IFERROR(INDEX(Assumptions!$F$41:$F$51,MATCH('Hazard Data Entry'!J8,Levels_of_response,0)),0)","v":0},{"$f":"'Hazard Data Entry'!K8","v":0},{"$f":"'Hazard Data Entry'!L8","v":0}]
[null,null,{"$f":"'Hazard Data Entry'!B9","v":0},{"$f":"'Hazard Data Entry'!C9","v":0},{"$f":"IFERROR(INDEX(Assumptions!$F$15:$F$25,MATCH('Hazard Data Entry'!D9,Exposures,0)),0)","v":0},{"$f":"IFERROR(INDEX(Assumptions!$F$15:$F$25,MATCH('Hazard Data Entry'!E9,Exposures,0)),0)","v":0},{"$f":"IFERROR(INDEX(Assumptions!$F$15:$F$25,MATCH('Hazard Data Entry'!F9,Exposures,0)),0)","v":0},{"$f":"IFERROR(INDEX(Assumptions!$F$15:$F$25,MATCH('Hazard Data Entry'!G9,Exposures,0)),0)","v":0},{"$f":"IFERROR(INDEX(Assumptions!$F$15:$F$25,MATCH('Hazard Data Entry'!H9,Exposures,0)),0)","v":0},{"$f":"'Hazard Data Entry'!I9","v":0},{"$f":"IFERROR(INDEX(Assumptions!$F$41:$F$51,MATCH('Hazard Data Entry'!J9,Levels_of_response,0)),0)","v":0},{"$f":"'Hazard Data Entry'!K9","v":0},{"$f":"'Hazard Data Entry'!L9","v":0}]
[null,null,{"$f":"'Hazard Data Entry'!B10","v":0},{"$f":"'Hazard Data Entry'!C10","v":0},{"$f":"IFERROR(INDEX(Assumptions!$F$15:$F$25,MATCH('Hazard Data Entry'!D10,Exposures,0)),0)","v":0},{"$f":"IFERROR(INDEX(Assumptions!$F$15:$F$25,MATCH('Hazard Data Entry'!E10,Exposures,0)),0)","v":0},{"$f":"IFERROR(INDEX(Assumptions!$F$15:$F$25,MATCH('Hazard Data Entry'!F10,Exposures,0)),0)","v":0},{"$f":"IFERROR(INDEX(Assumptions!$F$15:$F$25,MATCH('Hazard Data Entry'!G10,Exposures,0)),0)","v":0},{"$f":"IFERROR(INDEX(Assumptions!$F$15:$F$25,MATCH('Hazard Data Entry'!H10,Exposures,0)),0)","v":0},{"$f":"'Hazard Data Entry'!I10","v":0},{"$f":"IFERROR(INDEX(Assumptions!$F$41:$F$51,MATCH('Hazard Data Entry'!J10,Levels_of_response,0)),0)","v":0},{"$f":"'Hazard Data Entry'!K10","v":0},{"$f":"'Hazard Data Entry'!L10","v":0}]
[null,null,{"$f":"'Hazard Data Entry'!B11","v":0},{"$f":"'Hazard Data Entry'!C11","v":0},{"$f":"IFERROR(INDEX(Assumptions!$F$15:$F$25,MATCH('Hazard Data Entry'!D11,Exposures,0)),0)","v":0},{"$f":"IFERROR(INDEX(Assumptions!$F$15:$F$25,MATCH('Hazard Data Entry'!E11,Exposures,0)),0)","v":0},{"$f":"IFERROR(INDEX(Assumptions!$F$15:$F$25,MATCH('Hazard Data Entry'!F11,Exposures,0)),0)","v":0},{"$f":"IFERROR(INDEX(Assumptions!$F$15:$F$25,MATCH('Hazard Data Entry'!G11,Exposures,0)),0)","v":0},{"$f":"IFERROR(INDEX(Assumptions!$F$15:$F$25,MATCH('Hazard Data Entry'!H11,Exposures,0)),0)","v":0},{"$f":"'Hazard Data Entry'!I11","v":0},{"$f":"IFERROR(INDEX(Assumptions!$F$41:$F$51,MATCH('Hazard Data Entry'!J11,Levels_of_response,0)),0)","v":0},{"$f":"'Hazard Data Entry'!K11","v":0},{"$f":"'Hazard Data Entry'!L11","v":0}]
[null,null,{"$f":"'Hazard Data Entry'!B12","v":0},{"$f":"'Hazard Data Entry'!C12","v":0},{"$f":"IFERROR(INDEX(Assumptions!$F$15:$F$25,MATCH('Hazard Data Entry'!D12,Exposures,0)),0)","v":0},{"$f":"IFERROR(INDEX(Assumptions!$F$15:$F$25,MATCH('Hazard Data Entry'!E12,Exposures,0)),0)","v":0},{"$f":"IFERROR(INDEX(Assumptions!$F$15:$F$25,MATCH('Hazard Data Entry'!F12,Exposures,0)),0)","v":0},{"$f":"IFERROR(INDEX(Assumptions!$F$15:$F$25,MATCH('Hazard Data Entry'!G12,Exposures,0)),0)","v":0},{"$f":"IFERROR(INDEX(Assumptions!$F$15:$F$25,MATCH('Hazard Data Entry'!H12,Exposures,0)),0)","v":0},{"$f":"'Hazard Data Entry'!I12","v":0},{"$f":"IFERROR(INDEX(Assumptions!$F$41:$F$51,MATCH('Hazard Data Entry'!J12,Levels_of_response,0)),0)","v":0},{"$f":"'Hazard Data Entry'!K12","v":0},{"$f":"'Hazard Data Entry'!L12","v":0}]
[null,{"$f":"'Hazard Data Entry'!$B$13","v":"H2 - Hidrológicos"},{"$f":"'Hazard Data Entry'!B14","v":0},{"$f":"'Hazard Data Entry'!C14","v":0},{"$f":"IFERROR(INDEX(Assumptions!$F$15:$F$25,MATCH('Hazard Data Entry'!D14,Exposures,0)),0)","v":0},{"$f":"IFERROR(INDEX(Assumptions!$F$15:$F$25,MATCH('Hazard Data Entry'!E14,Exposures,0)),0)","v":0},{"$f":"IFERROR(INDEX(Assumptions!$F$15:$F$25,MATCH('Hazard Data Entry'!F14,Exposures,0)),0)","v":0},{"$f":"IFERROR(INDEX(Assumptions!$F$15:$F$25,MATCH('Hazard Data Entry'!G14,Exposures,0)),0)","v":0},{"$f":"IFERROR(INDEX(Assumptions!$F$15:$F$25,MATCH('Hazard Data Entry'!H14,Exposures,0)),0)","v":0},{"$f":"'Hazard Data Entry'!I14","v":0},{"$f":"IFERROR(INDEX(Assumptions!$F$41:$F$51,MATCH('Hazard Data Entry'!J14,Levels_of_response,0)),0)","v":0},{"$f":"'Hazard Data Entry'!K14","v":0},{"$f":"'Hazard Data Entry'!L14","v":0}]
[null,null,{"$f":"'Hazard Data Entry'!B15","v":0},{"$f":"'Hazard Data Entry'!C15","v":0},{"$f":"IFERROR(INDEX(Assumptions!$F$15:$F$25,MATCH('Hazard Data Entry'!D15,Exposures,0)),0)","v":0},{"$f":"IFERROR(INDEX(Assumptions!$F$15:$F$25,MATCH('Hazard Data Entry'!E15,Exposures,0)),0)","v":0},{"$f":"IFERROR(INDEX(Assumptions!$F$15:$F$25,MATCH('Hazard Data Entry'!F15,Exposures,0)),0)","v":0},{"$f":"IFERROR(INDEX(Assumptions!$F$15:$F$25,MATCH('Hazard Data Entry'!G15,Exposures,0)),0)","v":0},{"$f":"IFERROR(INDEX(Assumptions!$F$15:$F$25,MATCH('Hazard Data Entry'!H15,Exposures,0)),0)","v":0},{"$f":"'Hazard Data Entry'!I15","v":0},{"$f":"IFERROR(INDEX(Assumptions!$F$41:$F$51,MATCH('Hazard Data Entry'!J15,Levels_of_response,0)),0)","v":0},{"$f":"'Hazard Data Entry'!K15","v":0},{"$f":"'Hazard Data Entry'!L15","v":0}]
[null,null,{"$f":"'Hazard Data Entry'!B16","v":0},{"$f":"'Hazard Data Entry'!C16","v":0},{"$f":"IFERROR(INDEX(Assumptions!$F$15:$F$25,MATCH('Hazard Data Entry'!D16,Exposures,0)),0)","v":0},{"$f":"IFERROR(INDEX(Assumptions!$F$15:$F$25,MATCH('Hazard Data Entry'!E16,Exposures,0)),0)","v":0},{"$f":"IFERROR(INDEX(Assumptions!$F$15:$F$25,MATCH('Hazard Data Entry'!F16,Exposures,0)),0)","v":0},{"$f":"IFERROR(INDEX(Assumptions!$F$15:$F$25,MATCH('Hazard Data Entry'!G16,Exposures,0)),0)","v":0},{"$f":"IFERROR(INDEX(Assumptions!$F$15:$F$25,MATCH('Hazard Data Entry'!H16,Exposures,0)),0)","v":0},{"$f":"'Hazard Data Entry'!I16","v":0},{"$f":"IFERROR(INDEX(Assumptions!$F$41:$F$51,MATCH('Hazard Data Entry'!J16,Levels_of_response,0)),0)","v":0},{"$f":"'Hazard Data Entry'!K16","v":0},{"$f":"'Hazard Data Entry'!L16","v":0}]
[null,null,{"$f":"'Hazard Data Entry'!B17","v":0},{"$f":"'Hazard Data Entry'!C17","v":0},{"$f":"IFERROR(INDEX(Assumptions!$F$15:$F$25,MATCH('Hazard Data Entry'!D17,Exposures,0)),0)","v":0},{"$f":"IFERROR(INDEX(Assumptions!$F$15:$F$25,MATCH('Hazard Data Entry'!E17,Exposures,0)),0)","v":0},{"$f":"IFERROR(INDEX(Assumptions!$F$15:$F$25,MATCH('Hazard Data Entry'!F17,Exposures,0)),0)","v":0},{"$f":"IFERROR(INDEX(Assumptions!$F$15:$F$25,MATCH('Hazard Data Entry'!G17,Exposures,0)),0)","v":0},{"$f":"IFERROR(INDEX(Assumptions!$F$15:$F$25,MATCH('Hazard Data Entry'!H17,Exposures,0)),0)","v":0},{"$f":"'Hazard Data Entry'!I17","v":0},{"$f":"IFERROR(INDEX(Assumptions!$F$41:$F$51,MATCH('Hazard Data Entry'!J17,Levels_of_response,0)),0)","v":0},{"$f":"'Hazard Data Entry'!K17","v":0},{"$f":"'Hazard Data Entry'!L17","v":0}]
[null,null,{"$f":"'Hazard Data Entry'!B18","v":0},{"$f":"'Hazard Data Entry'!C18","v":0},{"$f":"IFERROR(INDEX(Assumptions!$F$15:$F$25,MATCH('Hazard Data Entry'!D18,Exposures,0)),0)","v":0},{"$f":"IFERROR(INDEX(Assumptions!$F$15:$F$25,MATCH('Hazard Data Entry'!E18,Exposures,0)),0)","v":0},{"$f":"IFERROR(INDEX(Assumptions!$F$15:$F$25,MATCH('Hazard Data Entry'!F18,Exposures,0)),0)","v":0},{"$f":"IFERROR(INDEX(Assumptions!$F$15:$F$25,MATCH('Hazard Data Entry'!G18,Exposures,0)),0)","v":0},{"$f":"IFERROR(INDEX(Assumptions!$F$15:$F$25,MATCH('Hazard Data Entry'!H18,Exposures,0)),0)","v":0},{"$f":"'Hazard Data Entry'!I18","v":0},{"$f":"IFERROR(INDEX(Assumptions!$F$41:$F$51,MATCH('Hazard Data Entry'!J18,Levels_of_response,0)),0)","v":0},{"$f":"'Hazard Data Entry'!K18","v":0},{"$f":"'Hazard Data Entry'!L18","v":0}]
[null,{"$f":"'Hazard Data Entry'!$B$19","v":"H3 - Meteorológicos"},{"$f":"'Hazard Data Entry'!B20","v":0},{"$f":"'Hazard Data Entry'!C20","v":0},{"$f":"IFERROR(INDEX(Assumptions!$F$15:$F$25,MATCH('Hazard Data Entry'!D20,Exposures,0)),0)","v":0},{"$f":"IFERROR(INDEX(Assumptions!$F$15:$F$25,MATCH('Hazard Data Entry'!E20,Exposures,0)),0)","v":0},{"$f":"IFERROR(INDEX(Assumptions!$F$15:$F$25,MATCH('Hazard Data Entry'!F20,Exposures,0)),0)","v":0},{"$f":"IFERROR(INDEX(Assumptions!$F$15:$F$25,MATCH('Hazard Data Entry'!G20,Exposures,0)),0)","v":0},{"$f":"IFERROR(INDEX(Assumptions!$F$15:$F$25,MATCH('Hazard Data Entry'!H20,Exposures,0)),0)","v":0},{"$f":"'Hazard Data Entry'!I20","v":0},{"$f":"IFERROR(INDEX(Assumptions!$F$41:$F$51,MATCH('Hazard Data Entry'!J20,Levels_of_response,0)),0)","v":0},{"$f":"'Hazard Data Entry'!K20","v":0},{"$f":"'Hazard Data Entry'!L20","v":0}]
[null,null,{"$f":"'Hazard Data Entry'!B21","v":0},{"$f":"'Hazard Data Entry'!C21","v":0},{"$f":"IFERROR(INDEX(Assumptions!$F$15:$F$25,MATCH('Hazard Data Entry'!D21,Exposures,0)),0)","v":0},{"$f":"IFERROR(INDEX(Assumptions!$F$15:$F$25,MATCH('Hazard Data Entry'!E21,Exposures,0)),0)","v":0},{"$f":"IFERROR(INDEX(Assumptions!$F$15:$F$25,MATCH('Hazard Data Entry'!F21,Exposures,0)),0)","v":0},{"$f":"IFERROR(INDEX(Assumptions!$F$15:$F$25,MATCH('Hazard Data Entry'!G21,Exposures,0)),0)","v":0},{"$f":"IFERROR(INDEX(Assumptions!$F$15:$F$25,MATCH('Hazard Data Entry'!H21,Exposures,0)),0)","v":0},{"$f":"'Hazard Data Entry'!I21","v":0},{"$f":"IFERROR(INDEX(Assumptions!$F$41:$F$51,MATCH('Hazard Data Entry'!J21,Levels_of_response,0)),0)","v":0},{"$f":"'Hazard Data Entry'!K21","v":0},{"$f":"'Hazard Data Entry'!L21","v":0}]
[null,null,{"$f":"'Hazard Data Entry'!B22","v":0},{"$f":"'Hazard Data Entry'!C22","v":0},{"$f":"IFERROR(INDEX(Assumptions!$F$15:$F$25,MATCH('Hazard Data Entry'!D22,Exposures,0)),0)","v":0},{"$f":"IFERROR(INDEX(Assumptions!$F$15:$F$25,MATCH('Hazard Data Entry'!E22,Exposures,0)),0)","v":0},{"$f":"IFERROR(INDEX(Assumptions!$F$15:$F$25,MATCH('Hazard Data Entry'!F22,Exposures,0)),0)","v":0},{"$f":"IFERROR(INDEX(Assumptions!$F$15:$F$25,MATCH('Hazard Data Entry'!G22,Exposures,0)),0)","v":0},{"$f":"IFERROR(INDEX(Assumptions!$F$15:$F$25,MATCH('Hazard Data Entry'!H22,Exposures,0)),0)","v":0},{"$f":"'Hazard Data Entry'!I22","v":0},{"$f":"IFERROR(INDEX(Assumptions!$F$41:$F$51,MATCH('Hazard Data Entry'!J22,Levels_of_response,0)),0)","v":0},{"$f":"'Hazard Data Entry'!K22","v":0},{"$f":"'Hazard Data Entry'!L22","v":0}]
[null,null,{"$f":"'Hazard Data Entry'!B23","v":0},{"$f":"'Hazard Data Entry'!C23","v":0},{"$f":"IFERROR(INDEX(Assumptions!$F$15:$F$25,MATCH('Hazard Data Entry'!D23,Exposures,0)),0)","v":0},{"$f":"IFERROR(INDEX(Assumptions!$F$15:$F$25,MATCH('Hazard Data Entry'!E23,Exposures,0)),0)","v":0},{"$f":"IFERROR(INDEX(Assumptions!$F$15:$F$25,MATCH('Hazard Data Entry'!F23,Exposures,0)),0)","v":0},{"$f":"IFERROR(INDEX(Assumptions!$F$15:$F$25,MATCH('Hazard Data Entry'!G23,Exposures,0)),0)","v":0},{"$f":"IFERROR(INDEX(Assumptions!$F$15:$F$25,MATCH('Hazard Data Entry'!H23,Exposures,0)),0)","v":0},{"$f":"'Hazard Data Entry'!I23","v":0},{"$f":"IFERROR(INDEX(Assumptions!$F$41:$F$51,MATCH('Hazard Data Entry'!J23,Levels_of_response,0)),0)","v":0},{"$f":"'Hazard Data Entry'!K23","v":0},{"$f":"'Hazard Data Entry'!L23","v":0}]
[null,null,{"$f":"'Hazard Data Entry'!B24","v":0},{"$f":"'Hazard Data Entry'!C24","v":0},{"$f":"IFERROR(INDEX(Assumptions!$F$15:$F$25,MATCH('Hazard Data Entry'!D24,Exposures,0)),0)","v":0},{"$f":"IFERROR(INDEX(Assumptions!$F$15:$F$25,MATCH('Hazard Data Entry'!E24,Exposures,0)),0)","v":0},{"$f":"IFERROR(INDEX(Assumptions!$F$15:$F$25,MATCH('Hazard Data Entry'!F24,Exposures,0)),0)","v":0},{"$f":"IFERROR(INDEX(Assumptions!$F$15:$F$25,MATCH('Hazard Data Entry'!G24,Exposures,0)),0)","v":0},{"$f":"IFERROR(INDEX(Assumptions!$F$15:$F$25,MATCH('Hazard Data Entry'!H24,Exposures,0)),0)","v":0},{"$f":"'Hazard Data Entry'!I24","v":0},{"$f":"IFERROR(INDEX(Assumptions!$F$41:$F$51,MATCH('Hazard Data Entry'!J24,Levels_of_response,0)),0)","v":0},{"$f":"'Hazard Data Entry'!K24","v":0},{"$f":"'Hazard Data Entry'!L24","v":0}]
[null,{"$f":"'Hazard Data Entry'!B25","v":"H4 - Climatológicos"},{"$f":"'Hazard Data Entry'!B26","v":0},{"$f":"'Hazard Data Entry'!C26","v":0},{"$f":"IFERROR(INDEX(Assumptions!$F$15:$F$25,MATCH('Hazard Data Entry'!D26,Exposures,0)),0)","v":0},{"$f":"IFERROR(INDEX(Assumptions!$F$15:$F$25,MATCH('Hazard Data Entry'!E26,Exposures,0)),0)","v":0},{"$f":"IFERROR(INDEX(Assumptions!$F$15:$F$25,MATCH('Hazard Data Entry'!F26,Exposures,0)),0)","v":0},{"$f":"IFERROR(INDEX(Assumptions!$F$15:$F$25,MATCH('Hazard Data Entry'!G26,Exposures,0)),0)","v":0},{"$f":"IFERROR(INDEX(Assumptions!$F$15:$F$25,MATCH('Hazard Data Entry'!H26,Exposures,0)),0)","v":0},{"$f":"'Hazard Data Entry'!I26","v":0},{"$f":"IFERROR(INDEX(Assumptions!$F$41:$F$51,MATCH('Hazard Data Entry'!J26,Levels_of_response,0)),0)","v":0},{"$f":"'Hazard Data Entry'!K26","v":0},{"$f":"'Hazard Data Entry'!L26","v":0}]
[null,null,{"$f":"'Hazard Data Entry'!B27","v":0},{"$f":"'Hazard Data Entry'!C27","v":0},{"$f":"IFERROR(INDEX(Assumptions!$F$15:$F$25,MATCH('Hazard Data Entry'!D27,Exposures,0)),0)","v":0},{"$f":"IFERROR(INDEX(Assumptions!$F$15:$F$25,MATCH('Hazard Data Entry'!E27,Exposures,0)),0)","v":0},{"$f":"IFERROR(INDEX(Assumptions!$F$15:$F$25,MATCH('Hazard Data Entry'!F27,Exposures,0)),0)","v":0},{"$f":"IFERROR(INDEX(Assumptions!$F$15:$F$25,MATCH('Hazard Data Entry'!G27,Exposures,0)),0)","v":0},{"$f":"IFERROR(INDEX(Assumptions!$F$15:$F$25,MATCH('Hazard Data Entry'!H27,Exposures,0)),0)","v":0},{"$f":"'Hazard Data Entry'!I27","v":0},{"$f":"IFERROR(INDEX(Assumptions!$F$41:$F$51,MATCH('Hazard Data Entry'!J27,Levels_of_response,0)),0)","v":0},{"$f":"'Hazard Data Entry'!K27","v":0},{"$f":"'Hazard Data Entry'!L27","v":0}]
[null,null,{"$f":"'Hazard Data Entry'!B28","v":0},{"$f":"'Hazard Data Entry'!C28","v":0},{"$f":"IFERROR(INDEX(Assumptions!$F$15:$F$25,MATCH('Hazard Data Entry'!D28,Exposures,0)),0)","v":0},{"$f":"IFERROR(INDEX(Assumptions!$F$15:$F$25,MATCH('Hazard Data Entry'!E28,Exposures,0)),0)","v":0},{"$f":"IFERROR(INDEX(Assumptions!$F$15:$F$25,MATCH('Hazard Data Entry'!F28,Exposures,0)),0)","v":0},{"$f":"IFERROR(INDEX(Assumptions!$F$15:$F$25,MATCH('Hazard Data Entry'!G28,Exposures,0)),0)","v":0},{"$f":"IFERROR(INDEX(Assumptions!$F$15:$F$25,MATCH('Hazard Data Entry'!H28,Exposures,0)),0)","v":0},{"$f":"'Hazard Data Entry'!I28","v":0},{"$f":"IFERROR(INDEX(Assumptions!$F$41:$F$51,MATCH('Hazard Data Entry'!J28,Levels_of_response,0)),0)","v":0},{"$f":"'Hazard Data Entry'!K28","v":0},{"$f":"'Hazard Data Entry'!L28","v":0}]
[null,null,{"$f":"'Hazard Data Entry'!B29","v":0},{"$f":"'Hazard Data Entry'!C29","v":0},{"$f":"IFERROR(INDEX(Assumptions!$F$15:$F$25,MATCH('Hazard Data Entry'!D29,Exposures,0)),0)","v":0},{"$f":"IFERROR(INDEX(Assumptions!$F$15:$F$25,MATCH('Hazard Data Entry'!E29,Exposures,0)),0)","v":0},{"$f":"IFERROR(INDEX(Assumptions!$F$15:$F$25,MATCH('Hazard Data Entry'!F29,Exposures,0)),0)","v":0},{"$f":"IFERROR(INDEX(Assumptions!$F$15:$F$25,MATCH('Hazard Data Entry'!G29,Exposures,0)),0)","v":0},{"$f":"IFERROR(INDEX(Assumptions!$F$15:$F$25,MATCH('Hazard Data Entry'!H29,Exposures,0)),0)","v":0},{"$f":"'Hazard Data Entry'!I29","v":0},{"$f":"IFERROR(INDEX(Assumptions!$F$41:$F$51,MATCH('Hazard Data Entry'!J29,Levels_of_response,0)),0)","v":0},{"$f":"'Hazard Data Entry'!K29","v":0},{"$f":"'Hazard Data Entry'!L29","v":0}]
[null,null,{"$f":"'Hazard Data Entry'!B30","v":0},{"$f":"'Hazard Data Entry'!C30","v":0},{"$f":"IFERROR(INDEX(Assumptions!$F$15:$F$25,MATCH('Hazard Data Entry'!D30,Exposures,0)),0)","v":0},{"$f":"IFERROR(INDEX(Assumptions!$F$15:$F$25,MATCH('Hazard Data Entry'!E30,Exposures,0)),0)","v":0},{"$f":"IFERROR(INDEX(Assumptions!$F$15:$F$25,MATCH('Hazard Data Entry'!F30,Exposures,0)),0)","v":0},{"$f":"IFERROR(INDEX(Assumptions!$F$15:$F$25,MATCH('Hazard Data Entry'!G30,Exposures,0)),0)","v":0},{"$f":"IFERROR(INDEX(Assumptions!$F$15:$F$25,MATCH('Hazard Data Entry'!H30,Exposures,0)),0)","v":0},{"$f":"'Hazard Data Entry'!I30","v":0},{"$f":"IFERROR(INDEX(Assumptions!$F$41:$F$51,MATCH('Hazard Data Entry'!J30,Levels_of_response,0)),0)","v":0},{"$f":"'Hazard Data Entry'!K30","v":0},{"$f":"'Hazard Data Entry'!L30","v":0}]
[null,{"$f":"'Hazard Data Entry'!$B$31","v":"H5 -Biológicos"},{"$f":"'Hazard Data Entry'!B32","v":0},{"$f":"'Hazard Data Entry'!C32","v":0},{"$f":"IFERROR(INDEX(Assumptions!$F$15:$F$25,MATCH('Hazard Data Entry'!D32,Exposures,0)),0)","v":0},{"$f":"IFERROR(INDEX(Assumptions!$F$15:$F$25,MATCH('Hazard Data Entry'!E32,Exposures,0)),0)","v":0},{"$f":"IFERROR(INDEX(Assumptions!$F$15:$F$25,MATCH('Hazard Data Entry'!F32,Exposures,0)),0)","v":0},{"$f":"IFERROR(INDEX(Assumptions!$F$15:$F$25,MATCH('Hazard Data Entry'!G32,Exposures,0)),0)","v":0},{"$f":"IFERROR(INDEX(Assumptions!$F$15:$F$25,MATCH('Hazard Data Entry'!H32,Exposures,0)),0)","v":0},{"$f":"'Hazard Data Entry'!I32","v":0},{"$f":"IFERROR(INDEX(Assumptions!$F$41:$F$51,MATCH('Hazard Data Entry'!J32,Levels_of_response,0)),0)","v":0},{"$f":"'Hazard Data Entry'!K32","v":0},{"$f":"'Hazard Data Entry'!L32","v":0}]
[null,null,{"$f":"'Hazard Data Entry'!B33","v":0},{"$f":"'Hazard Data Entry'!C33","v":0},{"$f":"IFERROR(INDEX(Assumptions!$F$15:$F$25,MATCH('Hazard Data Entry'!D33,Exposures,0)),0)","v":0},{"$f":"IFERROR(INDEX(Assumptions!$F$15:$F$25,MATCH('Hazard Data Entry'!E33,Exposures,0)),0)","v":0},{"$f":"IFERROR(INDEX(Assumptions!$F$15:$F$25,MATCH('Hazard Data Entry'!F33,Exposures,0)),0)","v":0},{"$f":"IFERROR(INDEX(Assumptions!$F$15:$F$25,MATCH('Hazard Data Entry'!G33,Exposures,0)),0)","v":0},{"$f":"IFERROR(INDEX(Assumptions!$F$15:$F$25,MATCH('Hazard Data Entry'!H33,Exposures,0)),0)","v":0},{"$f":"'Hazard Data Entry'!I33","v":0},{"$f":"IFERROR(INDEX(Assumptions!$F$41:$F$51,MATCH('Hazard Data Entry'!J33,Levels_of_response,0)),0)","v":0},{"$f":"'Hazard Data Entry'!K33","v":0},{"$f":"'Hazard Data Entry'!L33","v":0}]
[null,null,{"$f":"'Hazard Data Entry'!B34","v":0},{"$f":"'Hazard Data Entry'!C34","v":0},{"$f":"IFERROR(INDEX(Assumptions!$F$15:$F$25,MATCH('Hazard Data Entry'!D34,Exposures,0)),0)","v":0},{"$f":"IFERROR(INDEX(Assumptions!$F$15:$F$25,MATCH('Hazard Data Entry'!E34,Exposures,0)),0)","v":0},{"$f":"IFERROR(INDEX(Assumptions!$F$15:$F$25,MATCH('Hazard Data Entry'!F34,Exposures,0)),0)","v":0},{"$f":"IFERROR(INDEX(Assumptions!$F$15:$F$25,MATCH('Hazard Data Entry'!G34,Exposures,0)),0)","v":0},{"$f":"IFERROR(INDEX(Assumptions!$F$15:$F$25,MATCH('Hazard Data Entry'!H34,Exposures,0)),0)","v":0},{"$f":"'Hazard Data Entry'!I34","v":0},{"$f":"IFERROR(INDEX(Assumptions!$F$41:$F$51,MATCH('Hazard Data Entry'!J34,Levels_of_response,0)),0)","v":0},{"$f":"'Hazard Data Entry'!K34","v":0},{"$f":"'Hazard Data Entry'!L34","v":0}]
[null,null,{"$f":"'Hazard Data Entry'!B35","v":0},{"$f":"'Hazard Data Entry'!C35","v":0},{"$f":"IFERROR(INDEX(Assumptions!$F$15:$F$25,MATCH('Hazard Data Entry'!D35,Exposures,0)),0)","v":0},{"$f":"IFERROR(INDEX(Assumptions!$F$15:$F$25,MATCH('Hazard Data Entry'!E35,Exposures,0)),0)","v":0},{"$f":"IFERROR(INDEX(Assumptions!$F$15:$F$25,MATCH('Hazard Data Entry'!F35,Exposures,0)),0)","v":0},{"$f":"IFERROR(INDEX(Assumptions!$F$15:$F$25,MATCH('Hazard Data Entry'!G35,Exposures,0)),0)","v":0},{"$f":"IFERROR(INDEX(Assumptions!$F$15:$F$25,MATCH('Hazard Data Entry'!H35,Exposures,0)),0)","v":0},{"$f":"'Hazard Data Entry'!I35","v":0},{"$f":"IFERROR(INDEX(Assumptions!$F$41:$F$51,MATCH('Hazard Data Entry'!J35,Levels_of_response,0)),0)","v":0},{"$f":"'Hazard Data Entry'!K35","v":0},{"$f":"'Hazard Data Entry'!L35","v":0}]
[null,null,{"$f":"'Hazard Data Entry'!B36","v":0},{"$f":"'Hazard Data Entry'!C36","v":0},{"$f":"IFERROR(INDEX(Assumptions!$F$15:$F$25,MATCH('Hazard Data Entry'!D36,Exposures,0)),0)","v":0},{"$f":"IFERROR(INDEX(Assumptions!$F$15:$F$25,MATCH('Hazard Data Entry'!E36,Exposures,0)),0)","v":0},{"$f":"IFERROR(INDEX(Assumptions!$F$15:$F$25,MATCH('Hazard Data Entry'!F36,Exposures,0)),0)","v":0},{"$f":"IFERROR(INDEX(Assumptions!$F$15:$F$25,MATCH('Hazard Data Entry'!G36,Exposures,0)),0)","v":0},{"$f":"IFERROR(INDEX(Assumptions!$F$15:$F$25,MATCH('Hazard Data Entry'!H36,Exposures,0)),0)","v":0},{"$f":"'Hazard Data Entry'!I36","v":0},{"$f":"IFERROR(INDEX(Assumptions!$F$41:$F$51,MATCH('Hazard Data Entry'!J36,Levels_of_response,0)),0)","v":0},{"$f":"'Hazard Data Entry'!K36","v":0},{"$f":"'Hazard Data Entry'!L36","v":0}]
[null,{"$f":"'Hazard Data Entry'!$B$37","v":"H6 - Extra-terrestres"},{"$f":"'Hazard Data Entry'!B38","v":0},{"$f":"'Hazard Data Entry'!C38","v":0},{"$f":"IFERROR(INDEX(Assumptions!$F$15:$F$25,MATCH('Hazard Data Entry'!D38,Exposures,0)),0)","v":0},{"$f":"IFERROR(INDEX(Assumptions!$F$15:$F$25,MATCH('Hazard Data Entry'!E38,Exposures,0)),0)","v":0},{"$f":"IFERROR(INDEX(Assumptions!$F$15:$F$25,MATCH('Hazard Data Entry'!F38,Exposures,0)),0)","v":0},{"$f":"IFERROR(INDEX(Assumptions!$F$15:$F$25,MATCH('Hazard Data Entry'!G38,Exposures,0)),0)","v":0},{"$f":"IFERROR(INDEX(Assumptions!$F$15:$F$25,MATCH('Hazard Data Entry'!H38,Exposures,0)),0)","v":0},{"$f":"'Hazard Data Entry'!I38","v":0},{"$f":"IFERROR(INDEX(Assumptions!$F$41:$F$51,MATCH('Hazard Data Entry'!J38,Levels_of_response,0)),0)","v":0},{"$f":"'Hazard Data Entry'!K38","v":0},{"$f":"'Hazard Data Entry'!L38","v":0}]
[null,null,{"$f":"'Hazard Data Entry'!B39","v":0},{"$f":"'Hazard Data Entry'!C39","v":0},{"$f":"IFERROR(INDEX(Assumptions!$F$15:$F$25,MATCH('Hazard Data Entry'!D39,Exposures,0)),0)","v":0},{"$f":"IFERROR(INDEX(Assumptions!$F$15:$F$25,MATCH('Hazard Data Entry'!E39,Exposures,0)),0)","v":0},{"$f":"IFERROR(INDEX(Assumptions!$F$15:$F$25,MATCH('Hazard Data Entry'!F39,Exposures,0)),0)","v":0},{"$f":"IFERROR(INDEX(Assumptions!$F$15:$F$25,MATCH('Hazard Data Entry'!G39,Exposures,0)),0)","v":0},{"$f":"IFERROR(INDEX(Assumptions!$F$15:$F$25,MATCH('Hazard Data Entry'!H39,Exposures,0)),0)","v":0},{"$f":"'Hazard Data Entry'!I39","v":0},{"$f":"IFERROR(INDEX(Assumptions!$F$41:$F$51,MATCH('Hazard Data Entry'!J39,Levels_of_response,0)),0)","v":0},{"$f":"'Hazard Data Entry'!K39","v":0},{"$f":"'Hazard Data Entry'!L39","v":0}]
[null,null,{"$f":"'Hazard Data Entry'!B40","v":0},{"$f":"'Hazard Data Entry'!C40","v":0},{"$f":"IFERROR(INDEX(Assumptions!$F$15:$F$25,MATCH('Hazard Data Entry'!D40,Exposures,0)),0)","v":0},{"$f":"IFERROR(INDEX(Assumptions!$F$15:$F$25,MATCH('Hazard Data Entry'!E40,Exposures,0)),0)","v":0},{"$f":"IFERROR(INDEX(Assumptions!$F$15:$F$25,MATCH('Hazard Data Entry'!F40,Exposures,0)),0)","v":0},{"$f":"IFERROR(INDEX(Assumptions!$F$15:$F$25,MATCH('Hazard Data Entry'!G40,Exposures,0)),0)","v":0},{"$f":"IFERROR(INDEX(Assumptions!$F$15:$F$25,MATCH('Hazard Data Entry'!H40,Exposures,0)),0)","v":0},{"$f":"'Hazard Data Entry'!I40","v":0},{"$f":"IFERROR(INDEX(Assumptions!$F$41:$F$51,MATCH('Hazard Data Entry'!J40,Levels_of_response,0)),0)","v":0},{"$f":"'Hazard Data Entry'!K40","v":0},{"$f":"'Hazard Data Entry'!L40","v":0}]
[null,null,{"$f":"'Hazard Data Entry'!B41","v":0},{"$f":"'Hazard Data Entry'!C41","v":0},{"$f":"IFERROR(INDEX(Assumptions!$F$15:$F$25,MATCH('Hazard Data Entry'!D41,Exposures,0)),0)","v":0},{"$f":"IFERROR(INDEX(Assumptions!$F$15:$F$25,MATCH('Hazard Data Entry'!E41,Exposures,0)),0)","v":0},{"$f":"IFERROR(INDEX(Assumptions!$F$15:$F$25,MATCH('Hazard Data Entry'!F41,Exposures,0)),0)","v":0},{"$f":"IFERROR(INDEX(Assumptions!$F$15:$F$25,MATCH('Hazard Data Entry'!G41,Exposures,0)),0)","v":0},{"$f":"IFERROR(INDEX(Assumptions!$F$15:$F$25,MATCH('Hazard Data Entry'!H41,Exposures,0)),0)","v":0},{"$f":"'Hazard Data Entry'!I41","v":0},{"$f":"IFERROR(INDEX(Assumptions!$F$41:$F$51,MATCH('Hazard Data Entry'!J41,Levels_of_response,0)),0)","v":0},{"$f":"'Hazard Data Entry'!K41","v":0},{"$f":"'Hazard Data Entry'!L41","v":0}]
[null,null,{"$f":"'Hazard Data Entry'!B42","v":0},{"$f":"'Hazard Data Entry'!C42","v":0},{"$f":"IFERROR(INDEX(Assumptions!$F$15:$F$25,MATCH('Hazard Data Entry'!D42,Exposures,0)),0)","v":0},{"$f":"IFERROR(INDEX(Assumptions!$F$15:$F$25,MATCH('Hazard Data Entry'!E42,Exposures,0)),0)","v":0},{"$f":"IFERROR(INDEX(Assumptions!$F$15:$F$25,MATCH('Hazard Data Entry'!F42,Exposures,0)),0)","v":0},{"$f":"IFERROR(INDEX(Assumptions!$F$15:$F$25,MATCH('Hazard Data Entry'!G42,Exposures,0)),0)","v":0},{"$f":"IFERROR(INDEX(Assumptions!$F$15:$F$25,MATCH('Hazard Data Entry'!H42,Exposures,0)),0)","v":0},{"$f":"'Hazard Data Entry'!I42","v":0},{"$f":"IFERROR(INDEX(Assumptions!$F$41:$F$51,MATCH('Hazard Data Entry'!J42,Levels_of_response,0)),0)","v":0},{"$f":"'Hazard Data Entry'!K42","v":0},{"$f":"'Hazard Data Entry'!L42","v":0}]
[null,{"$f":"'Hazard Data Entry'!$B$43","v":"H7 - Antropogénicos"},{"$f":"'Hazard Data Entry'!B44","v":0},{"$f":"'Hazard Data Entry'!C44","v":0},{"$f":"IFERROR(INDEX(Assumptions!$F$15:$F$25,MATCH('Hazard Data Entry'!D44,Exposures,0)),0)","v":0},{"$f":"IFERROR(INDEX(Assumptions!$F$15:$F$25,MATCH('Hazard Data Entry'!E44,Exposures,0)),0)","v":0},{"$f":"IFERROR(INDEX(Assumptions!$F$15:$F$25,MATCH('Hazard Data Entry'!F44,Exposures,0)),0)","v":0},{"$f":"IFERROR(INDEX(Assumptions!$F$15:$F$25,MATCH('Hazard Data Entry'!G44,Exposures,0)),0)","v":0},{"$f":"IFERROR(INDEX(Assumptions!$F$15:$F$25,MATCH('Hazard Data Entry'!H44,Exposures,0)),0)","v":0},{"$f":"'Hazard Data Entry'!I44","v":0},{"$f":"IFERROR(INDEX(Assumptions!$F$41:$F$51,MATCH('Hazard Data Entry'!J44,Levels_of_response,0)),0)","v":0},{"$f":"'Hazard Data Entry'!K44","v":0},{"$f":"'Hazard Data Entry'!L44","v":0}]
[null,null,{"$f":"'Hazard Data Entry'!B45","v":0},{"$f":"'Hazard Data Entry'!C45","v":0},{"$f":"IFERROR(INDEX(Assumptions!$F$15:$F$25,MATCH('Hazard Data Entry'!D45,Exposures,0)),0)","v":0},{"$f":"IFERROR(INDEX(Assumptions!$F$15:$F$25,MATCH('Hazard Data Entry'!E45,Exposures,0)),0)","v":0},{"$f":"IFERROR(INDEX(Assumptions!$F$15:$F$25,MATCH('Hazard Data Entry'!F45,Exposures,0)),0)","v":0},{"$f":"IFERROR(INDEX(Assumptions!$F$15:$F$25,MATCH('Hazard Data Entry'!G45,Exposures,0)),0)","v":0},{"$f":"IFERROR(INDEX(Assumptions!$F$15:$F$25,MATCH('Hazard Data Entry'!H45,Exposures,0)),0)","v":0},{"$f":"'Hazard Data Entry'!I45","v":0},{"$f":"IFERROR(INDEX(Assumptions!$F$41:$F$51,MATCH('Hazard Data Entry'!J45,Levels_of_response,0)),0)","v":0},{"$f":"'Hazard Data Entry'!K45","v":0},{"$f":"'Hazard Data Entry'!L45","v":0}]
[null,null,{"$f":"'Hazard Data Entry'!B46","v":0},{"$f":"'Hazard Data Entry'!C46","v":0},{"$f":"IFERROR(INDEX(Assumptions!$F$15:$F$25,MATCH('Hazard Data Entry'!D46,Exposures,0)),0)","v":0},{"$f":"IFERROR(INDEX(Assumptions!$F$15:$F$25,MATCH('Hazard Data Entry'!E46,Exposures,0)),0)","v":0},{"$f":"IFERROR(INDEX(Assumptions!$F$15:$F$25,MATCH('Hazard Data Entry'!F46,Exposures,0)),0)","v":0},{"$f":"IFERROR(INDEX(Assumptions!$F$15:$F$25,MATCH('Hazard Data Entry'!G46,Exposures,0)),0)","v":0},{"$f":"IFERROR(INDEX(Assumptions!$F$15:$F$25,MATCH('Hazard Data Entry'!H46,Exposures,0)),0)","v":0},{"$f":"'Hazard Data Entry'!I46","v":0},{"$f":"IFERROR(INDEX(Assumptions!$F$41:$F$51,MATCH('Hazard Data Entry'!J46,Levels_of_response,0)),0)","v":0},{"$f":"'Hazard Data Entry'!K46","v":0},{"$f":"'Hazard Data Entry'!L46","v":0}]
[null,null,{"$f":"'Hazard Data Entry'!B47","v":0},{"$f":"'Hazard Data Entry'!C47","v":0},{"$f":"IFERROR(INDEX(Assumptions!$F$15:$F$25,MATCH('Hazard Data Entry'!D47,Exposures,0)),0)","v":0},{"$f":"IFERROR(INDEX(Assumptions!$F$15:$F$25,MATCH('Hazard Data Entry'!E47,Exposures,0)),0)","v":0},{"$f":"IFERROR(INDEX(Assumptions!$F$15:$F$25,MATCH('Hazard Data Entry'!F47,Exposures,0)),0)","v":0},{"$f":"IFERROR(INDEX(Assumptions!$F$15:$F$25,MATCH('Hazard Data Entry'!G47,Exposures,0)),0)","v":0},{"$f":"IFERROR(INDEX(Assumptions!$F$15:$F$25,MATCH('Hazard Data Entry'!H47,Exposures,0)),0)","v":0},{"$f":"'Hazard Data Entry'!I47","v":0},{"$f":"IFERROR(INDEX(Assumptions!$F$41:$F$51,MATCH('Hazard Data Entry'!J47,Levels_of_response,0)),0)","v":0},{"$f":"'Hazard Data Entry'!K47","v":0},{"$f":"'Hazard Data Entry'!L47","v":0}]
[null,null,{"$f":"'Hazard Data Entry'!B48","v":0},{"$f":"'Hazard Data Entry'!C48","v":0},{"$f":"IFERROR(INDEX(Assumptions!$F$15:$F$25,MATCH('Hazard Data Entry'!D48,Exposures,0)),0)","v":0},{"$f":"IFERROR(INDEX(Assumptions!$F$15:$F$25,MATCH('Hazard Data Entry'!E48,Exposures,0)),0)","v":0},{"$f":"IFERROR(INDEX(Assumptions!$F$15:$F$25,MATCH('Hazard Data Entry'!F48,Exposures,0)),0)","v":0},{"$f":"IFERROR(INDEX(Assumptions!$F$15:$F$25,MATCH('Hazard Data Entry'!G48,Exposures,0)),0)","v":0},{"$f":"IFERROR(INDEX(Assumptions!$F$15:$F$25,MATCH('Hazard Data Entry'!H48,Exposures,0)),0)","v":0},{"$f":"'Hazard Data Entry'!I48","v":0},{"$f":"IFERROR(INDEX(Assumptions!$F$41:$F$51,MATCH('Hazard Data Entry'!J48,Levels_of_response,0)),0)","v":0},{"$f":"'Hazard Data Entry'!K48","v":0},{"$f":"'Hazard Data Entry'!L48","v":0}]
[null,{"$f":"'Hazard Data Entry'!$B$49","v":"H8 - Otros (Definidos por el Usuario)"},{"$f":"'Hazard Data Entry'!B50","v":0},{"$f":"'Hazard Data Entry'!C50","v":0},{"$f":"IFERROR(INDEX(Assumptions!$F$15:$F$25,MATCH('Hazard Data Entry'!D50,Exposures,0)),0)","v":0},{"$f":"IFERROR(INDEX(Assumptions!$F$15:$F$25,MATCH('Hazard Data Entry'!E50,Exposures,0)),0)","v":0},{"$f":"IFERROR(INDEX(Assumptions!$F$15:$F$25,MATCH('Hazard Data Entry'!F50,Exposures,0)),0)","v":0},{"$f":"IFERROR(INDEX(Assumptions!$F$15:$F$25,MATCH('Hazard Data Entry'!G50,Exposures,0)),0)","v":0},{"$f":"IFERROR(INDEX(Assumptions!$F$15:$F$25,MATCH('Hazard Data Entry'!H50,Exposures,0)),0)","v":0},{"$f":"'Hazard Data Entry'!I50","v":0},{"$f":"IFERROR(INDEX(Assumptions!$F$41:$F$51,MATCH('Hazard Data Entry'!J50,Levels_of_response,0)),0)","v":0},{"$f":"'Hazard Data Entry'!K50","v":0},{"$f":"'Hazard Data Entry'!L50","v":0}]
[null,null,{"$f":"'Hazard Data Entry'!B51","v":0},{"$f":"'Hazard Data Entry'!C51","v":0},{"$f":"IFERROR(INDEX(Assumptions!$F$15:$F$25,MATCH('Hazard Data Entry'!D51,Exposures,0)),0)","v":0},{"$f":"IFERROR(INDEX(Assumptions!$F$15:$F$25,MATCH('Hazard Data Entry'!E51,Exposures,0)),0)","v":0},{"$f":"IFERROR(INDEX(Assumptions!$F$15:$F$25,MATCH('Hazard Data Entry'!F51,Exposures,0)),0)","v":0},{"$f":"IFERROR(INDEX(Assumptions!$F$15:$F$25,MATCH('Hazard Data Entry'!G51,Exposures,0)),0)","v":0},{"$f":"IFERROR(INDEX(Assumptions!$F$15:$F$25,MATCH('Hazard Data Entry'!H51,Exposures,0)),0)","v":0},{"$f":"'Hazard Data Entry'!I51","v":0},{"$f":"IFERROR(INDEX(Assumptions!$F$41:$F$51,MATCH('Hazard Data Entry'!J51,Levels_of_response,0)),0)","v":0},{"$f":"'Hazard Data Entry'!K51","v":0},{"$f":"'Hazard Data Entry'!L51","v":0}]
[null,null,{"$f":"'Hazard Data Entry'!B52","v":0},{"$f":"'Hazard Data Entry'!C52","v":0},{"$f":"IFERROR(INDEX(Assumptions!$F$15:$F$25,MATCH('Hazard Data Entry'!D52,Exposures,0)),0)","v":0},{"$f":"IFERROR(INDEX(Assumptions!$F$15:$F$25,MATCH('Hazard Data Entry'!E52,Exposures,0)),0)","v":0},{"$f":"IFERROR(INDEX(Assumptions!$F$15:$F$25,MATCH('Hazard Data Entry'!F52,Exposures,0)),0)","v":0},{"$f":"IFERROR(INDEX(Assumptions!$F$15:$F$25,MATCH('Hazard Data Entry'!G52,Exposures,0)),0)","v":0},{"$f":"IFERROR(INDEX(Assumptions!$F$15:$F$25,MATCH('Hazard Data Entry'!H52,Exposures,0)),0)","v":0},{"$f":"'Hazard Data Entry'!I52","v":0},{"$f":"IFERROR(INDEX(Assumptions!$F$41:$F$51,MATCH('Hazard Data Entry'!J52,Levels_of_response,0)),0)","v":0},{"$f":"'Hazard Data Entry'!K52","v":0},{"$f":"'Hazard Data Entry'!L52","v":0}]
[null,null,{"$f":"'Hazard Data Entry'!B53","v":0},{"$f":"'Hazard Data Entry'!C53","v":0},{"$f":"IFERROR(INDEX(Assumptions!$F$15:$F$25,MATCH('Hazard Data Entry'!D53,Exposures,0)),0)","v":0},{"$f":"IFERROR(INDEX(Assumptions!$F$15:$F$25,MATCH('Hazard Data Entry'!E53,Exposures,0)),0)","v":0},{"$f":"IFERROR(INDEX(Assumptions!$F$15:$F$25,MATCH('Hazard Data Entry'!F53,Exposures,0)),0)","v":0},{"$f":"IFERROR(INDEX(Assumptions!$F$15:$F$25,MATCH('Hazard Data Entry'!G53,Exposures,0)),0)","v":0},{"$f":"IFERROR(INDEX(Assumptions!$F$15:$F$25,MATCH('Hazard Data Entry'!H53,Exposures,0)),0)","v":0},{"$f":"'Hazard Data Entry'!I53","v":0},{"$f":"IFERROR(INDEX(Assumptions!$F$41:$F$51,MATCH('Hazard Data Entry'!J53,Levels_of_response,0)),0)","v":0},{"$f":"'Hazard Data Entry'!K53","v":0},{"$f":"'Hazard Data Entry'!L53","v":0}]
[null,null,{"$f":"'Hazard Data Entry'!B54","v":0},{"$f":"'Hazard Data Entry'!C54","v":0},{"$f":"IFERROR(INDEX(Assumptions!$F$15:$F$25,MATCH('Hazard Data Entry'!D54,Exposures,0)),0)","v":0},{"$f":"IFERROR(INDEX(Assumptions!$F$15:$F$25,MATCH('Hazard Data Entry'!E54,Exposures,0)),0)","v":0},{"$f":"IFERROR(INDEX(Assumptions!$F$15:$F$25,MATCH('Hazard Data Entry'!F54,Exposures,0)),0)","v":0},{"$f":"IFERROR(INDEX(Assumptions!$F$15:$F$25,MATCH('Hazard Data Entry'!G54,Exposures,0)),0)","v":0},{"$f":"IFERROR(INDEX(Assumptions!$F$15:$F$25,MATCH('Hazard Data Entry'!H54,Exposures,0)),0)","v":0},{"$f":"'Hazard Data Entry'!I54","v":0},{"$f":"IFERROR(INDEX(Assumptions!$F$41:$F$51,MATCH('Hazard Data Entry'!J54,Levels_of_response,0)),0)","v":0},{"$f":"'Hazard Data Entry'!K54","v":0},{"$f":"'Hazard Data Entry'!L54","v":0}]
[]
[]
[null,"Fin"]

{"sheet":"Risk Summary","index":8,"n_rows":9,"n_cols":3,"rows_kept":9,"cut":false,"hidden":false,"merged":[]}
[null,{"$f":"MdlTle","v":"Herramienta Rápida de Estimación del Riesgo"}]
[null,{"$f":"MID(CELL(\"filename\",B1),FIND(\"]\",CELL(\"filename\",B1))+1,255)","v":"Risk Summary"}]
[]
[]
[null,{"$f":"Information!C15","v":"Locación/Región Nombre/Título: "},{"$f":"Information!$L$15","v":0}]
[null,{"$f":"Information!C17","v":"Descripción (incluyendo activo (s) examinado):"},{"$f":"Information!$L$17","v":0}]
[null,{"$f":"Information!C20","v":"Asesor (persona completando la estimación del riesgo): "},{"$f":"Information!$L$20","v":0}]
[null,{"$f":"Information!C22","v":"Día de completado: "},{"$f":"TEXT(Information!$L$22,\"DD MMM YYYY\")","v":"00 Jan 1900"}]
[null,{"$f":"Information!C24","v":"Revisión Fecha/Versión: "},{"$f":"TEXT(Information!$L$24, \"DD MMM YYYY\")","v":"00 Jan 1900"}]

{"sheet":"Vulnerability Report","index":9,"n_rows":55,"n_cols":3,"rows_kept":55,"cut":false,"hidden":false,"merged":[]}
[null,{"$f":"MdlTle","v":"Herramienta Rápida de Estimación del Riesgo"}]
[null,{"$f":"MID(CELL(\"filename\",B1),FIND(\"]\",CELL(\"filename\",B1))+1,255)","v":"Vulnerability Report"}]
[]
[]
[null,{"$f":"Information!C15","v":"Locación/Región Nombre/Título: "},{"$f":"Information!$L$15","v":0}]
[null,{"$f":"Information!C17","v":"Descripción (incluyendo activo (s) examinado):"},{"$f":"Information!$L$17","v":0}]
[null,{"$f":"Information!C20","v":"Asesor (persona completando la estimación del riesgo): "},{"$f":"Information!$L$20","v":0}]
[null,{"$f":"Information!C22","v":"Día de completado: "},{"$f":"TEXT(Information!$L$22,\"DD MMM YYYY\")","v":"00 Jan 1900"}]
[null,{"$f":"Information!C24","v":"Revisión Fecha/Versión: "},{"$f":"TEXT(Information!$L$24, \"DD MMM YYYY\")","v":"00 Jan 1900"}]
[]
[]
[]
[]
[]
[]
[]
[]
[]
[]
[]
[]
[]
[]
[]
[]
[]
[]
[]
[]
[]
[]
[]
[]
[]
[]
[]
[]
[]
[]
[]
[]
[]
[]
[]
[]
[]
[]
[]
[]
[]
[]
[]
[]
[null,{"$f":"MdlTle","v":"Herramienta Rápida de Estimación del Riesgo"}]
[null,{"$f":"MID(CELL(\"filename\",B54),FIND(\"]\",CELL(\"filename\",B54))+1,255)","v":"Vulnerability Report"}]

{"sheet":"Contacts","index":10,"n_rows":14,"n_cols":2,"rows_kept":14,"cut":false,"hidden":false,"merged":[[6,0,6,2]]}
[{"$f":"MdlTle","v":"Herramienta Rápida de Estimación del Riesgo"}]
[{"$f":"MID(CELL(\"filename\",A1),FIND(\"]\",CELL(\"filename\",A1))+1,255)","v":"Contacts"}]
[]
[]
[]
["¿Preguntas?"]
["Contacta a nuestro staff y socios en tu región:"]
[]
["MCR2030 Global Secretariat:","mcr2030-global@un.org"]
["MCR2030 Regional Secretariat for Africa: ","mcr2030-africa@un.org"]
["MCR2030 Regional Secretariat for Americas and the Caribbean: ","mcr2030-amc@un.org"]
["MCR2030 Regional Secretariat for Arab States: ","mcr2030-arabstates@un.org"]
["MCR2030 Regional Secretariat for Asia-Pacific: ","mcr2030-ap@un.org"]
["MCR2030 Regional Secretariat for Europe and Central Asia: ","mcr2030-eca@un.org"]